Workbook

Sheet Portada.ORI (hidden)
B1: { NOMBRE INSTITUCIÓN / MINISTERIO } - { PAÍS }
B2: { NOMBRE PROYECTO }
B3: V.01 | E3: ENCUESTA DE CENTROS DE SALUD - { AÑO } | AC3: IDENTIFICADOR DEL ESTABLECIMIENTO DE SALUD
B4: 1 | C4: NOMBRE DEL ESTABLECIMIENTO:
B7: A.- DIRECCIÓN EXACTA DEL ESTABLECIMIENTO | U7: B.- TIPO Y CONTACTOS
B9: 2 | C9: { REGIÓN/ESTADO } | U9: 12 | V9: TIPO:
B11: 3 | C11: { PROVINCIA } | V11: 1 | W11: HOSPITAL BÁSICO | AD11: 4 | AE11: PUESTO DE SALUD
B13: 4 | C13: { MUNICIPIO } | V13: 2 | W13: CLINICA PRIVADA | AD13: 5 | AE13: { AGREGAR TIPO - 1}
B15: 5 | C15: { LOCALIDAD } | V15: 3 | W15: CENTRO DE SALUD | AD15: 6 | AE15: { AGREGAR TIPO - 2}
B17: 6 | C17: { ZONA / BARRIO } | U17: 13 | V17: NOMBRE DEL DIRECTOR/A:
B19: 7 | C19: CALLE
B21: 8 | C21: NÚMERO | U21: 14 | V21: TELÉFONOS:
B23: 9 | C23: OTRAS REFERENCIAS | X23: -1
F25: GEOREFERENCIACIÓN: | X25: -2
C26: C10 | E26: S | H26: ° | K26: ' | Q26: ''
C28: C11 | E28: W | H28: ° | K28: ' | Q28: '' | X28: -3
B32: C. INFORMACIÓN SOBRE LA ENTREVISTA
B34: 15 | C34: ENCUESTADOR/A | O34: C-20 | Q34: VISITA | R34: FECHA | V34: RESULTADO | W34: HORA INICIO | Y34: HORA FIN | AA34: 22 | AB34: IDIOMA DE LA ENTREVISTA
AB35: 1 | AC35: CASTELLANO
B36: 16 | C36: SUPERVISOR/A | AB36: 2 | AC36: { OTRA LENGUA - 1 }
R37: DD | S37: MM | T37: AAAA | AB37: 3 | AC37: { OTRA LENGUA - 2 }
B38: 17 | C38: { OTRO PERSONAL - 1 } | Q38: 1 | AB38: 4 | AC38: { OTRA LENGUA - 3 }
Q39: 2 | AB39: 5 | AC39: { OTRA LENGUA - 4 }
B40: 18 | C40: { OTRO PERSONAL - 2 } | Q40: 3 | AB40: 6 | AC40: { OTRA LENGUA - 5 }
Q41: 4
B42: 19 | C42: { OTRO PERSONAL - 3 } | O42: 21 | P42: CÓDIGOS RESULTADO
P43: 1 | Q43: COMPLETA | T43: 3 | U43: RECHAZO | Y43: 5 | Z43: NO LO ENCONTRÓ
P44: 2 | Q44: PARCIAL | T44: 4 | U44: NO CONTACTÓ | Y44: 6 | Z44: OTRO

Sheet Copyright_Esp

Sheet Portada
B1: { NOMBRE INSTITUCIÓN / MINISTERIO } - { PAÍS }
B2: { NOMBRE PROYECTO }
B3: V.01 | E3: ENCUESTA DE CENTROS DE SALUD - { AÑO } | AC3: IDENTIFICADOR DEL ESTABLECIMIENTO DE SALUD
B4: 1 | C4: NOMBRE DEL ESTABLECIMIENTO:
B7: A.- DIRECCIÓN EXACTA DEL ESTABLECIMIENTO | U7: B.- TIPO Y CONTACTOS
B9: 2 | C9: { REGIÓN/ESTADO } | U9: 12 | V9: TIPO:
B11: 3 | C11: { PROVINCIA } | V11: 1 | W11: HOSPITAL BÁSICO | AD11: 4 | AE11: PUESTO DE SALUD
B13: 4 | C13: { MUNICIPIO } | V13: 2 | W13: CLINICA PRIVADA | AD13: 5 | AE13: { AGREGAR TIPO - 1}
B15: 5 | C15: { LOCALIDAD } | V15: 3 | W15: CENTRO DE SALUD | AD15: 6 | AE15: { AGREGAR TIPO - 2}
B17: 6 | C17: { ZONA / BARRIO } | U17: 13 | V17: NOMBRE DEL DIRECTOR/A:
B19: 7 | C19: CALLE
B21: 8 | C21: NÚMERO | U21: 14 | V21: TELÉFONOS:
B23: 9 | C23: OTRAS REFERENCIAS | X23: -1
F25: GEOREFERENCIACIÓN: | X25: -2
C26: C10 | E26: S | H26: ° | K26: ' | Q26: ''
C28: C11 | E28: W | H28: ° | K28: ' | Q28: '' | X28: -3
B32: C. INFORMACIÓN SOBRE LA ENTREVISTA
B34: 15 | C34: ENCUESTADOR/A | O34: C-20 | Q34: VISITA | R34: FECHA | V34: RESULTADO | W34: HORA INICIO | Y34: HORA FIN | AA34: 22 | AB34: IDIOMA DE LA ENTREVISTA
AB35: 1 | AC35: CASTELLANO
B36: 16 | C36: SUPERVISOR/A | AB36: 2 | AC36: { OTRA LENGUA - 1 }
R37: DD | S37: MM | T37: AAAA | AB37: 3 | AC37: { OTRA LENGUA - 2 }
B38: 17 | C38: { OTRO PERSONAL - 1 } | Q38: 1 | AB38: 4 | AC38: { OTRA LENGUA - 3 }
Q39: 2 | AB39: 5 | AC39: { OTRA LENGUA - 4 }
B40: 18 | C40: { OTRO PERSONAL - 2 } | Q40: 3 | AB40: 6 | AC40: { OTRA LENGUA - 5 }
Q41: 4
B42: 19 | C42: { OTRO PERSONAL - 3 } | O42: 21 | P42: CÓDIGOS RESULTADO
P43: 1 | Q43: COMPLETA | T43: 3 | U43: RECHAZO | Y43: 5 | Z43: NO LO ENCONTRÓ
P44: 2 | Q44: PARCIAL | T44: 4 | U44: NO CONTACTÓ | Y44: 6 | Z44: OTRO

Sheet 1.General.ORI (hidden)
A1: SECCIÓN 1: INFORMACIÓN GENERAL
A2: RESPONDE: DIRECTOR/A DEL ESTABLECIMIENTO O AL SUBDIRECTOR
A4: -1.01 | B4: ENTREVISTADO: | S4: ELECTRICIDAD
B5: A. | C5: NOMBRE: | S5: =A30-0.01 -> -1.07 | T5: ¿Cuál es la principal fuente de electricidad en este establecimiento de salud?
U6: 1 | V6: SI
B7: B. | C7: TELÉFONOS: | U7: 2 | V7: NO TIENEN ELECTRICIDAD | AA7: ► | AB7: =A44 -> -1.13
A9: =A4-0.01 -> -1.02 | B9: ¿Qué cargo tiene usted en este establecimiento? | S9: =S5-0.01 -> -1.08 | T9: ¿Con qué frecuencia se interrumpe el servicio eléctrico?
C10: 1 | D10: DIRECTOR/A | T10: LEER EN VOZ ALTA:
C11: 2 | D11: SUB-DIRECTOR/A | U11: 1 | V11: Casi a diario
C12: 3 | D12: OTRO (ESPECIFIQUE) | U12: 2 | V12: Algunas veces por semana
U13: 3 | V13: Algunas veces al mes
A14: =A9-0.01 -> -1.03 | B14: ¿De quién depende este establecimiento de salud? | U14: 4 | V14: Algunas veces al año
C15: 1 | D15: MINISTERIO DE SALUD | U15: 5 | V15: Nunca o casi nunca
C16: 2 | D16: ENTIDAD PRIVADA | S16: AGUA
C17: 3 | D17: ORGANIZACIÓN NO-GUBERNAMENTAL (ONG) | S17: =S9-0.01 -> -1.09 | T17: ¿Cuál es la fuente de abastecimiento del agua que es utilizada en la unidad de salud?
C18: 4 | D18: MISIÓN/ORGANIZACIÓN RELIGIOSA
C19: 5 | D19: MILITAR | U19: 1 | V19: RED PÚBLICA (AGUA CORRIENTE)
C20: 6 | D20: OTRA (ESPECIFIQUE) | U20: 2 | V20: DE PERFORACIÓN CON BOMBA MOTOR
U21: 3 | V21: DE PERFORACIÓN CON BOMBA MANUAL
A22: =A14-0.01 -> -1.04 | B22: ¿En qué año comenzó este establecimiento a operar? | U22: 4 | V22: DE POZO CON BOMBA
M23: AÑO: | U23: 5 | V23: DE POZO SIN BOMBA
U24: 6 | V24: { OTRA }
A25: ÁREA DE INFLUENCIA | S25: =S17-0.01 -> -1.1 | T25: Esta fuente, ¿está situada dentro de la unidad?
A26: =A22-0.01 -> -1.05 | B26: ¿Cuál es el número estimado de población que el establecimiento tiene a cargo en su zona de influencia. | V26: 1 | W26: SI | X26: ► | Y26: =S34 -> -1.12
V27: 2 | W27: NO
M28: NÚMERO PERSONAS: | S28: =S25-0.01 -> -1.11 | T28: ¿Qué tan lejos está la fuente de agua de este establecimiento?
AE29: 1 | AF29: KILÓMETROS
A30: =A26-0.01 -> -1.06 | B30: Considerando el total de la población que se atiende en este establecimiento ¿Me podría señalar el porcentaje que tiene cobertura de salud? | AE30: 2 | AF30: METROS
M32: PORCENTAJE: | W32: DISTANCIA: | AE32: UNIDAD DISTANCIA:
S33: SERVICIO SANITARIO
S34: =S28-0.01 -> -1.12 | T34: ¿Qué tipo de servicio sanitario está disponible en este establecimiento?
U36: 1 | V36: INODORO CONECTADO AL SISTEMA DE DRENAJE
U37: 2 | V37: INODORO CONECTADO A FOSA SÉPTICA
U38: 3 | V38: LETRINA
U39: 4 | V39: { OTRA }
A41: SECCIÓN 1: INFORMACIÓN GENERAL
A43: COMUNICACIONES | S43: SUPERVISIÓN
A44: =S34-0.01 -> -1.13 | B44: ¿Cuál es la forma de comunicación principal en este establecimiento de salud? | S44: =A73-0.01 -> -1.17 | T44: El establecimiento de salud ¿ha recibido alguna visita de supervisión los últimos 6 meses?
C45: 1 | D45: TELEFONÍA FIJA
C46: 2 | D46: TELEFONÍA CELULAR | E46: TELEFONÍA CELULAR | W46: 1 | X46: SI
C47: 3 | D47: RADIO/HANDY | W47: 2 | X47: NO | Y47: ► | Z47: =S61 -> -1.22
C48: 4 | D48: INTERNET | S48: =S44-0.01 -> -1.18 | T48: ¿Cuántas veces recibió visitas de supervisión los últimos 6 meses?
C49: 5 | D49: TELÉFONO SEMIPÚBLICO | AE49: NÚMERO DE VECES:
C50: 6 | D50: LÍNEA CENTREX | S50: =S48-0.01 -> -1.19 | T50: Alguna visita(s) de supervisión ¿fue realizada por la { Red de Salud }?
C51: 7 | D51: NO POSEE | W51: 1 | X51: SI
C52: 8 | D52: { OTRA } | W52: 2 | X52: NO
S53: =S50-0.01 -> -1.2 | T53: Alguna visita(s) de supervisión ¿fue realizada por el { Nivel Central }?
A54: ELIMINACIÓN DE DESECHOS MÉDICOS/BIOLÓGICOS | W54: 1 | X54: SI
A55: =A44-0.01 -> -1.14 | B55: ¿De qué manera son desechadas la agujas que se utilizan? | W55: 2 | X55: NO
N56: 1 | O56: SI | S56: =S53-0.01 -> -1.21 | T56: ¿En alguna visita de supervisión se observó la atención de niños/as menores de 5 años?
N57: 2 | O57: NO | W57: 1 | X57: SI
W58: 2 | X58: NO
C59: 1 | D59: Descartador de agujas (recipiente rojo rígido especial)
C60: 2 | D60: En bolsas rojas especiales | S60: CALIDAD
C61: 3 | D61: Igual que el resto de la basura | S61: =S56-0.01 -> -1.22 | T61: En el establecimiento de salud ¿existe personal asignado como Gestor de Calidad?
C62: 4 | D62: Otra (ESPECIFIQUE) | W62: 1 | X62: SI
A63: =A55-0.01 -> -1.15 | B63: ¿De qué manera son comúnmente eliminados los residuos biológico-infecciosos? | W63: 2 | X63: NO
N64: 1 | O64: SI | S64: =S61-0.01 -> -1.23 | T64: ¿Se ha realizado alguna auditoría técnica interna de servicio durante la última gestión?
N65: 2 | O65: NO | W65: 1 | X65: SI
W66: 2 | X66: NO
C67: 1 | D67: Servicio recolector especial | S67: =S64-0.01 -> -1.24 | T67: Durante el último mes ¿han existido quejas o denuncias que fueron tratadas por el personal del establecimiento?
C68: 2 | D68: Trasladándolo a un centro de acopio especial
C69: 3 | D69: Servicio de recolector público | W69: 1 | X69: SI
C70: 4 | D70: Incineración en el mismo sitio | W70: 2 | X70: NO
C71: 5 | D71: Enterrándolos en el mismo sitio | S71: =S67-0.01 -> -1.25 | T71: El establecimiento de salud, ¿cuenta con un plan de gestión de riesgos y seguridad del paciente?
C72: 6 | D72: Otra (ESPECIFIQUE)
A73: =A63-0.01 -> -1.16 | B73: ¿Con qué frecuencia se ven obligados en este establecimiento a reutilizar la misma aguja? | W73: 1 | X73: SI
W74: 2 | X74: NO
C75: 1 | D75: NUNCA | S75: =S71-0.01 -> -1.26 | T75: Habitualmente, ¿quién realiza el mantenimiento de los equipos médicos del Establecimiento de Salud?
C76: 2 | D76: RARA VEZ
C77: 3 | D77: ALGUNAS VECES | V77: 1 | W77: SERVICIO PRIVADO
C78: 4 | D78: FRECUENTEMENTE | V78: 2 | W78: SERVICIO PÚBLICO
V79: 3 | W79: PERSONAL DEL ESTABLECIMIENTO DE SALUD
V80: 4 | W80: OTRO (ESPECIFIQUE)
A82: SECCIÓN 1: INFORMACIÓN GENERAL
A84: DERIVACIONES | S84: FINANCIAMIENTO
A85: =S75-0.01 -> -1.27 | B85: Este establecimiento, ¿deriva pacientes a otros establecimientos de salud?
E86: 1 | F86: SI | S86: CÓDIGO FUENTE | Z86: =A96-0.01 -> -1.3 | AD86: =Z86-0.01 -> -1.31
E87: 2 | F87: NO | G87: ► | H87: =Z86 -> -1.3 | Z87: ¿Durante el último año (AÑO), recibió ingresos de [FUENTE]? | AD87: ¿Cuánto recibió de [FUENTE] durante el último año (AÑO)?
A89: =A85-0.01 -> -1.28 | B89: ¿A dónde derivan principalmente a los pacientes? | T89: FUENTE DE FINANCIAMIENTO
D90: 1 | E90: A UN HOSPITAL | Z90: 1 | AA90: SI
D91: 2 | E91: A UNA CLÍNICA PRIVADA | Z91: 2 | AA91: NO
D92: 3 | E92: A UN CENTRO DE SALUD | Z92: ► PRÓXIMA FUENTE
D93: 4 | E93: A UN PUESTO DE SALUD | AD93: MONTO { $ }
D94: 5 | E94: OTRO (ESPECIFIQUE) | S94: 1 | T94: Ministerio de salud
S95: 2 | T95: Cargos a los usuarios
A96: =A89-0.01 -> -1.29 | B96: ¿A qué distancia queda ese establecimiento de salud al que ustedes derivan principalmente a los pacientes? | S96: 3 | T96: Venta de medicamentos
S97: 4 | T97: Entidad privada
M98: KILÓMETROS: | S98: 5 | T98: Organización no-gubernamental (ONG)
S99: 6 | T99: Misión/organización religiosa
S100: 7 | T100: { AGREGAR OTRO 1 }
S101: 8 | T101: { AGREGAR OTRO 2 }
S102: 9 | T102: TOTAL RECIBIDO
S104: =AD86-0.01 -> -1.32 | T104: ENCUESTADOR: ANOTE LA FUENTE PRINCIPAL DE INFORMACIÓN CONSULTADA PARA RESPONDER LA PREGUNTA ANTERIOR
V106: 1 | W106: REGISTROS OFICIALES DEL ESTABLECIMIENTO
V107: 2 | W107: INFORME VERBAL

Sheet 1.General
A1: SECCIÓN 1: INFORMACIÓN GENERAL
A2: RESPONDE: DIRECTOR/A DEL ESTABLECIMIENTO O AL SUBDIRECTOR
A4: -1.01 | B4: ENTREVISTADO: | S4: ELECTRICIDAD
B5: A. | C5: NOMBRE: | S5: =A30-0.01 -> -1.07 | T5: ¿Cuál es la principal fuente de electricidad en este establecimiento de salud?
U6: 1 | V6: SI
B7: B. | C7: TELÉFONOS: | U7: 2 | V7: NO TIENEN ELECTRICIDAD | AA7: ► | AB7: =A44 -> -1.13
A9: =A4-0.01 -> -1.02 | B9: ¿Qué cargo tiene usted en este establecimiento? | S9: =S5-0.01 -> -1.08 | T9: ¿Con qué frecuencia se interrumpe el servicio eléctrico?
C10: 1 | D10: DIRECTOR/A | T10: LEER EN VOZ ALTA:
C11: 2 | D11: SUB-DIRECTOR/A | U11: 1 | V11: Casi a diario
C12: 3 | D12: OTRO (ESPECIFIQUE) | U12: 2 | V12: Algunas veces por semana
U13: 3 | V13: Algunas veces al mes
A14: =A9-0.01 -> -1.03 | B14: ¿De quién depende este establecimiento de salud? | U14: 4 | V14: Algunas veces al año
C15: 1 | D15: MINISTERIO DE SALUD | U15: 5 | V15: Nunca o casi nunca
C16: 2 | D16: ENTIDAD PRIVADA | S16: AGUA
C17: 3 | D17: ORGANIZACIÓN NO-GUBERNAMENTAL (ONG) | S17: =S9-0.01 -> -1.09 | T17: ¿Cuál es la fuente de abastecimiento del agua que es utilizada en la unidad de salud?
C18: 4 | D18: MISIÓN/ORGANIZACIÓN RELIGIOSA
C19: 5 | D19: MILITAR | U19: 1 | V19: RED PÚBLICA (AGUA CORRIENTE)
C20: 6 | D20: OTRA (ESPECIFIQUE) | U20: 2 | V20: DE PERFORACIÓN CON BOMBA MOTOR
U21: 3 | V21: DE PERFORACIÓN CON BOMBA MANUAL
A22: =A14-0.01 -> -1.04 | B22: ¿En qué año comenzó este establecimiento a operar? | U22: 4 | V22: DE POZO CON BOMBA
M23: AÑO: | U23: 5 | V23: DE POZO SIN BOMBA
U24: 6 | V24: { OTRA }
A25: ÁREA DE INFLUENCIA | S25: =S17-0.01 -> -1.1 | T25: Esta fuente, ¿está situada dentro de la unidad?
A26: =A22-0.01 -> -1.05 | B26: ¿Cuál es el número estimado de población que el establecimiento tiene a cargo en su zona de influencia. | V26: 1 | W26: SI | X26: ► | Y26: =S34 -> -1.12
V27: 2 | W27: NO
M28: NÚMERO PERSONAS: | S28: =S25-0.01 -> -1.11 | T28: ¿Qué tan lejos está la fuente de agua de este establecimiento?
AE29: 1 | AF29: KILÓMETROS
A30: =A26-0.01 -> -1.06 | B30: Considerando el total de la población que se atiende en este establecimiento ¿Me podría señalar el porcentaje que tiene cobertura de salud? | AE30: 2 | AF30: METROS
M32: PORCENTAJE: | W32: DISTANCIA: | AE32: UNIDAD DISTANCIA:
S33: SERVICIO SANITARIO
S34: =S28-0.01 -> -1.12 | T34: ¿Qué tipo de servicio sanitario está disponible en este establecimiento?
U36: 1 | V36: INODORO CONECTADO AL SISTEMA DE DRENAJE
U37: 2 | V37: INODORO CONECTADO A FOSA SÉPTICA
U38: 3 | V38: LETRINA
U39: 4 | V39: { OTRA }
A41: SECCIÓN 1: INFORMACIÓN GENERAL
A43: COMUNICACIONES | S43: SUPERVISIÓN
A44: =S34-0.01 -> -1.13 | B44: ¿Cuál es la forma de comunicación principal en este establecimiento de salud? | S44: =A73-0.01 -> -1.17 | T44: El establecimiento de salud ¿ha recibido alguna visita de supervisión los últimos 6 meses?
C45: 1 | D45: TELEFONÍA FIJA
C46: 2 | D46: TELEFONÍA CELULAR | E46: TELEFONÍA CELULAR | W46: 1 | X46: SI
C47: 3 | D47: RADIO/HANDY | W47: 2 | X47: NO | Y47: ► | Z47: =S61 -> -1.22
C48: 4 | D48: INTERNET | S48: =S44-0.01 -> -1.18 | T48: ¿Cuántas veces recibió visitas de supervisión los últimos 6 meses?
C49: 5 | D49: TELÉFONO SEMIPÚBLICO | AE49: NÚMERO DE VECES:
C50: 6 | D50: LÍNEA CENTREX | S50: =S48-0.01 -> -1.19 | T50: Alguna visita(s) de supervisión ¿fue realizada por la { Red de Salud }?
C51: 7 | D51: NO POSEE | W51: 1 | X51: SI
C52: 8 | D52: { OTRA } | W52: 2 | X52: NO
S53: =S50-0.01 -> -1.2 | T53: Alguna visita(s) de supervisión ¿fue realizada por el { Nivel Central }?
A54: ELIMINACIÓN DE DESECHOS MÉDICOS/BIOLÓGICOS | W54: 1 | X54: SI
A55: =A44-0.01 -> -1.14 | B55: ¿De qué manera son desechadas la agujas que se utilizan? | W55: 2 | X55: NO
N56: 1 | O56: SI | S56: =S53-0.01 -> -1.21 | T56: ¿En alguna visita de supervisión se observó la atención de niños/as menores de 5 años?
N57: 2 | O57: NO | W57: 1 | X57: SI
W58: 2 | X58: NO
C59: 1 | D59: Descartador de agujas (recipiente rojo rígido especial)
C60: 2 | D60: En bolsas rojas especiales | S60: CALIDAD
C61: 3 | D61: Igual que el resto de la basura | S61: =S56-0.01 -> -1.22 | T61: En el establecimiento de salud ¿existe personal asignado como Gestor de Calidad?
C62: 4 | D62: Otra (ESPECIFIQUE) | W62: 1 | X62: SI
A63: =A55-0.01 -> -1.15 | B63: ¿De qué manera son comúnmente eliminados los residuos biológico-infecciosos? | W63: 2 | X63: NO
N64: 1 | O64: SI | S64: =S61-0.01 -> -1.23 | T64: ¿Se ha realizado alguna auditoría técnica interna de servicio durante la última gestión?
N65: 2 | O65: NO | W65: 1 | X65: SI
W66: 2 | X66: NO
C67: 1 | D67: Servicio recolector especial | S67: =S64-0.01 -> -1.24 | T67: Durante el último mes ¿han existido quejas o denuncias que fueron tratadas por el personal del establecimiento?
C68: 2 | D68: Trasladándolo a un centro de acopio especial
C69: 3 | D69: Servicio de recolector público | W69: 1 | X69: SI
C70: 4 | D70: Incineración en el mismo sitio | W70: 2 | X70: NO
C71: 5 | D71: Enterrándolos en el mismo sitio | S71: =S67-0.01 -> -1.25 | T71: El establecimiento de salud, ¿cuenta con un plan de gestión de riesgos y seguridad del paciente?
C72: 6 | D72: Otra (ESPECIFIQUE)
A73: =A63-0.01 -> -1.16 | B73: ¿Con qué frecuencia se ven obligados en este establecimiento a reutilizar la misma aguja? | W73: 1 | X73: SI
W74: 2 | X74: NO
C75: 1 | D75: NUNCA | S75: =S71-0.01 -> -1.26 | T75: Habitualmente, ¿quién realiza el mantenimiento de los equipos médicos del Establecimiento de Salud?
C76: 2 | D76: RARA VEZ
C77: 3 | D77: ALGUNAS VECES | V77: 1 | W77: SERVICIO PRIVADO
C78: 4 | D78: FRECUENTEMENTE | V78: 2 | W78: SERVICIO PÚBLICO
V79: 3 | W79: PERSONAL DEL ESTABLECIMIENTO DE SALUD
V80: 4 | W80: OTRO (ESPECIFIQUE)
A82: SECCIÓN 1: INFORMACIÓN GENERAL
A84: DERIVACIONES | S84: FINANCIAMIENTO
A85: =S75-0.01 -> -1.27 | B85: Este establecimiento, ¿deriva pacientes a otros establecimientos de salud?
E86: 1 | F86: SI | S86: CÓDIGO FUENTE | Z86: =A96-0.01 -> -1.3 | AD86: =Z86-0.01 -> -1.31
E87: 2 | F87: NO | G87: ► | H87: =Z86 -> -1.3 | Z87: ¿Durante el último año (AÑO), recibió ingresos de [FUENTE]? | AD87: ¿Cuánto recibió de [FUENTE] durante el último año (AÑO)?
A89: =A85-0.01 -> -1.28 | B89: ¿A dónde derivan principalmente a los pacientes? | T89: FUENTE DE FINANCIAMIENTO
D90: 1 | E90: A UN HOSPITAL | Z90: 1 | AA90: SI
D91: 2 | E91: A UNA CLÍNICA PRIVADA | Z91: 2 | AA91: NO
D92: 3 | E92: A UN CENTRO DE SALUD | Z92: ► PRÓXIMA FUENTE
D93: 4 | E93: A UN PUESTO DE SALUD | AD93: MONTO { $ }
D94: 5 | E94: OTRO (ESPECIFIQUE) | S94: 1 | T94: Ministerio de salud
S95: 2 | T95: Cargos a los usuarios
A96: =A89-0.01 -> -1.29 | B96: ¿A qué distancia queda ese establecimiento de salud al que ustedes derivan principalmente a los pacientes? | S96: 3 | T96: Venta de medicamentos
S97: 4 | T97: Entidad privada
M98: KILÓMETROS: | S98: 5 | T98: Organización no-gubernamental (ONG)
S99: 6 | T99: Misión/organización religiosa
S100: 7 | T100: { AGREGAR OTRO 1 }
S101: 8 | T101: { AGREGAR OTRO 2 }
S102: 9 | T102: TOTAL RECIBIDO
S104: =AD86-0.01 -> -1.32 | T104: ENCUESTADOR: ANOTE LA FUENTE PRINCIPAL DE INFORMACIÓN CONSULTADA PARA RESPONDER LA PREGUNTA ANTERIOR
V106: 1 | W106: REGISTROS OFICIALES DEL ESTABLECIMIENTO
V107: 2 | W107: INFORME VERBAL

Sheet 2.Prestaciones.ORI (hidden)
A1: SECCIÓN 2: PRESTACIONES MÉDICAS
A2: RESPONDE: DIRECTOR/A DEL ESTABLECIMIENTO O AL SUBDIRECTOR
A3: Ahora quiero hacerle unas preguntas sobre los servicios médicos prestados en este establecimiento de salud.
B5: DÍA | E5: De los últimos siete días, señale el total de horas en que el establecimiento de salud brindó… | R5: NÚMERO SERVICIO | X5: =K7-0.01 -> -2.03 | AA5: =X5-0.01 -> -2.04 | AC5: =AA5-0.01 -> -2.05
X6: ¿Ofrece este establecimiento de salud [SERVICIO]? | AA6: ¿Cúantos días a la semana ofrecen [SERVICIO]? | AC6: ¿Cuál es el precio normalmente cobrado por este [SERVICIO]?
E7: -2.01 | K7: =E7-0.01 -> -2.02 | S7: SERVICIO
E8: Servicio de consulta externa | K8: Servicio de urgencias
E10: NÚMERO TOTAL HORAS | K10: NÚMERO TOTAL HORAS | X10: 1 | Y10: SI
B11: 1 | C11: Lunes | X11: 2 | Y11: NO
B12: 2 | C12: Martes | X12: ►PRÓXIMO SERVICIO
B13: 3 | C13: Miércoles | AA13: NÚMERO DE DÍAS
B14: 4 | C14: Jueves | AC14: MONTO { $ } | AF14: UNIDAD
B15: 5 | C15: Viernes | R15: 1 | S15: Consulta externa para niños | AF15: POR CONSULTA
B16: 6 | C16: Sábado | R16: 2 | S16: Consulta externa para adultos | AF16: POR CONSULTA
B17: 7 | C17: Domingo | R17: 3 | S17: Consulta dental | AF17: POR EVENTO
R18: 4 | S18: Consulta de especialidad | AF18: POR CONSULTA
A19: =AC5-0.01 -> -2.06 | B19: ¿Hay personal médico las 24 horas del día? | R19: 5 | S19: Hospitalización | AF19: POR DÍA
E20: 1 | F20: SI | R20: 6 | S20: Cirugía menor | AF20: POR EVENTO
E21: 2 | F21: NO | R21: 7 | S21: Urgencias (sutura) | AF21: POR EVENTO
A22: =A19-0.01 -> -2.07 | B22: ¿Se atienden partos/cesáreas de embarazos de bajo riesgo en este establecimiento? | R22: 8 | S22: Atención de parto normal | AF22: POR EVENTO
E23: 1 | F23: SI | R23: 9 | S23: Control neonatal | AF23: POR EXÁMEN
E24: 2 | F24: NO | R24: 10 | S24: Vacunación / Inmunizaciones | AF24: POR INMUNIZACION
A25: =A22-0.01 -> -2.08 | B25: ¿Se atienden partos/cesáreas de embarazos de alto riesgo en este establecimiento? | R25: 11 | S25: Transfusión sanguínea | AF25: POR UNIDAD
E26: 1 | F26: SI | R26: 12 | S26: Consulta pre-natal | AF26: POR CONSULTA
E27: 2 | F27: NO | R27: 13 | S27: Ecografías | AF27: POR CONSULTA
A28: =A25-0.01 -> -2.09 | B28: ¿En este establecimiento de salud se cuenta con atención de urgencia de alta complejidad en niños? | R28: 14 | S28: Rayos X | AF28: POR CONSULTA
R29: 15 | S29: Hormonales orales | AF29: POR CICLO
E30: 1 | F30: SI | R30: 16 | S30: Hormonales inyectables | AF30: POR INYEC MENSUAL
E31: 2 | F31: NO | R31: 17 | S31: Inserción de DIU | AF31: POR EVENTO
A32: =A28-0.01 -> -2.1 | B32: ¿En este establecimiento de salud se ofrece algún tipo de análisis clínico? | R32: 18 | S32: Retiro de DIU | AF32: POR EVENTO
E33: 1 | F33: SI | R33: 19 | S33: Preservativos (condones) | AF33: POR UNIDAD
E34: 2 | F34: NO | R34: 20 | S34: Otros: | AF34: POR CONSULTA
A35: =A32-0.01 -> -2.11 | B35: ¿Dónde son procesadas las muestras?
C36: 1 | D36: EN UN LABORATORIO DE ESTE ESTABLECIMIENTO
C37: 2 | D37: EN UN LABORATORIO FUERA
A38: =A35-0.01 -> -2.12 | B38: ¿En este establecimiento de salud se ofrece servicio de imágenes?
E39: 1 | F39: SI
E40: 2 | F40: NO

Sheet 2.Prestaciones
A1: SECCIÓN 2: PRESTACIONES MÉDICAS
A2: RESPONDE: DIRECTOR/A DEL ESTABLECIMIENTO O AL SUBDIRECTOR
A3: Ahora quiero hacerle unas preguntas sobre los servicios médicos prestados en este establecimiento de salud.
B5: DÍA | E5: De los últimos siete días, señale el total de horas en que el establecimiento de salud brindó… | R5: NÚMERO SERVICIO | X5: =K7-0.01 -> -2.03 | AA5: =X5-0.01 -> -2.04 | AC5: =AA5-0.01 -> -2.05
X6: ¿Ofrece este establecimiento de salud [SERVICIO]? | AA6: ¿Cúantos días a la semana ofrecen [SERVICIO]? | AC6: ¿Cuál es el precio normalmente cobrado por este [SERVICIO]?
E7: -2.01 | K7: =E7-0.01 -> -2.02 | S7: SERVICIO
E8: Servicio de consulta externa | K8: Servicio de urgencias
E10: NÚMERO TOTAL HORAS | K10: NÚMERO TOTAL HORAS | X10: 1 | Y10: SI
B11: 1 | C11: Lunes | X11: 2 | Y11: NO
B12: 2 | C12: Martes | X12: ►PRÓXIMO SERVICIO
B13: 3 | C13: Miércoles | AA13: NÚMERO DE DÍAS
B14: 4 | C14: Jueves | AC14: MONTO { $ } | AF14: UNIDAD
B15: 5 | C15: Viernes | R15: 1 | S15: Consulta externa para niños | AF15: POR CONSULTA
B16: 6 | C16: Sábado | R16: 2 | S16: Consulta externa para adultos | AF16: POR CONSULTA
B17: 7 | C17: Domingo | R17: 3 | S17: Consulta dental | AF17: POR EVENTO
R18: 4 | S18: Consulta de especialidad | AF18: POR CONSULTA
A19: =AC5-0.01 -> -2.06 | B19: ¿Hay personal médico las 24 horas del día? | R19: 5 | S19: Hospitalización | AF19: POR DÍA
E20: 1 | F20: SI | R20: 6 | S20: Cirugía menor | AF20: POR EVENTO
E21: 2 | F21: NO | R21: 7 | S21: Urgencias (sutura) | AF21: POR EVENTO
A22: =A19-0.01 -> -2.07 | B22: ¿Se atienden partos/cesáreas de embarazos de bajo riesgo en este establecimiento? | R22: 8 | S22: Atención de parto normal | AF22: POR EVENTO
E23: 1 | F23: SI | R23: 9 | S23: Control neonatal | AF23: POR EXÁMEN
E24: 2 | F24: NO | R24: 10 | S24: Vacunación / Inmunizaciones | AF24: POR INMUNIZACION
A25: =A22-0.01 -> -2.08 | B25: ¿Se atienden partos/cesáreas de embarazos de alto riesgo en este establecimiento? | R25: 11 | S25: Transfusión sanguínea | AF25: POR UNIDAD
E26: 1 | F26: SI | R26: 12 | S26: Consulta pre-natal | AF26: POR CONSULTA
E27: 2 | F27: NO | R27: 13 | S27: Ecografías | AF27: POR CONSULTA
A28: =A25-0.01 -> -2.09 | B28: ¿En este establecimiento de salud se cuenta con atención de urgencia de alta complejidad en niños? | R28: 14 | S28: Rayos X | AF28: POR CONSULTA
R29: 15 | S29: Hormonales orales | AF29: POR CICLO
E30: 1 | F30: SI | R30: 16 | S30: Hormonales inyectables | AF30: POR INYEC MENSUAL
E31: 2 | F31: NO | R31: 17 | S31: Inserción de DIU | AF31: POR EVENTO
A32: =A28-0.01 -> -2.1 | B32: ¿En este establecimiento de salud se ofrece algún tipo de análisis clínico? | R32: 18 | S32: Retiro de DIU | AF32: POR EVENTO
E33: 1 | F33: SI | R33: 19 | S33: Preservativos (condones) | AF33: POR UNIDAD
E34: 2 | F34: NO | R34: 20 | S34: Otros: | AF34: POR CONSULTA
A35: =A32-0.01 -> -2.11 | B35: ¿Dónde son procesadas las muestras?
C36: 1 | D36: EN UN LABORATORIO DE ESTE ESTABLECIMIENTO
C37: 2 | D37: EN UN LABORATORIO FUERA
A38: =A35-0.01 -> -2.12 | B38: ¿En este establecimiento de salud se ofrece servicio de imágenes?
E39: 1 | F39: SI
E40: 2 | F40: NO

Sheet 3.Personal.ORI (hidden)
A1: SECCIÓN 3: PERSONAL
A2: RESPONDE: ENCARGADO { NOMBRE UNIDAD }
A3: Ahora quiero preguntarle sobre el personal que trabaja en este establecimiento de salud. ¿Me podría indicar el número total de personas que trabajan en este establecimiento de salud, desglosados por puesto o función?
A4: TIPO DE PERSONAL | F4: -3.01 | L4: CÓDIGO FUNCIÓN | Q4: =F4-0.01 -> -3.02 | V4: =Q4-0.01 -> -3.03 | Z4: =V4-0.01 -> -3.04
F5: ¿Me podría indicar si hay [PERSONAL] en el establecimiento? | Q5: ¿Me podría indicar el número total de personas que trabajan en este establecimiento de salud, en [FUNCIÓN]? | V5: ¿Cuál es el salario de bolsillo (promedio) de un trabajador que ejerce en [FUNCIÓN]? | Z5: ¿Cuántas horas semanales trabajan en promedio los trabajadores que ejercen [FUNCIÓN]?
F7: 1 | J7: SI | M7: PUESTO/FUNCIÓN
F8: 2 | J8: NO
F9: ► PRÓXIMO TIPO DE PERSONAL | Z9: PROMEDIO HORAS SEMANALES
Q10: NÚMERO | V10: MONTO { $ }
A11: 1 | B11: MÉDICOS | L11: 101 | M11: Clínica Médica
L12: 102 | M12: Medicina General
L13: 103 | M13: Ginecología
L14: 104 | M14: Pediatría
L15: 105 | M15: Obstetricia
L16: 106 | M16: { AGREGAR OTROS }
A17: 2 | B17: OTROS PROFESIONALES | L17: 201 | M17: Nutricionista
L18: 202 | M18: Odontólogo
L19: 203 | M19: Oftalmólogo
L20: 204 | M20: Kinesiólogo
L21: 205 | M21: Psicólogo
L22: 206 | M22: Asistente social
L23: 207 | M23: Traumatólogo
L24: 208 | M24: { AGREGAR OTROS }
A25: 3 | B25: ENFERMERÍA | L25: 301 | M25: Licenciadas
L26: 302 | M26: Enfermeras
L27: 303 | M27: Auxiliares de enfermería
L28: 304 | M28: { AGREGAR OTROS }
A29: 4 | B29: OTROS | L29: 401 | M29: Técnico de Laboratorio
L30: 402 | M30: Técnico de Radiología / imágenes
L31: 403 | M31: Alimentación/nutrición
L32: 404 | M32: Agente sanitario
L33: 405 | M33: Mucama (personal de limpieza)
L34: 406 | M34: Responsable de archivo/fichero
L35: 407 | M35: Telefonistas
L36: 408 | M36: Administrativos
L37: 409 | M37: Personal de mantenimiento
L38: 410 | M38: Otros (agregar):
L39: 411 | M39: { AGREGAR OTROS }

Sheet 3.Personal
A1: SECCIÓN 3: PERSONAL
A2: RESPONDE: ENCARGADO { NOMBRE UNIDAD }
A3: Ahora quiero preguntarle sobre el personal que trabaja en este establecimiento de salud. ¿Me podría indicar el número total de personas que trabajan en este establecimiento de salud, desglosados por puesto o función?
A4: TIPO DE PERSONAL | F4: -3.01 | L4: CÓDIGO FUNCIÓN | Q4: =F4-0.01 -> -3.02 | V4: =Q4-0.01 -> -3.03 | Z4: =V4-0.01 -> -3.04
F5: ¿Me podría indicar si hay [PERSONAL] en el establecimiento? | Q5: ¿Me podría indicar el número total de personas que trabajan en este establecimiento de salud, en [FUNCIÓN]? | V5: ¿Cuál es el salario de bolsillo (promedio) de un trabajador que ejerce en [FUNCIÓN]? | Z5: ¿Cuántas horas semanales trabajan en promedio los trabajadores que ejercen [FUNCIÓN]?
F7: 1 | J7: SI | M7: PUESTO/FUNCIÓN
F8: 2 | J8: NO
F9: ► PRÓXIMO TIPO DE PERSONAL | Z9: PROMEDIO HORAS SEMANALES
Q10: NÚMERO | V10: MONTO { $ }
A11: 1 | B11: MÉDICOS | L11: 101 | M11: Clínica Médica
L12: 102 | M12: Medicina General
L13: 103 | M13: Ginecología
L14: 104 | M14: Pediatría
L15: 105 | M15: Obstetricia
L16: 106 | M16: { AGREGAR OTROS }
A17: 2 | B17: OTROS PROFESIONALES | L17: 201 | M17: Nutricionista
L18: 202 | M18: Odontólogo
L19: 203 | M19: Oftalmólogo
L20: 204 | M20: Kinesiólogo
L21: 205 | M21: Psicólogo
L22: 206 | M22: Asistente social
L23: 207 | M23: Traumatólogo
L24: 208 | M24: { AGREGAR OTROS }
A25: 3 | B25: ENFERMERÍA | L25: 301 | M25: Licenciadas
L26: 302 | M26: Enfermeras
L27: 303 | M27: Auxiliares de enfermería
L28: 304 | M28: { AGREGAR OTROS }
A29: 4 | B29: OTROS | L29: 401 | M29: Técnico de Laboratorio
L30: 402 | M30: Técnico de Radiología / imágenes
L31: 403 | M31: Alimentación/nutrición
L32: 404 | M32: Agente sanitario
L33: 405 | M33: Mucama (personal de limpieza)
L34: 406 | M34: Responsable de archivo/fichero
L35: 407 | M35: Telefonistas
L36: 408 | M36: Administrativos
L37: 409 | M37: Personal de mantenimiento
L38: 410 | M38: Otros (agregar):
L39: 411 | M39: { AGREGAR OTROS }

Sheet 4.Equip.ORI (hidden)
A1: SECCIÓN 4: EQUIPAMIENTO
A2: RESPONDE: ENCARGADO { NOMBRE UNIDAD }
B4: CÓDIGO EQUIPO | C4: -4.01 | S4: =C4-0.01 -> -4.02 | Y4: =S4-0.01 -> -4.03
C5: Durante los últimos 30 días, ¿tuvo el personal acceso a un [EQUIPO] en condiciones de funcionar, en este establecimiento? | S5: Durante los últimos 30 días, ¿cuántos días no tuvo el personal acceso a un [EQUIPO]? | Y5: ¿Podría señalarme el número de unidades en condiciones de funcionar que tiene de [EQUIPO] en el día de hoy?
C7: ENCUESTADOR: PREGUNTE ACERCA DE TODOS LOS EQUIPOS PRIMERO, Y LUEGO HAGA LAS PREGUNTAS (4.02) A (4.03) PARA TODOS LOS EQUIPOS CUYA RESPUESTA ES "SI"
S10: ESCRIBA "0" SI NUNCA | Y10: ESCRIBA "0" SI NO TIENEN EN EL DÍA DE HOY
G11: MARQUE CON UNA "X" LA COLUMNA CORRESPONDIENTE
S13: NÚMERO DE DÍAS SIN ACCESO A [EQUIPO]
Q14: NO | R14: SI | Y14: NÚMERO
B15: 1 | C15: Estetoscopio auricular
B16: 2 | C16: Balanza infantil
B17: 3 | C17: Balanza de adultos
B18: 4 | C18: Cinta métrica
B19: 5 | C19: Cinta métrica para medir altura uterina
B20: 6 | C20: Tensiómetro
B21: 7 | C21: Termómetro
B22: 8 | C22: Termo o hielera
B23: 9 | C23: Instrumental para prueba de desarrollo
B24: 10 | C24: Balanza con estadímetro
B25: 11 | C25: Estetoscopio de Pinard
B26: 12 | C26: Colposcopio
B27: 13 | C27: Lámpara de hendidura
B28: 14 | C28: Oftalmoscopio
B29: 15 | C29: Otoscopio
B30: 16 | C30: Mesa de curación
B31: 17 | C31: Equipo de cirugía menor
B32: 18 | C32: Mesa de mayo
B33: 19 | C33: Autoclave o esterilizador
B34: 20 | C34: Juego de instrumental y campos para parto vaginal
B35: 21 | C35: Mesa o cama para parto
B36: 22 | C36: Juego de ropa de cama
B37: 23 | C37: Camilla
B38: 24 | C38: Heladera o Refrigerador
B39: 25 | C39: Incubadora
B40: 26 | C40: Ambú/ Balón de resucitación autoinflable
B41: 27 | C41: Aspirador para secreciones
B42: 28 | C42: Cilindro de oxigeno
B43: 29 | C43: Teléfono o radio
B44: 30 | C44: Ambulancia de traslado
B45: 31 | C45: Ambulancia de terapia intensiva
B46: 32 | C46: Computadora
B47: 33 | C47: Biblioteca
B48: 34 | C48: Silla/sillón
B49: 35 | C49: Escritorio
B50: 36 | C50: Vitrinas
B51: 37 | C51: Otro (especificar):
B52: 38 | C52: Otro (especificar):
B53: 39 | C53: Otro (especificar):
B54: 40 | C54: Otro (especificar):

Sheet 4.Equip
A1: SECCIÓN 4: EQUIPAMIENTO
A2: RESPONDE: ENCARGADO { NOMBRE UNIDAD }
B4: CÓDIGO EQUIPO | C4: -4.01 | S4: =C4-0.01 -> -4.02 | Y4: =S4-0.01 -> -4.03
C5: Durante los últimos 30 días, ¿tuvo el personal acceso a un [EQUIPO] en condiciones de funcionar, en este establecimiento? | S5: Durante los últimos 30 días, ¿cuántos días no tuvo el personal acceso a un [EQUIPO]? | Y5: ¿Podría señalarme el número de unidades en condiciones de funcionar que tiene de [EQUIPO] en el día de hoy?
C7: ENCUESTADOR: PREGUNTE ACERCA DE TODOS LOS EQUIPOS PRIMERO, Y LUEGO HAGA LAS PREGUNTAS (4.02) A (4.03) PARA TODOS LOS EQUIPOS CUYA RESPUESTA ES "SI"
S10: ESCRIBA "0" SI NUNCA | Y10: ESCRIBA "0" SI NO TIENEN EN EL DÍA DE HOY
G11: MARQUE CON UNA "X" LA COLUMNA CORRESPONDIENTE
S13: NÚMERO DE DÍAS SIN ACCESO A [EQUIPO]
Q14: NO | R14: SI | Y14: NÚMERO
B15: 1 | C15: Estetoscopio auricular
B16: 2 | C16: Balanza infantil
B17: 3 | C17: Balanza de adultos
B18: 4 | C18: Cinta métrica
B19: 5 | C19: Cinta métrica para medir altura uterina
B20: 6 | C20: Tensiómetro
B21: 7 | C21: Termómetro
B22: 8 | C22: Termo o hielera
B23: 9 | C23: Instrumental para prueba de desarrollo
B24: 10 | C24: Balanza con estadímetro
B25: 11 | C25: Estetoscopio de Pinard
B26: 12 | C26: Colposcopio
B27: 13 | C27: Lámpara de hendidura
B28: 14 | C28: Oftalmoscopio
B29: 15 | C29: Otoscopio
B30: 16 | C30: Mesa de curación
B31: 17 | C31: Equipo de cirugía menor
B32: 18 | C32: Mesa de mayo
B33: 19 | C33: Autoclave o esterilizador
B34: 20 | C34: Juego de instrumental y campos para parto vaginal
B35: 21 | C35: Mesa o cama para parto
B36: 22 | C36: Juego de ropa de cama
B37: 23 | C37: Camilla
B38: 24 | C38: Heladera o Refrigerador
B39: 25 | C39: Incubadora
B40: 26 | C40: Ambú/ Balón de resucitación autoinflable
B41: 27 | C41: Aspirador para secreciones
B42: 28 | C42: Cilindro de oxigeno
B43: 29 | C43: Teléfono o radio
B44: 30 | C44: Ambulancia de traslado
B45: 31 | C45: Ambulancia de terapia intensiva
B46: 32 | C46: Computadora
B47: 33 | C47: Biblioteca
B48: 34 | C48: Silla/sillón
B49: 35 | C49: Escritorio
B50: 36 | C50: Vitrinas
B51: 37 | C51: Otro (especificar):
B52: 38 | C52: Otro (especificar):
B53: 39 | C53: Otro (especificar):
B54: 40 | C54: Otro (especificar):

Sheet 5.Insumos.ORI (hidden)
A1: SECCIÓN 5: INSUMOS
A3: NÚMERO INSUMO | T3: -5.01 | Y3: =T3-0.01 -> -5.02 | AC3: =Y3-0.01 -> -5.03
T4: OBSERVE: | Y4: OBSERVE: | AC4: PREGUNTE AL RESPONSABLE:
B5: INSUMO | T5: ¿CUENTA ESTABLECIMIENTO DE SALUD CON [INSUMO] EN EL DÍA DE HOY? | Y5: ¿QUÉ CANTIDAD HAY APROXIMADAMENTE EN EL DÍA DE HOY?
AC6: Durante los últimos 30 días, ¿cuántos días no tuvo el personal acceso a [INSUMO]?
T10: 1 | W10: SI
T11: 2 | W11: NO
T12: ► PRÓXIMO INSUMO
AC13: NÚMERO DE DÍAS SIN ACCESO A [INSUMO]
Y14: CANTIDAD
A15: NIÑOS/AS
A16: 1 | B16: Tallímetro/infantómetro de madera apropiado (3 cuerpos, madera sólida, cinta métrica en buen estado sobre todo en las uniones de los cuerpos, con tope fijo, con tope móvil ‘sin juego’)
A17: 2 | B17: Balanza pediátrica de bandeja (escala mínima de 10 g) o balanza madre-bebé en buen estado
A18: 3 | B18: Balanza de pie, escala mínima 100 gs, en buen estado
A19: 4 | B19: Aerocámara espaciadora para salbutamol (puede ser elaborada artesanalmente con un vaso o un envase de suero)
A20: 5 | B20: Agua destilada para inyecciones
A21: 6 | B21: Alcohol
A22: 7 | B22: Algodón
A23: 8 | B23: Balón de oxígeno con manómetro listo para el uso y accesible
A24: 9 | B24: Cateter nasofaríngeo para niños/as
A25: 10 | B25: Carnet de Salud Infantil con hitos del desarrollo
A26: 11 | B26: Formularios de registro niños/as de 2 meses a menor de 5 años
A27: 12 | B27: Formularios de registro niños/as de 7 días a menores de 2 meses
A28: 13 | B28: Formularios de registro niños/as menores de 7 días
A29: 14 | B29: Jeringas de 1 cc y 5 cc, con agujas
A30: 15 | B30: Refrigerador funcionando exclusivo para vacunas
A31: 16 | B31: Sonda Nasogástrica para niños/as
A33: SECCIÓN 5: INSUMOS
A35: NÚMERO INSUMO | T35: -5.04 | Y35: =T35-0.01 -> -5.05 | AC35: =Y35-0.01 -> -5.06
T36: OBSERVE: | Y36: OBSERVE: | AC36: PREGUNTE AL RESPONSABLE:
B37: INSUMO | T37: ¿CUENTA ESTABLECIMIENTO DE SALUD CON [INSUMO] EN EL DÍA DE HOY? | Y37: ¿QUÉ CANTIDAD HAY APROXIMADAMENTE?
AC38: ¿Es esta cantidad suficiente para las necesidades del establecimiento de salud?
T40: 1 | W40: SI
T41: 2 | W41: NO
T42: ► PRÓXIMO INSUMO | AC42: 1 | AG42: SI
AC43: 2 | AG43: NO
Y44: CANTIDAD
A45: EMBARAZADAS
A46: 17 | B46: Formulario Historia Clínica Perinatal
A47: 18 | B47: Carnet Perinatal
A48: 19 | B48: Partograma
A49: 20 | B49: Tensiómetro en buen estado
A50: 21 | B50: Estetoscopio en buen estado
A51: 22 | B51: Cinta métrica
A52: VACUNAS
A53: 23 | B53: Antimarílica
A54: 24 | B54: Antipolio
A55: 25 | B55: BCG
A56: 26 | B56: Antirotavirus
A57: 27 | B57: Pentavalente
A58: 28 | B58: SRP
A59: 29 | B59: TT (Toxoide Tetánico)
A60: 30 | B60: dT (difteria y Tétanos)

Sheet 5.Insumos
A1: SECCIÓN 5: INSUMOS
A3: NÚMERO INSUMO | T3: -5.01 | Y3: =T3-0.01 -> -5.02 | AC3: =Y3-0.01 -> -5.03
T4: OBSERVE: | Y4: OBSERVE: | AC4: PREGUNTE AL RESPONSABLE:
B5: INSUMO | T5: ¿CUENTA ESTABLECIMIENTO DE SALUD CON [INSUMO] EN EL DÍA DE HOY? | Y5: ¿QUÉ CANTIDAD HAY APROXIMADAMENTE EN EL DÍA DE HOY?
AC6: Durante los últimos 30 días, ¿cuántos días no tuvo el personal acceso a [INSUMO]?
T10: 1 | W10: SI
T11: 2 | W11: NO
T12: ► PRÓXIMO INSUMO
AC13: NÚMERO DE DÍAS SIN ACCESO A [INSUMO]
Y14: CANTIDAD
A15: NIÑOS/AS
A16: 1 | B16: Tallímetro/infantómetro de madera apropiado (3 cuerpos, madera sólida, cinta métrica en buen estado sobre todo en las uniones de los cuerpos, con tope fijo, con tope móvil ‘sin juego’)
A17: 2 | B17: Balanza pediátrica de bandeja (escala mínima de 10 g) o balanza madre-bebé en buen estado
A18: 3 | B18: Balanza de pie, escala mínima 100 gs, en buen estado
A19: 4 | B19: Aerocámara espaciadora para salbutamol (puede ser elaborada artesanalmente con un vaso o un envase de suero)
A20: 5 | B20: Agua destilada para inyecciones
A21: 6 | B21: Alcohol
A22: 7 | B22: Algodón
A23: 8 | B23: Balón de oxígeno con manómetro listo para el uso y accesible
A24: 9 | B24: Cateter nasofaríngeo para niños/as
A25: 10 | B25: Carnet de Salud Infantil con hitos del desarrollo
A26: 11 | B26: Formularios de registro niños/as de 2 meses a menor de 5 años
A27: 12 | B27: Formularios de registro niños/as de 7 días a menores de 2 meses
A28: 13 | B28: Formularios de registro niños/as menores de 7 días
A29: 14 | B29: Jeringas de 1 cc y 5 cc, con agujas
A30: 15 | B30: Refrigerador funcionando exclusivo para vacunas
A31: 16 | B31: Sonda Nasogástrica para niños/as
A33: SECCIÓN 5: INSUMOS
A35: NÚMERO INSUMO | T35: -5.04 | Y35: =T35-0.01 -> -5.05 | AC35: =Y35-0.01 -> -5.06
T36: OBSERVE: | Y36: OBSERVE: | AC36: PREGUNTE AL RESPONSABLE:
B37: INSUMO | T37: ¿CUENTA ESTABLECIMIENTO DE SALUD CON [INSUMO] EN EL DÍA DE HOY? | Y37: ¿QUÉ CANTIDAD HAY APROXIMADAMENTE?
AC38: ¿Es esta cantidad suficiente para las necesidades del establecimiento de salud?
T40: 1 | W40: SI
T41: 2 | W41: NO
T42: ► PRÓXIMO INSUMO | AC42: 1 | AG42: SI
AC43: 2 | AG43: NO
Y44: CANTIDAD
A45: EMBARAZADAS
A46: 17 | B46: Formulario Historia Clínica Perinatal
A47: 18 | B47: Carnet Perinatal
A48: 19 | B48: Partograma
A49: 20 | B49: Tensiómetro en buen estado
A50: 21 | B50: Estetoscopio en buen estado
A51: 22 | B51: Cinta métrica
A52: VACUNAS
A53: 23 | B53: Antimarílica
A54: 24 | B54: Antipolio
A55: 25 | B55: BCG
A56: 26 | B56: Antirotavirus
A57: 27 | B57: Pentavalente
A58: 28 | B58: SRP
A59: 29 | B59: TT (Toxoide Tetánico)
A60: 30 | B60: dT (difteria y Tétanos)

Sheet 6.Medicamentos.ORI (hidden)
A1: SECCIÓN 6: MEDICAMENTOS
A3: NÚMERO MEDICAMENTO | R3: -6.01 | Y3: =R3-0.01 -> -6.02 | AD3: =Y3-0.01 -> -6.03
R4: OBSERVE: | Y4: OBSERVE: | AD4: PREGUNTE AL RESPONSABLE:
R5: ¿CUENTA ESTABLECIMIENTO DE SALUD CON [MEDICAMENTO] EN EL DÍA DE HOY? | Y5: ¿QUÉ CANTIDAD HAY APROXIMADAMENTE EN EL DÍA DE HOY? | AD5: Durante los últimos 30 días, ¿cuántos días no tuvo el personal acceso a [MEDICAMENTO]?
B7: MEDICAMENTO
R8: 1 | W8: SI
R9: 2 | W9: NO
R10: ► PRÓXIMO MEDICAMENTO
AD11: NÚMERO DE DÍAS SIN ACCESO A [MEDICAMENTO]
Y12: CANTIDAD
A13: NIÑOS/AS
A14: 1 | B14: Alimento Terapéutico Nutricional Listo para el Uso (ATLU), Plumpy Nut o BP100
A15: 2 | B15: Ceftriaxona fcos/amp. 500 mg o 1 g
A16: 3 | B16: Chispitas Nutricionales (Sobres)
A17: 4 | B17: Ciprofloxacina comp.250 mg
A18: 5 | B18: Cloranfenicol amp.1 g
A19: 6 | B19: Cotrimoxazol jarabe pediátrico (200/40/5mL)
A20: 7 | B20: Cotrimoxazol, tab de 100/20 mg
A21: 8 | B21: Dextrosa 5% 500 o 1000 mL
A22: 9 | B22: Gentamicina, amp.20, 40 mg o 80 mg
A23: 10 | B23: Hierro Gts 25 mg/mL de hierro elemental o 125 mg de sulfato ferroso (Ferrasol)
A24: 11 | B24: Mebendazol,tab 500 mg o tab.de 100 mg
A25: 12 | B25: Nistatina suspensión (1mL=100,000 UI)
A26: 13 | B26: Paracetamol jarabe 120 mg(5mL)
A27: 14 | B27: Paracetamol tab. de 100 mg
A28: 15 | B28: Pen.procaínica, 1.000,000 ó 800,000 ó 400,000 UI
A29: 16 | B29: Ringer lactato, 500 o 1000 mL
A30: 17 | B30: Salbutamol en aerosol 100 mcg/dosis
A31: 18 | B31: Suero de la Vida o SRO de baja osmolaridad (245 mOsm/L)
A32: 19 | B32: Suero de la Vida o SRO estándar (311 mOsm/L)
A33: 20 | B33: Suero fisiológico 0.9% 500 ó 1.000 mL
A34: 21 | B34: Vitamina A 100.000 UI
A35: 22 | B35: Vitamina A 200.000 UI
A36: 23 | B36: Zinc , tabletas ‘dispersables’ de 20mg
A37: 24 | B37: Zinc , jarabe de 20 mg/5mL
A39: SECCIÓN 6: MEDICAMENTOS
A42: NÚMERO MEDICAMENTO | R42: -6.04 | Y42: =R42-0.01 -> -6.05 | AD42: =Y42-0.01 -> -6.06
R43: OBSERVE: | Y43: OBSERVE: | AD43: PREGUNTE AL RESPONSABLE:
R44: ¿CUENTA ESTABLECIMIENTO DE SALUD CON [MEDICAMENTO]? | Y44: ¿QUÉ CANTIDAD HAY APROXIMADAMENTE?
AD45: ¿Es esta cantidad suficiente para las necesidades del establecimiento de salud?
R47: 1 | W47: SI
R48: 2 | W48: NO
R49: ► PRÓXIMO MEDICAMENTO | AD49: 1 | AI49: SI
AD50: 2 | AI50: NO
Y51: CANTIDAD
A52: EMBARAZADAS
A53: 25 | B53: Alfametildopa tab. 500 mg
A54: 26 | B54: Amoxicilina comp. 500 mg o 1g
A55: 27 | B55: Ampicilina amp. 1g
A56: 28 | B56: Ciprofloxacina comp. 500 mg
A57: 29 | B57: Doxiciclina tab. 100 mg
A58: 30 | B58: Eritromicina comp. 500 mg
A59: 31 | B59: Metronidazol tab.500 mg
A60: 32 | B60: Nifedipino tab. 10 mg
A61: 33 | B61: Paracetamol tab. 500 mg
A62: 34 | B62: Peniicilina benzatínica amp. 1,200.000 UI o 2,400.000 UI
A63: 35 | B63: Sulfato ferroso tab, 60 mg
A64: MEDICAMENTOS ANTIMALÁRICOS, PARA ESTABLECIMIENTOS EN ZONAS DE RIESGO PARA MALARIA
A65: 36 | B65: Artesunato comp.50mg
A66: 37 | B66: Clindamicina susp.75mg/5mL
A67: 38 | B67: Cloroquina, tab.150 mg
A68: 39 | B68: Diclorhidrato de quinina, amp 300 mg/2mL
A69: 40 | B69: Mefloquina tab 250 mg
A70: 41 | B70: Primaquina, tab.5 mg
A71: 42 | B71: Quinina, amp.600 mg
A72: 43 | B72: Quinina sulfato, tab.300 mg

Sheet 6.Medicamentos
A1: SECCIÓN 6: MEDICAMENTOS
A3: NÚMERO MEDICAMENTO | R3: -6.01 | Y3: =R3-0.01 -> -6.02 | AD3: =Y3-0.01 -> -6.03
R4: OBSERVE: | Y4: OBSERVE: | AD4: PREGUNTE AL RESPONSABLE:
R5: ¿CUENTA ESTABLECIMIENTO DE SALUD CON [MEDICAMENTO] EN EL DÍA DE HOY? | Y5: ¿QUÉ CANTIDAD HAY APROXIMADAMENTE EN EL DÍA DE HOY? | AD5: Durante los últimos 30 días, ¿cuántos días no tuvo el personal acceso a [MEDICAMENTO]?
B7: MEDICAMENTO
R8: 1 | W8: SI
R9: 2 | W9: NO
R10: ► PRÓXIMO MEDICAMENTO
AD11: NÚMERO DE DÍAS SIN ACCESO A [MEDICAMENTO]
Y12: CANTIDAD
A13: NIÑOS/AS
A14: 1 | B14: Alimento Terapéutico Nutricional Listo para el Uso (ATLU), Plumpy Nut o BP100
A15: 2 | B15: Ceftriaxona fcos/amp. 500 mg o 1 g
A16: 3 | B16: Chispitas Nutricionales (Sobres)
A17: 4 | B17: Ciprofloxacina comp.250 mg
A18: 5 | B18: Cloranfenicol amp.1 g
A19: 6 | B19: Cotrimoxazol jarabe pediátrico (200/40/5mL)
A20: 7 | B20: Cotrimoxazol, tab de 100/20 mg
A21: 8 | B21: Dextrosa 5% 500 o 1000 mL
A22: 9 | B22: Gentamicina, amp.20, 40 mg o 80 mg
A23: 10 | B23: Hierro Gts 25 mg/mL de hierro elemental o 125 mg de sulfato ferroso (Ferrasol)
A24: 11 | B24: Mebendazol,tab 500 mg o tab.de 100 mg
A25: 12 | B25: Nistatina suspensión (1mL=100,000 UI)
A26: 13 | B26: Paracetamol jarabe 120 mg(5mL)
A27: 14 | B27: Paracetamol tab. de 100 mg
A28: 15 | B28: Pen.procaínica, 1.000,000 ó 800,000 ó 400,000 UI
A29: 16 | B29: Ringer lactato, 500 o 1000 mL
A30: 17 | B30: Salbutamol en aerosol 100 mcg/dosis
A31: 18 | B31: Suero de la Vida o SRO de baja osmolaridad (245 mOsm/L)
A32: 19 | B32: Suero de la Vida o SRO estándar (311 mOsm/L)
A33: 20 | B33: Suero fisiológico 0.9% 500 ó 1.000 mL
A34: 21 | B34: Vitamina A 100.000 UI
A35: 22 | B35: Vitamina A 200.000 UI
A36: 23 | B36: Zinc , tabletas ‘dispersables’ de 20mg
A37: 24 | B37: Zinc , jarabe de 20 mg/5mL
A39: SECCIÓN 6: MEDICAMENTOS
A42: NÚMERO MEDICAMENTO | R42: -6.04 | Y42: =R42-0.01 -> -6.05 | AD42: =Y42-0.01 -> -6.06
R43: OBSERVE: | Y43: OBSERVE: | AD43: PREGUNTE AL RESPONSABLE:
R44: ¿CUENTA ESTABLECIMIENTO DE SALUD CON [MEDICAMENTO]? | Y44: ¿QUÉ CANTIDAD HAY APROXIMADAMENTE?
AD45: ¿Es esta cantidad suficiente para las necesidades del establecimiento de salud?
R47: 1 | W47: SI
R48: 2 | W48: NO
R49: ► PRÓXIMO MEDICAMENTO | AD49: 1 | AI49: SI
AD50: 2 | AI50: NO
Y51: CANTIDAD
A52: EMBARAZADAS
A53: 25 | B53: Alfametildopa tab. 500 mg
A54: 26 | B54: Amoxicilina comp. 500 mg o 1g
A55: 27 | B55: Ampicilina amp. 1g
A56: 28 | B56: Ciprofloxacina comp. 500 mg
A57: 29 | B57: Doxiciclina tab. 100 mg
A58: 30 | B58: Eritromicina comp. 500 mg
A59: 31 | B59: Metronidazol tab.500 mg
A60: 32 | B60: Nifedipino tab. 10 mg
A61: 33 | B61: Paracetamol tab. 500 mg
A62: 34 | B62: Peniicilina benzatínica amp. 1,200.000 UI o 2,400.000 UI
A63: 35 | B63: Sulfato ferroso tab, 60 mg
A64: MEDICAMENTOS ANTIMALÁRICOS, PARA ESTABLECIMIENTOS EN ZONAS DE RIESGO PARA MALARIA
A65: 36 | B65: Artesunato comp.50mg
A66: 37 | B66: Clindamicina susp.75mg/5mL
A67: 38 | B67: Cloroquina, tab.150 mg
A68: 39 | B68: Diclorhidrato de quinina, amp 300 mg/2mL
A69: 40 | B69: Mefloquina tab 250 mg
A70: 41 | B70: Primaquina, tab.5 mg
A71: 42 | B71: Quinina, amp.600 mg
A72: 43 | B72: Quinina sulfato, tab.300 mg

Sheet 7.Observ.ORI (hidden)
A1: SECCIÓN 7: OBSERVACIÓN DIRECTA DE INSTALACIONES
A2: Ahora quisiera ver las instalaciones de este establecimiento de salud y tomar algunas notas. ¿Podría llevarme por favor a la (o una de las) sala(s) donde examinan a los pacientes?
A3: ENCUESTADOR: HACER LAS SIGUIENTES OBSERVACIONES DE UNA SOLA SALA DONDE EXAMINAN A LOS PACIENTES.
A4: UNA VEZ QUE LLEGUE USTED A LA SALA, OBSERVE Y ANOTE LAS REPUESTAS. NO FORMULE NINGUNA PREGUNTA, A MENOS QUE SEA NECESARIA ALGUNA ACLARACIÓN.
A5: -7.01 | B5: ¿ESTÁ EL PISO LIMPIO, O SE OBSERVA EN ÉL POLVO, RESTOS DE COMIDA O BASURA? | S5: =A39-0.01 -> -7.07 | T5: ¿LA SALA CUENTA CON MESA DE EXPLORACIÓN / CAMILLA?
T6: SI LA MESA NO ESTÁ A LA VISTA PEDIR PERMISO PARA VERLA
C7: 1 | D7: MUY LIMPIO | U7: 1 | V7: SI
C8: 2 | D8: LIMPIO | U8: 2 | V8: NO
C9: 3 | D9: REGULAR
C10: 4 | D10: SUCIO | S10: =S5-0.01 -> -7.08 | T10: ¿LA SALA CUENTA CON MESA DE EXPLORACIÓN GINECOLÓGICA?
C11: 5 | D11: MUY SUCIO | T11: SI LA MESA NO ESTÁ A LA VISTA PEDIR PERMISO PARA VERLA
U12: 1 | V12: SI
A13: =A5-0.01 -> -7.02 | B13: ¿ESTÁN LAS PAREDES LIMPIAS, O SE OBSERVAN EN ELLAS TELARAÑAS, HUMEDAD O PINTURA RASPADA O DESCASCARADA? | U13: 2 | V13: NO
C15: 1 | D15: MUY LIMPIO | S15: ¿Ahora podria usted mostrarme el sitio donde almacenan las vacunas en este establecimiento de salud?
C16: 2 | D16: LIMPIO | S16: =S10-0.01 -> -7.09 | T16: ¿DÓNDE SE ALMACENAN LAS VACUNAS?
C17: 3 | D17: REGULAR | U17: 1 | V17: HELADERA O REFRIGERADOR EXCLUSIVO PARA VACUNAS
C18: 4 | D18: SUCIO | U18: 2 | V18: HELADERA O REFRIGERADOR DE USOS MÚLTIPLES
C19: 5 | D19: MUY SUCIO | U19: 3 | V19: HIELERA NO ELÉCTRICA
U20: 4 | V20: NO APLICABLE
A21: =A13-0.01 -> -7.03 | B21: ¿HAY PRIVACIDAD PARA EL EXAMEN DE LOS PACIENTES? | U21: 5 | V21: OTRO
B22: SI EL LUGAR NO ESTÁ A LA VISTA PEDIR PERMISO PARA VERLO
C23: 1 | D23: SI | S23: =S16-0.01 -> -7.1 | T23: ¿EL REFRIGERADOR CUENTA CON MEDIDOR Y REGISTRO DE TEMPERATURA?
C24: 2 | D24: NO | U24: 1 | V24: SI
A25: =A21-0.01 -> -7.04 | B25: ¿ESTÁN LIMPIAS LAS CORTINAS? | U25: 2 | V25: NO
C26: 1 | D26: MUY LIMPIAS
C27: 2 | D27: LIMPIAS | S27: =S23-0.01 -> -7.11 | T27: ¿SE OBSERVA EL DESCARTADOR DE AGUJAS (LA CAJA ROJA ESPECIAL) PARA RECOLECTAR OBJETOS PUNZO CORTANTES?
C28: 3 | D28: REGULAR
C29: 4 | D29: SUCIAS | T29: SI EL DESCARTADOR NO ESTÁ A LA VISTA PEDIR PERMISO PARA VERLO
C30: 5 | D30: MUY SUCIAS | U30: 1 | V30: SI
C31: 6 | D31: NO EXISTEN CORTINAS | U31: 2 | V31: NO
U32: 3 | V32: NO HAY DESCARTADOR
A33: =A25-0.01 -> -7.05 | B33: ¿CON QUÉ ELEMENTOS SE DISPONE PARA EL ASEO DE MANOS EN LA SALA DE EXPLORACIÓN?
B34: 1 | C34: PILETA O FREGADERO O LAVABO CON AGUA ENTUBADA | S34: =S27-0.01 -> -7.12 | T34: ¿EL RECIPIENTE PARA LA BASURA DE LA SALA DE INMUNIZACIONES ESTA CUBIERTO POR UNA BOLSA ROJA?
B35: 2 | C35: PILETA O FREGADERO O LAVABO CON RECIPIENTE PARA AGUA
B36: 3 | C36: NO CUENTA CON NINGÚN ELEMENTO | T36: SI EL RECIPIENTE NO ESTÁ A LA VISTA PEDIR PERMISO PARA VERLO
B37: 4 | C37: OTRO | U37: 1 | V37: SI
U38: 2 | V38: NO
A39: =A33-0.01 -> -7.06 | B39: ¿EXISTEN CESTOS O TACHOS PARA LA DISPOSICIÓN DE BASURA EN LA SALA DE EXPLORACIÓN? | U39: 3 | V39: NO HAY RECIPIENTE
B41: SI EL CESTO NO ESTÁ A LA VISTA PEDIR PERMISO PARA VERLO
C42: 1 | D42: SI
C43: 2 | D43: NO

Sheet 7.Observ
A1: SECCIÓN 7: OBSERVACIÓN DIRECTA DE INSTALACIONES
A2: Ahora quisiera ver las instalaciones de este establecimiento de salud y tomar algunas notas. ¿Podría llevarme por favor a la (o una de las) sala(s) donde examinan a los pacientes?
A3: ENCUESTADOR: HACER LAS SIGUIENTES OBSERVACIONES DE UNA SOLA SALA DONDE EXAMINAN A LOS PACIENTES.
A4: UNA VEZ QUE LLEGUE USTED A LA SALA, OBSERVE Y ANOTE LAS REPUESTAS. NO FORMULE NINGUNA PREGUNTA, A MENOS QUE SEA NECESARIA ALGUNA ACLARACIÓN.
A5: -7.01 | B5: ¿ESTÁ EL PISO LIMPIO, O SE OBSERVA EN ÉL POLVO, RESTOS DE COMIDA O BASURA? | S5: =A39-0.01 -> -7.07 | T5: ¿LA SALA CUENTA CON MESA DE EXPLORACIÓN / CAMILLA?
T6: SI LA MESA NO ESTÁ A LA VISTA PEDIR PERMISO PARA VERLA
C7: 1 | D7: MUY LIMPIO | U7: 1 | V7: SI
C8: 2 | D8: LIMPIO | U8: 2 | V8: NO
C9: 3 | D9: REGULAR
C10: 4 | D10: SUCIO | S10: =S5-0.01 -> -7.08 | T10: ¿LA SALA CUENTA CON MESA DE EXPLORACIÓN GINECOLÓGICA?
C11: 5 | D11: MUY SUCIO | T11: SI LA MESA NO ESTÁ A LA VISTA PEDIR PERMISO PARA VERLA
U12: 1 | V12: SI
A13: =A5-0.01 -> -7.02 | B13: ¿ESTÁN LAS PAREDES LIMPIAS, O SE OBSERVAN EN ELLAS TELARAÑAS, HUMEDAD O PINTURA RASPADA O DESCASCARADA? | U13: 2 | V13: NO
C15: 1 | D15: MUY LIMPIO | S15: ¿Ahora podria usted mostrarme el sitio donde almacenan las vacunas en este establecimiento de salud?
C16: 2 | D16: LIMPIO | S16: =S10-0.01 -> -7.09 | T16: ¿DÓNDE SE ALMACENAN LAS VACUNAS?
C17: 3 | D17: REGULAR | U17: 1 | V17: HELADERA O REFRIGERADOR EXCLUSIVO PARA VACUNAS
C18: 4 | D18: SUCIO | U18: 2 | V18: HELADERA O REFRIGERADOR DE USOS MÚLTIPLES
C19: 5 | D19: MUY SUCIO | U19: 3 | V19: HIELERA NO ELÉCTRICA
U20: 4 | V20: NO APLICABLE
A21: =A13-0.01 -> -7.03 | B21: ¿HAY PRIVACIDAD PARA EL EXAMEN DE LOS PACIENTES? | U21: 5 | V21: OTRO
B22: SI EL LUGAR NO ESTÁ A LA VISTA PEDIR PERMISO PARA VERLO
C23: 1 | D23: SI | S23: =S16-0.01 -> -7.1 | T23: ¿EL REFRIGERADOR CUENTA CON MEDIDOR Y REGISTRO DE TEMPERATURA?
C24: 2 | D24: NO | U24: 1 | V24: SI
A25: =A21-0.01 -> -7.04 | B25: ¿ESTÁN LIMPIAS LAS CORTINAS? | U25: 2 | V25: NO
C26: 1 | D26: MUY LIMPIAS
C27: 2 | D27: LIMPIAS | S27: =S23-0.01 -> -7.11 | T27: ¿SE OBSERVA EL DESCARTADOR DE AGUJAS (LA CAJA ROJA ESPECIAL) PARA RECOLECTAR OBJETOS PUNZO CORTANTES?
C28: 3 | D28: REGULAR
C29: 4 | D29: SUCIAS | T29: SI EL DESCARTADOR NO ESTÁ A LA VISTA PEDIR PERMISO PARA VERLO
C30: 5 | D30: MUY SUCIAS | U30: 1 | V30: SI
C31: 6 | D31: NO EXISTEN CORTINAS | U31: 2 | V31: NO
U32: 3 | V32: NO HAY DESCARTADOR
A33: =A25-0.01 -> -7.05 | B33: ¿CON QUÉ ELEMENTOS SE DISPONE PARA EL ASEO DE MANOS EN LA SALA DE EXPLORACIÓN?
B34: 1 | C34: PILETA O FREGADERO O LAVABO CON AGUA ENTUBADA | S34: =S27-0.01 -> -7.12 | T34: ¿EL RECIPIENTE PARA LA BASURA DE LA SALA DE INMUNIZACIONES ESTA CUBIERTO POR UNA BOLSA ROJA?
B35: 2 | C35: PILETA O FREGADERO O LAVABO CON RECIPIENTE PARA AGUA
B36: 3 | C36: NO CUENTA CON NINGÚN ELEMENTO | T36: SI EL RECIPIENTE NO ESTÁ A LA VISTA PEDIR PERMISO PARA VERLO
B37: 4 | C37: OTRO | U37: 1 | V37: SI
U38: 2 | V38: NO
A39: =A33-0.01 -> -7.06 | B39: ¿EXISTEN CESTOS O TACHOS PARA LA DISPOSICIÓN DE BASURA EN LA SALA DE EXPLORACIÓN? | U39: 3 | V39: NO HAY RECIPIENTE
B41: SI EL CESTO NO ESTÁ A LA VISTA PEDIR PERMISO PARA VERLO
C42: 1 | D42: SI
C43: 2 | D43: NO

Sheet Resource (hidden)
A1: ENGLISH | B1: FRANÇAIS | C1: ESPAÑOL
A2: Variable Properties | B2: Propriétés de la variable | C2: Propiedades de la variable
A3: Data entry range for the variable | B3: Rang d'entrée de données pour la variable | C3: Rango de entrada de datos de la variable
A4: Variable type | B4: Type de variable | C4: Tipo de la variable
A5: Quantitative | B5: Quantitative | C5: Cuantitativa
A6: Qualitative | B6: Qualitative | C6: Cualitativa
A7: Typographic | B7: Typographique | C7: Tipográfica
A8: Chronographic | B8: Chronographique | C8: Cronográfica
A9: Variable range | B9: Rang de la variable | C9: Rango de la variable
A10: Minimum: | B10: Minimum: | C10: Mínimo
A11: Maximum: | B11: Maximum: | C11: Máximo
A12: Variable categories | B12: Categories de la variable | C12: Categorías de la variable
A13: Category: | B13: Categorie: | C13: Categoría:
A14: Add | B14: Ajouter | C14: Agregar
A15: Remove | B15: Supprimer | C15: Eliminar
A16: Code: | B16: Code: | C16: Código:
A17: Name: | B17: Nom: | C17: Nombre:
A18: OK | B18: OK | C18: Aceptar
A19: Cancel | B19: Annuler | C19: Cancelar
A20: RT: | B20: CE: | C20: CR:
A21: New RT | B21: Nouvelle CE | C21: Nueva CR
A22: Name is blank. | B22: Nom est en blanc. | C22: El nombre está en blanco.
A23: A variable with this name already exists. | B23: Une variable avec ce nom existe dej | C23: Una variable con este nombre ya existe.
A24: Name is blank. | C24: El nombre está en blanco.
A25: Size | C25: Largo
A26: Invalid entry. | C26: Entrada inválida
A27: The minimum cannot be greater than the maximum. | C27: El mínimo no puede ser mayor que el máximo.
A28: Are you sure? | C28: ¿Está seguro?
A29: Dictionary | C29: Diccionario
A30: Variable: | C30: Variable:
A31: Create new variable in RT | C31: Crear nueva variable en la CR
A32: Record Type | C32: Clase de Registro
A33: < Back | C33: < Atrás
A34: Next > | C34: Siguiente >
A35: Finish | C35: Terminar
A36: Name | C36: Nombre
A37: Description | C37: Descripción
A38: Unconditional skip | C38: Salto incondicional
A39: No | C39: No
A40: Yes | C40: Sí
A41: <Empty slot> | C41: <Casilla vacía>
A42: Enter a description for the new Record Type | C42: Ingrese una descripción para la nueva Clase de Registro
A43: Create… | C43: Crear…
A44: You cannot remove the first range unless you remove the subsequent ranges | C44: No se puede eliminar el primer rango sin haber eliminado los rangos subsiguientes
A45: Shape… | C45: Forma…
A46: &RT | C46: &CR
A47: Create or edit a Record Type definition (Ctrl+Shift+R) | C47: Crear o editar una definición de Clase de Registro (Ctrl+Shift+R)
A48: V&AR | C48: V&AR
A49: Create or edit a Variable definition (Ctrl+Shift+V) | C49: Crear o editar una definición de Variable (Ctrl+Shift+V)
A50: &DIC | C50: &DIC
A51: Edit the contents of the dictionary (Ctrl+Shift+D) | C51: Editar el contenido del diccionario (Ctrl+Shift+D)
A52: There are no Record Types defined. | C52: No hay Clases de Registro definidas.
A53: Choose the Record Type of the variable: | C53: Escoja la Clase de Registro de la variable:
A54: Enter a name for the variable: | C54: Ingrese un nombre para la variable:
A55: Enter a description for the variable: | C55: Ingrese una descripción para la variable:
A56: Choose the type of the variable: | C56: Escoja el tipo de la variable:
A57: Enter the total size for the variable: | C57: Ingrese el largo total de la variable:
A58: Enter the number of decimals for the variable: | C58: Ingrese la cantidad de decimales de la variable:
A59: Cond. | C59: Cond.
A60: If variable | C60: Si la variable
A61: in RT | C61: en la CR
A62: ranges from | C62: va desde
A63: to | C63: hasta
A64: skip to | C64: salta a
A65: in RT | C65: en la CR
A66: Another condition | C66: Otra condición
A67: Numeric ranges | C67: Rangos numéricos
A68: Categories | C68: Categorías
A69: Enter the numeric ranges that are valid for the variable: | C69: Ingrese los rangos numéricos que son válidos para la variable:
A70: Enter the category codes and names for the variable: | C70: Ingrese los códigos y nombres de las categorías para la variable:
A71: Summary | C71: Resumen
A72: Variable in RT | C72: Variable en la CR
A73: Type | C73: Tipo
A74: Temporary Dictionary | C74: Diccionario Temporal
A75: Type: | C75: Tipo:
A76: Total size: | C76: Largo total:
A77: Decimals: | C77: Decimales:
A78: Apply | C78: Aplicar
A79: Restore | C79: Restaurar
A80: There are no variables defined. | C80: No hay variables definidas.
A81: Out of range: press Yes to force the entry, No to retry, or Cancel to restore the cell value. | C81: Fuera de rango: pulse Sí para forzar la entrada, No para reintentar, o Cancelar para restaurar el valor de la celda.
A82: File not found. | C82: No se encuentra el archivo.
A83: External File | C83: Archivo Externo
A84: Category code: | C84: Código de la categoría:
A85: Category name: | C85: Nombre de la categoría:
A86: Position | C86: Posición
A87: Length | C87: Largo
A88: Ext. File… | C88: Arch. Ext…
A89: File name: | C89: Nombre del archivo:
A90: Choose an external file | C90: Escoja un archivo externo
A91: &Skips | C91: &Saltos
A92: Edit variable in RT | C92: Editar variable en la CR
A93: You must select a data entry cell for the variable you want to edit. | C93: Se debe seleccionar una celda de entrada de datos para la variable que se quiere editar.
A94: Skips | C94: Saltos
A95: Sheet | C95: Hoja
A96: Row | C96: Fila
A97: Column | C97: Columna
A98: Lines | C98: Líneas
A99: Data entry range offsets | C99: Offsets del rango de entrada de datos
A100: Record Type Shape | C100: Forma de la Clase de Registro
A101: Me | C101: Me
A102: End of RT | C102: End of RT
A103: RT | C103: CR
A104: Variable | C104: Variable
A105: Observation | C105: Observación
A106: From | C106: Desde
A107: To | C107: Hasta
A108: Variable | C108: Variable
A109: If | C109: Si
A110: Ranges | C110: Va
A111: Jump to | C111: Salta a
A112: You must select a data entry cell for the Record Type you want to check. | C112: Se debe seleccionar una celda de entrada de datos para la Clase de Registro que se quiere corregir.
A113: Designer toolbar | C113: Barra del Diseñador
A114: Operator toolbar | C114: Barra del Operador
A115: &Check | C115: &Chequeo
A116: Check data entry (Ctrl+Shift+C) | C116: Chequea la entrada de datos (Ctrl+Shift+C)
A117: Inter | C117: Inter
A118: Check data entry across Record Types (Ctrl+Shift+E) | C118: Corrige la entrada de datos a través de las Clases de Registro (Ctrl+Shift+E)
A119: Variable | C119: Variable
A120: is not blank, in spite of variable | C120: no está en blanco, a pesar que la variable
A121: in | C121: en
A122: being | C122: es
A123: for record with code | C123: para el registro con código
A124: is blank | C124: está en blanco
A125: Do you wish to continue checking this record? | C125: ¿Quiere seguir corrigiendo este registro?
A126: - to continue checking the same record, click Yes, | C126: - para seguir corrigiendo el mismo registro, presione Sí,
A127: - to go on checking from the next record, click No, | C127: - para continuar corrigiendo desde el siguiente registro, presione No,
A128: - to quit checking, click Cancel. | C128: - para dejar de corregir, presione Cancelar.
A129: Initial conditions for | C129: Condiciones iniciales para
A130: Preprinted | C130: Preimpresa
A131: Range… | C131: Rango…
A132: Copy | C132: Copiar
A133: Delete | C133: Eliminar
A134: Use the keyboard to select the first cell of the data entry range, then click here. | C134: Use el teclado para seleccionar la primera celda del rango de entrada de datos, y luego presione aquí.
A135: Distribute | C135: Distribuir
A136: Creates the data entry program for the operator (Ctrl+Shift+I) | C136: Crear el programa de entrada de datos para el operador (Ctrl+Shift+I)
A137: Create new Record Type | C137: Crear nueva Clase de Registro
A138: Enter a 3-digit code for the Record Type: | C138: Ingrese un código de 3 dígitos para la Clase de Registro:
A139: Enter a description for the Record Type: | C139: Ingrese una descripción para la Clase de Registro:
A140: Code | C140: Código
A141: Description | C141: Descripción
A142: Code: | C142: Código:
A143: Description: | C143: Descripción:
A144: blank | C144: en blanco
A145: This will save your work and create the Data Entry Program for the operator. | C145: Esto guardará su trabajo y creará el Programa de Entrada de Datos para el operador.
A146: Do you wish to continue? | C146: ¿Desea continuar?
A147: Duplicate name in Record Type: | C147: Nombre repetido en la Clase de Registro:
A148: already has name | C148: ya tiene el nombre
A149: You must define a Shape for the Record Type first. | C149: Debe definir la Forma de la Clase de Registro primero.
A150: Duplicate Record Type code: | C150: Código de Clase de Registro repetido:
A151: already has code | C151: ya tiene el código
A152: Record Type | C152: Clase de Registro
A153: Range | C153: Rango
A154: Skips… | C154: Saltos…
A155: Continue? | C155: ¿Continuar?
A156: Date format: | C156: Formato de fecha:
A157: Invalid date format. | C157: Formato de fecha inválido.
A158: Date does not exist. | C158: La fecha no existe.
A159: Date format | C159: Formato de fecha
A160: Enter the date formats for the variable, as it should be shown on the screen and written to the file: | C160: Ingrese los formatos cronográficos de la variable, tanto para mostrar en pantalla como para escribir al archivo:
A161: Screen format: | C161: Formato de pantalla:
A162: File format: | C162: Formato de archivo:
A163: Date ranges | C163: Rangos cronográficos
A164: Enter the date ranges that are valid for the variable (Write the dates using the screen format): | C164: Ingrese los rangos cronográficos que son válidos para la variable (Escriba la fecha utilizando el formato de pantalla):
A165: Date is out of range. | C165: La fecha está fuera de rango.
A166: ="'*** Start of code block ***" -> '*** Start of code block *** | C166: ="'*** Inicio del bloque de código ***" -> '*** Inicio del bloque de código ***
A167: ="'*** End of code block ***" -> '*** End of code block *** | C167: ="'*** Fin del bloque de código ***" -> '*** Fin del bloque de código ***
A168: Questionnaire ID cannot contain blanks. | C168: Identificador del cuestionario no puede contener blancos.
A169: Identifiers: | C169: Identificadores:
A170: Invalid code | C170: Código invalido
A171: Text too long | C171: Texto demasiado largo
A172: Move up | C172: Subir
A173: Move down | C173: Bajar
A174: Options… | C174: Opciones…
A175: Options for variable | C175: Opciones para la variable
A176: Address: | C176: Dirección:
A177: Data entry range | C177: Rango de entrada de datos
A178: Number of identifiers | C178: Cantidad de identificadores
A179: Number of records | C179: Cantidad de registros
A180: Enter the number of identifiers for the Record Type: | C180: Ingrese la cantidad de identificadores para la Clase de Registro:
A181: Enter the number of records for the Record Type: | C181: Ingrese la cantidad de registros para la Clase de Registro:
A182: Identifiers | C182: Identificadores
A183: Records | C183: Registros
A184: &Open | C184: &Abrir
A185: Open an existent questionnaire | C185: Abrir un cuestionario existente
A186: &Save | C186: &Guardar
A187: Save the current questionnaire | C187: Guardar el cuestionario actual
A188: This file contains invalid records. | C188: Este archivo contiene registros inválidos.
A189: Edit… | C189: Editar…
A190: Record Types: | C190: Clases de Registro:
A191: Variables: | C191: Variables:
A192: Allow blanks | C192: Permitir blancos
A193: Data folder not found. | C193: No se encontró la carpeta de datos.
A194: Data folder does not exist. Do you wish to create it? | C194: Carpeta de datos no existe. ¿Desea crearla?
A195: Data folder could not be created. Specify the complete path. | C195: Carpeta de datos no pudo ser creada. Especifique la ruta completa.
A196: Invalid folder name. | C196: Nombre de carpeta inválido.
A197: Data folder | C197: Carpeta de datos
A198: Enter the complete name of the folder where you want to store the data: | C198: Ingrese el nombre completo de la carpeta donde desea guardar los datos:
A199: Data entry program configuration | C199: Configuración del programa de entrada de datos
A200: Data | C200: Datos
... 153 more rows

Sheet Parameters (hidden)
A1: DATAENTRYCELLBGCOLOR | B1: PRINTEDCELLBGCOLOR | C1: FORCEDCELLBGCOLOR | D1: DATESCREENFORMATS | E1: DATEFILEFORMATS | F1: LANGUAGE | G1: BLACK
D2: MM-DD-YYYY | E2: MM-DD-YYYY | F2: 3 | G2: *
D3: MM-DD-YYYY hh:mm | E3: MM-DD-YYYY hh:mm
D4: MM-DD-YYYY hh:mm:ss | E4: MM-DD-YYYY hh:mm:ss
D5: DD-MM-YYYY | E5: DD-MM-YYYY
D6: DD-MM-YYYY hh:mm | E6: DD-MM-YYYY hh:mm
D7: DD-MM-YYYY hh:mm:ss | E7: DD-MM-YYYY hh:mm:ss
D8: MM-YYYY | E8: MM-YYYY
D9: MM-DD-YY | E9: MM-DD-YY
D10: MM-DD-YY hh:mm | E10: MM-DD-YY hh:mm
D11: MM-DD-YY hh:mm:ss | E11: MM-DD-YY hh:mm:ss
D12: DD-MM-YY | E12: DD-MM-YY
D13: DD-MM-YY hh:mm | E13: DD-MM-YY hh:mm
D14: DD-MM-YY hh:mm:ss | E14: DD-MM-YY hh:mm:ss
D15: MM-YY | E15: MM-YY
D16: MM/DD/YYYY | E16: MM/DD/YYYY
D17: MM/DD/YYYY hh:mm | E17: MM/DD/YYYY hh:mm
D18: MM/DD/YYYY hh:mm:ss | E18: MM/DD/YYYY hh:mm:ss
D19: DD/MM/YYYY | E19: DD/MM/YYYY
D20: DD/MM/YYYY hh:mm | E20: DD/MM/YYYY hh:mm
D21: DD/MM/YYYY hh:mm:ss | E21: DD/MM/YYYY hh:mm:ss
D22: MM/YYYY | E22: MM/YYYY
D23: MM/DD/YY | E23: MM/DD/YY
D24: MM/DD/YY hh:mm | E24: MM/DD/YY hh:mm
D25: MM/DD/YY hh:mm:ss | E25: MM/DD/YY hh:mm:ss
D26: DD/MM/YY | E26: DD/MM/YY
D27: DD/MM/YY hh:mm | E27: DD/MM/YY hh:mm
D28: DD/MM/YY hh:mm:ss | E28: DD/MM/YY hh:mm:ss
D29: MM/YY | E29: MM/YY
E30: MMDDYYYY
E31: MMDDYYYYhhmm
E32: MMDDYYYYhhmmss
E33: DDMMYYYY
E34: DDMMYYYYhhmm
E35: DDMMYYYYhhmmss
E36: MMYYYY
E37: MMDDYY
E38: MMDDYYhhmm
E39: MMDDYYhhmmss
E40: DDMMYY
E41: DDMMYYhhmm
E42: DDMMYYhhmmss
E43: MMYY
E44: YYYYMMDD
E45: YYYYMMDDhhmm
E46: YYYYMMDDhhmmss
E47: YYYYDDMM
E48: YYYYDDMMhhmm
E49: YYYYDDMMhhmmss
E50: YYYYMM
E51: YYMMDD
E52: YYMMDDhhmm
E53: YYMMDDhhmmss
E54: YYDDMM
E55: YYDDMMhhmm
E56: YYDDMMhhmmss
E57: YYMM

Sheet Dictionary (hidden)
C1: 8 | F1: c:\PeI_PED\Salud\Datos\ | G1: 1 | H1: "S" & id_est
A2: 1 | B2: 001: Establecimiento Salud | C2: 159 | D2: 0 | E2: 1
A3: id_est | B3: Identificador Establecimiento | C3: FALSE | D3: FALSE | E3: 0 | F3: 4 | G3: 0 | H3: 1~ | I3: 200~ | J3: Portada~ | K3: 5~ | L3: 29~ | M3: 1~
A4: s00_p01 | B4: Nombre del establecimiento | C4: FALSE | D4: FALSE | E4: 2 | F4: 50 | G4: 0 | J4: Portada~ | K4: 5~ | L4: 11~ | M4: 1~
A5: s00_p02 | B5: Región/Estado | C5: FALSE | D5: FALSE | E5: 0 | F5: 3 | G5: 0 | H5: 0~ | I5: 999~ | J5: Portada~ | K5: 9~ | L5: 16~ | M5: 1~
A6: s00_p03 | B6: Provincia | C6: FALSE | D6: FALSE | E6: 0 | F6: 3 | G6: 0 | H6: 0~ | I6: 999~ | J6: Portada~ | K6: 11~ | L6: 16~ | M6: 1~
A7: s00_p04 | B7: Municipio | C7: FALSE | D7: FALSE | E7: 0 | F7: 3 | G7: 0 | H7: 0~ | I7: 999~ | J7: Portada~ | K7: 13~ | L7: 16~ | M7: 1~
A8: s00_p05 | B8: Localidad | C8: FALSE | D8: FALSE | E8: 0 | F8: 3 | G8: 0 | H8: 0~ | I8: 999~ | J8: Portada~ | K8: 15~ | L8: 16~ | M8: 1~
A9: s00_p06 | B9: Zona/Barrio | C9: FALSE | D9: FALSE | E9: 2 | F9: 50 | G9: 0 | J9: Portada~ | K9: 17~ | L9: 7~ | M9: 1~
A10: s00_p07 | B10: Calle | C10: FALSE | D10: FALSE | E10: 2 | F10: 50 | G10: 0 | J10: Portada~ | K10: 19~ | L10: 7~ | M10: 1~
A11: s00_p08 | B11: Número | C11: FALSE | D11: FALSE | E11: 2 | F11: 50 | G11: 0 | J11: Portada~ | K11: 21~ | L11: 7~ | M11: 1~
A12: s00_p09 | B12: Otras referencias | C12: FALSE | D12: FALSE | E12: 2 | F12: 50 | G12: 0 | J12: Portada~ | K12: 23~ | L12: 8~ | M12: 1~
A13: s00_p10_g | B13: 06: Latitud Geográfica (grados) | C13: FALSE | D13: FALSE | E13: 0 | F13: 2 | G13: 0 | H13: 0~ | I13: 56~ | J13: Portada~ | K13: 26~ | L13: 6~ | M13: 1~
A14: s00_p10_m | B14: 06: Latitud Geográfica (minutos) | C14: FALSE | D14: FALSE | E14: 0 | F14: 2 | G14: 0 | H14: 0~ | I14: 59~ | J14: Portada~ | K14: 26~ | L14: 9~ | M14: 1~
A15: s00_p10_s | B15: 06: Latitud Geográfica (segundos) | C15: FALSE | D15: FALSE | E15: 0 | F15: 5 | G15: 2 | H15: 0~ | I15: 59~ | J15: Portada~ | K15: 26~ | L15: 12~ | M15: 1~
A16: s00_p11_g | B16: 07: Longitud Geográfica (grados) | C16: FALSE | D16: FALSE | E16: 0 | F16: 2 | G16: 0 | H16: 0~ | I16: 99~ | J16: Portada~ | K16: 28~ | L16: 6~ | M16: 1~
A17: s00_p11_m | B17: 07: Longitud Geográfica (minutos) | C17: FALSE | D17: FALSE | E17: 0 | F17: 2 | G17: 0 | H17: 0~ | I17: 59~ | J17: Portada~ | K17: 28~ | L17: 9~ | M17: 1~
A18: s00_p11_s | B18: 07: Longitud Geográfica (segundos) | C18: FALSE | D18: FALSE | E18: 0 | F18: 5 | G18: 2 | H18: 0~ | I18: 59~ | J18: Portada~ | K18: 28~ | L18: 12~ | M18: 1~
A19: s00_p12 | B19: Tipo | C19: FALSE | D19: FALSE | E19: 1 | F19: 1 | G19: 0 | H19: 1~2~3~4~5~6~ | I19: HOSPITAL BÁSICO~CLINICA PRIVADA~CENTRO DE SALUD~PUESTO DE SALUD~OPCIÓN 5~OPCIÓN 6~ | J19: Portada~ | K19: 9~ | L19: 26~ | M19: 1~
A20: s00_p13 | B20: Nombre del director | C20: FALSE | D20: FALSE | E20: 2 | F20: 50 | G20: 0 | J20: Portada~ | K20: 19~ | L20: 22~ | M20: 1~
A21: s00_p14_1 | B21: Teléfono 1 | C21: FALSE | D21: FALSE | E21: 0 | F21: 9 | G21: 0 | H21: 1111111~ | I21: 9999999~ | J21: Portada~ | K21: 23~ | L21: 25~ | M21: 1~
A22: s00_p14_2 | B22: Teléfono 2 | C22: TRUE | D22: FALSE | E22: 0 | F22: 9 | G22: 0 | H22: 1111111~ | I22: 9999999~ | J22: Portada~ | K22: 25~ | L22: 25~ | M22: 1~
A23: s00_p14_3 | B23: Teléfono 3 | C23: TRUE | D23: FALSE | E23: 0 | F23: 9 | G23: 0 | H23: 1111111~ | I23: 9999999~ | J23: Portada~ | K23: 28~ | L23: 25~ | M23: 1~
A24: s00_p15 | B24: Encuestador/a | C24: FALSE | D24: FALSE | E24: 0 | F24: 3 | G24: 0 | H24: 1~ | I24: 40~ | J24: Portada~ | K24: 34~ | L24: 12~ | M24: 1~
A25: s00_p16 | B25: Supervisor/a | C25: FALSE | D25: FALSE | E25: 0 | F25: 3 | G25: 0 | H25: 1~ | I25: 20~ | J25: Portada~ | K25: 36~ | L25: 12~ | M25: 1~
A26: s00_p17 | B26: Otro Personal 1 | C26: TRUE | D26: FALSE | E26: 0 | F26: 3 | G26: 0 | H26: 1~ | I26: 10~ | J26: Portada~ | K26: 38~ | L26: 12~ | M26: 1~
A27: s00_p18 | B27: Otro Personal 2 | C27: TRUE | D27: FALSE | E27: 0 | F27: 3 | G27: 0 | H27: 1~ | I27: 10~ | J27: Portada~ | K27: 40~ | L27: 12~ | M27: 1~
A28: s00_p19 | B28: Otro Personal 3 | C28: TRUE | D28: FALSE | E28: 0 | F28: 3 | G28: 0 | H28: 1~ | I28: 10~ | J28: Portada~ | K28: 42~ | L28: 12~ | M28: 1~
A29: s00_p20_1_d | B29: Fecha Visita (día) | C29: FALSE | D29: FALSE | E29: 0 | F29: 2 | G29: 0 | H29: 1~ | I29: 31~ | J29: Portada~ | K29: 38~ | L29: 18~ | M29: 1~
A30: s00_p20_1_m | B30: Fecha visita 1 (mes) | C30: FALSE | D30: FALSE | E30: 0 | F30: 2 | G30: 0 | H30: 1~ | I30: 12~ | J30: Portada~ | K30: 38~ | L30: 19~ | M30: 1~
A31: s00_p20_1_a | B31: Fecha visita 1 (año) | C31: FALSE | D31: FALSE | E31: 0 | F31: 4 | G31: 0 | H31: 2012~ | I31: 2020~ | J31: Portada~ | K31: 38~ | L31: 20~ | M31: 1~
A32: s00_p20_1_r | B32: Resultado visita 1 | C32: FALSE | D32: FALSE | E32: 1 | F32: 1 | G32: 0 | H32: 1~2~3~4~5~6~ | I32: COMPLETA~PARCIAL~RECHAZO~NO CONTACTÓ~NO LO ENCONTRÓ~OTRO~ | J32: Portada~ | K32: 38~ | L32: 22~ | M32: 1~
A33: s00_p20_1_i_h | B33: Hora inicio visita 1 (horas) | C33: FALSE | D33: FALSE | E33: 0 | F33: 2 | G33: 0 | H33: 0~ | I33: 23~ | J33: Portada~ | K33: 38~ | L33: 23~ | M33: 1~
A34: s00_p20_1_i_m | B34: Hora inicio visita 1 (minutos) | C34: FALSE | D34: FALSE | E34: 0 | F34: 2 | G34: 0 | H34: 0~ | I34: 59~ | J34: Portada~ | K34: 38~ | L34: 24~ | M34: 1~
A35: s00_p20_1_f_h | B35: Hora fin visita 1 (horas) | C35: FALSE | D35: FALSE | E35: 0 | F35: 2 | G35: 0 | H35: 0~ | I35: 23~ | J35: Portada~ | K35: 38~ | L35: 25~ | M35: 1~
A36: s00_p20_1_f_m | B36: Hora fin visita 1 (minutos) | C36: FALSE | D36: FALSE | E36: 0 | F36: 2 | G36: 0 | H36: 0~ | I36: 59~ | J36: Portada~ | K36: 38~ | L36: 26~ | M36: 1~
A37: s00_p20_2_d | B37: Fecha Visita 2 (día) | C37: TRUE | D37: FALSE | E37: 0 | F37: 2 | G37: 0 | H37: 1~ | I37: 31~ | J37: Portada~ | K37: 39~ | L37: 18~ | M37: 1~
A38: s00_p20_2_m | B38: Fecha visita 2 (mes) | C38: TRUE | D38: FALSE | E38: 0 | F38: 2 | G38: 0 | H38: 1~ | I38: 12~ | J38: Portada~ | K38: 39~ | L38: 19~ | M38: 1~
A39: s00_p20_2_a | B39: Fecha visita 2 (año) | C39: TRUE | D39: FALSE | E39: 0 | F39: 4 | G39: 0 | H39: 2012~ | I39: 2020~ | J39: Portada~ | K39: 39~ | L39: 20~ | M39: 1~
A40: s00_p20_2_r | B40: Resultado visita 2 | C40: TRUE | D40: FALSE | E40: 1 | F40: 1 | G40: 0 | H40: 1~2~3~4~5~6~ | I40: COMPLETA~PARCIAL~RECHAZO~NO CONTACTÓ~NO LO ENCONTRÓ~OTRO~ | J40: Portada~ | K40: 39~ | L40: 22~ | M40: 1~
A41: s00_p20_2_i_h | B41: Hora inicio visita 2 (horas) | C41: TRUE | D41: FALSE | E41: 0 | F41: 2 | G41: 0 | H41: 0~ | I41: 23~ | J41: Portada~ | K41: 39~ | L41: 23~ | M41: 1~
A42: s00_p20_2_i_m | B42: Hora inicio visita 2 (minutos) | C42: TRUE | D42: FALSE | E42: 0 | F42: 2 | G42: 0 | H42: 0~ | I42: 59~ | J42: Portada~ | K42: 39~ | L42: 24~ | M42: 1~
A43: s00_p20_2_f_h | B43: Hora fin visita 2 (horas) | C43: TRUE | D43: FALSE | E43: 0 | F43: 2 | G43: 0 | H43: 0~ | I43: 23~ | J43: Portada~ | K43: 39~ | L43: 25~ | M43: 1~
A44: s00_p20_2_f_m | B44: Hora fin visita 2 (minutos) | C44: TRUE | D44: FALSE | E44: 0 | F44: 2 | G44: 0 | H44: 0~ | I44: 59~ | J44: Portada~ | K44: 39~ | L44: 26~ | M44: 1~
A45: s00_p20_3_d | B45: Fecha Visita 3 (día) | C45: TRUE | D45: FALSE | E45: 0 | F45: 2 | G45: 0 | H45: 1~ | I45: 31~ | J45: Portada~ | K45: 40~ | L45: 18~ | M45: 1~
A46: s00_p20_3_m | B46: Fecha visita 3 (mes) | C46: TRUE | D46: FALSE | E46: 0 | F46: 2 | G46: 0 | H46: 1~ | I46: 12~ | J46: Portada~ | K46: 40~ | L46: 19~ | M46: 1~
A47: s00_p20_3_a | B47: Fecha visita 3 (año) | C47: TRUE | D47: FALSE | E47: 0 | F47: 4 | G47: 0 | H47: 2012~ | I47: 2020~ | J47: Portada~ | K47: 40~ | L47: 20~ | M47: 1~
A48: s00_p20_3_r | B48: Resultado visita 3 | C48: TRUE | D48: FALSE | E48: 1 | F48: 1 | G48: 0 | H48: 1~2~3~4~5~6~ | I48: COMPLETA~PARCIAL~RECHAZO~NO CONTACTÓ~NO LO ENCONTRÓ~OTRO~ | J48: Portada~ | K48: 40~ | L48: 22~ | M48: 1~
A49: s00_p20_3_i_h | B49: Hora inicio visita 3 (horas) | C49: TRUE | D49: FALSE | E49: 0 | F49: 2 | G49: 0 | H49: 0~ | I49: 23~ | J49: Portada~ | K49: 40~ | L49: 23~ | M49: 1~
A50: s00_p20_3_i_m | B50: Hora inicio visita 3 (minutos) | C50: TRUE | D50: FALSE | E50: 0 | F50: 2 | G50: 0 | H50: 0~ | I50: 59~ | J50: Portada~ | K50: 40~ | L50: 24~ | M50: 1~
A51: s00_p20_3_f_h | B51: Hora fin visita 3 (horas) | C51: TRUE | D51: FALSE | E51: 0 | F51: 2 | G51: 0 | H51: 0~ | I51: 23~ | J51: Portada~ | K51: 40~ | L51: 25~ | M51: 1~
A52: s00_p20_3_f_m | B52: Hora fin visita 3 (minutos) | C52: TRUE | D52: FALSE | E52: 0 | F52: 2 | G52: 0 | H52: 0~ | I52: 59~ | J52: Portada~ | K52: 40~ | L52: 26~ | M52: 1~
A53: s00_p20_4_d | B53: Fecha Visita 4 (día) | C53: TRUE | D53: FALSE | E53: 0 | F53: 2 | G53: 0 | H53: 1~ | I53: 31~ | J53: Portada~ | K53: 41~ | L53: 18~ | M53: 1~
A54: s00_p20_4_m | B54: Fecha visita 4 (mes) | C54: TRUE | D54: FALSE | E54: 0 | F54: 2 | G54: 0 | H54: 1~ | I54: 12~ | J54: Portada~ | K54: 41~ | L54: 19~ | M54: 1~
A55: s00_p20_4_a | B55: Fecha visita 4 (año) | C55: TRUE | D55: FALSE | E55: 0 | F55: 4 | G55: 0 | H55: 2012~ | I55: 2020~ | J55: Portada~ | K55: 41~ | L55: 20~ | M55: 1~
A56: s00_p20_4_r | B56: Resultado visita 4 | C56: TRUE | D56: FALSE | E56: 1 | F56: 1 | G56: 0 | H56: 1~2~3~4~5~6~ | I56: COMPLETA~PARCIAL~RECHAZO~NO CONTACTÓ~NO LO ENCONTRÓ~OTRO~ | J56: Portada~ | K56: 41~ | L56: 22~ | M56: 1~
A57: s00_p20_4_i_h | B57: Hora inicio visita 4 (horas) | C57: TRUE | D57: FALSE | E57: 0 | F57: 2 | G57: 0 | H57: 0~ | I57: 23~ | J57: Portada~ | K57: 41~ | L57: 23~ | M57: 1~
A58: s00_p20_4_i_m | B58: Hora inicio visita 4 (minutos) | C58: TRUE | D58: FALSE | E58: 0 | F58: 2 | G58: 0 | H58: 0~ | I58: 59~ | J58: Portada~ | K58: 41~ | L58: 24~ | M58: 1~
A59: s00_p20_4_f_h | B59: Hora fin visita 4 (horas) | C59: TRUE | D59: FALSE | E59: 0 | F59: 2 | G59: 0 | H59: 0~ | I59: 23~ | J59: Portada~ | K59: 41~ | L59: 25~ | M59: 1~
A60: s00_p20_4_f_m | B60: Hora fin visita 4 (minutos) | C60: TRUE | D60: FALSE | E60: 0 | F60: 2 | G60: 0 | H60: 0~ | I60: 59~ | J60: Portada~ | K60: 41~ | L60: 26~ | M60: 1~
A61: s00_p22 | B61: Idioma de la entrevista | C61: FALSE | D61: FALSE | E61: 1 | F61: 1 | G61: 0 | H61: 1~2~3~4~5~6~ | I61: CASTELLANO~OPCIÓN 2~OPCIÓN 3~OPCIÓN 4~OPCIÓN 5~OPCIÓN 6~ | J61: Portada~ | K61: 34~ | L61: 34~ | M61: 1~
A62: s01_p01_a | B62: (1,01): Nombre del entrevistado | C62: FALSE | D62: FALSE | E62: 2 | F62: 50 | G62: 0 | J62: 1.General~ | K62: 5~ | L62: 6~ | M62: 1~
A63: s01_p01_b | B63: (1,01): Teléfono del entrevistado | C63: FALSE | D63: FALSE | E63: 2 | F63: 50 | G63: 0 | J63: 1.General~ | K63: 7~ | L63: 6~ | M63: 1~
A64: s01_p02 | B64: (1,02): Cargo en el establecimiento | C64: FALSE | D64: FALSE | E64: 1 | F64: 1 | G64: 0 | H64: 1~2~3~ | I64: DIRECTOR/A~SUB-DIRECTOR/A~OTRO (ESPECIFIQUE)~ | J64: 1.General~ | K64: 10~ | L64: 14~ | M64: 1~ | N64: 001~ | O64: s01_p02~ | P64: ~ | Q64: 1~ | R64: 2~ | S64: s01_p03~
A65: s01_p02_otra | B65: (1,02): Otra | C65: FALSE | D65: FALSE | E65: 2 | F65: 50 | G65: 0 | J65: 1.General~ | K65: 12~ | L65: 8~ | M65: 1~
A66: s01_p03 | B66: (1,03): ¿De quién depende el establecimiento? | C66: FALSE | D66: FALSE | E66: 1 | F66: 1 | G66: 0 | H66: 1~2~3~4~5~6~ | I66: MINISTERIO DE SALUD~ENTIDAD PRIVADA~ORGANIZACIÓN NO-GUBERNAMENTAL (ONG)~MISIÓN/ORGANIZACIÓN RELIGIOSA~MILITAR~OTRA (ESPECIFIQUE)~ | J66: 1.General~ | K66: 15~ | L66: 14~ | M66: 1~ | N66: 001~ | O66: s01_p03~ | P66: ~ | Q66: 1~ | R66: 5~ | S66: s01_p04~
A67: s01_p03_otra | B67: (1,03): Otra | C67: FALSE | D67: FALSE | E67: 2 | F67: 50 | G67: 0 | J67: 1.General~ | K67: 20~ | L67: 8~ | M67: 1~
A68: s01_p04 | B68: (1,04): Año de inicio de actividades | C68: FALSE | D68: FALSE | E68: 0 | F68: 4 | G68: 0 | H68: 1950~ | I68: 2012~ | J68: 1.General~ | K68: 23~ | L68: 14~ | M68: 1~
A69: s01_p05 | B69: (1,05): Población en zona de influencia | C69: FALSE | D69: FALSE | E69: 0 | F69: 4 | G69: 0 | H69: 1~ | I69: 9999~ | J69: 1.General~ | K69: 28~ | L69: 14~ | M69: 1~
A70: s01_p06 | B70: (1,06): % de población con cobertura de salud | C70: FALSE | D70: FALSE | E70: 0 | F70: 3 | G70: 0 | H70: 0~ | I70: 100~ | J70: 1.General~ | K70: 32~ | L70: 14~ | M70: 1~
A71: s01_p07 | B71: (1,07): Principal fuente de electricidad | C71: FALSE | D71: FALSE | E71: 1 | F71: 1 | G71: 0 | H71: 1~2~ | I71: SI~NO TIENEN ELECTRICIDAD~ | J71: 1.General~ | K71: 7~ | L71: 32~ | M71: 1~ | N71: 001~ | O71: s01_p07~ | P71: ~ | Q71: 2~ | R71: 2~ | S71: s01_p13~
A72: s01_p08 | B72: (1,08): Frecuencia de interrupción de electricidad | C72: FALSE | D72: FALSE | E72: 1 | F72: 1 | G72: 0 | H72: 1~2~3~4~5~ | I72: Casi a diario~Algunas veces por semana~Algunas veces al mes~Algunas veces al año~Nunca o casi nunca~ | J72: 1.General~ | K72: 10~ | L72: 32~ | M72: 1~
A73: s01_p09 | B73: (1,09): Fuente de abastecimiento de agua | C73: FALSE | D73: FALSE | E73: 1 | F73: 1 | G73: 0 | H73: 1~2~3~4~5~6~ | I73: RED PÚBLICA (AGUA CORRIENTE)~DE PERFORACIÓN CON BOMBA MOTOR~DE PERFORACIÓN CON BOMBA MANUAL~DE POZO CON BOMBA~DE POZO SIN BOMBA~OPCIÓN 6~ | J73: 1.General~ | K73: 19~ | L73: 32~ | M73: 1~
A74: s01_p10 | B74: (1,10): ¿La fuente está adentro? | C74: FALSE | D74: FALSE | E74: 1 | F74: 1 | G74: 0 | H74: 1~2~ | I74: SI~NO~ | J74: 1.General~ | K74: 27~ | L74: 32~ | M74: 1~ | N74: 001~ | O74: s01_p10~ | P74: ~ | Q74: 1~ | R74: 1~ | S74: s01_p12~
A75: s01_p11_d | B75: (1,11): Distancia a la fuente de agua | C75: FALSE | D75: FALSE | E75: 0 | F75: 2 | G75: 0 | H75: 0~ | I75: 99~ | J75: 1.General~ | K75: 32~ | L75: 24~ | M75: 1~
A76: s01_p11_ud | B76: (1,11): Unidad de distancia | C76: FALSE | D76: FALSE | E76: 1 | F76: 1 | G76: 0 | H76: 1~2~ | I76: KILÓMETROS~METROS~ | J76: 1.General~ | K76: 32~ | L76: 32~ | M76: 1~
A77: s01_p12 | B77: (1,12): Servicio sanitario disponible | C77: FALSE | D77: FALSE | E77: 1 | F77: 1 | G77: 0 | H77: 1~2~3~4~ | I77: INODORO CONECTADO AL SISTEMA DE DRENAJE~INODORO CONECTADO A FOSA SÉPTICA~LETRINA~OPCIÓN 4~ | J77: 1.General~ | K77: 36~ | L77: 32~ | M77: 1~
A78: s01_p13 | B78: (1,13): Forma de comunicación principal | C78: FALSE | D78: FALSE | E78: 1 | F78: 1 | G78: 0 | H78: 1~2~3~4~5~6~7~8~ | I78: TELEFONÍA FIJA~TELEFONÍA CELULAR~RADIO/HANDY~INTERNET~TELÉFONO SEMIPÚBLICO~LÍNEA CENTREX~NO POSEE~OPCIÓN 8~ | J78: 1.General~ | K78: 45~ | L78: 14~ | M78: 1~
A79: s01_p14_1 | B79: (1,14): ¿Desechan agujas en descartador? | C79: FALSE | D79: FALSE | E79: 1 | F79: 1 | G79: 0 | H79: 1~2~ | I79: SI~NO~ | J79: 1.General~ | K79: 59~ | L79: 14~ | M79: 1~
A80: s01_p14_2 | B80: (1,14): ¿Desechan agujas en bolsas rojas? | C80: FALSE | D80: FALSE | E80: 1 | F80: 1 | G80: 0 | H80: 1~2~ | I80: SI~NO~ | J80: 1.General~ | K80: 60~ | L80: 14~ | M80: 1~
A81: s01_p14_3 | B81: (1,14): ¿Desechan agujas junto con la basura? | C81: FALSE | D81: FALSE | E81: 1 | F81: 1 | G81: 0 | H81: 1~2~ | I81: SI~NO~ | J81: 1.General~ | K81: 61~ | L81: 14~ | M81: 1~
A82: s01_p14_4 | B82: (1,14): ¿Desechan agujas (otra)? | C82: FALSE | D82: FALSE | E82: 1 | F82: 1 | G82: 0 | H82: 1~2~ | I82: SI~NO~ | J82: 1.General~ | K82: 62~ | L82: 14~ | M82: 1~ | N82: 001~ | O82: s01_p14_4~ | P82: ~ | Q82: 2~ | R82: 2~ | S82: s01_p15_1~
A83: s01_p14_otra | B83: (1,14): Otra | C83: FALSE | D83: FALSE | E83: 2 | F83: 50 | G83: 0 | J83: 1.General~ | K83: 62~ | L83: 8~ | M83: 1~
A84: s01_p15_1 | B84: (1,15): ¿Eliminan residuos por recolector especial? | C84: FALSE | D84: FALSE | E84: 1 | F84: 1 | G84: 0 | H84: 1~2~ | I84: SI~NO~ | J84: 1.General~ | K84: 67~ | L84: 14~ | M84: 1~
A85: s01_p15_2 | B85: (1,15): ¿Eliminan residuos por traslado a centro? | C85: FALSE | D85: FALSE | E85: 1 | F85: 1 | G85: 0 | H85: 1~2~ | I85: SI~NO~ | J85: 1.General~ | K85: 68~ | L85: 14~ | M85: 1~
A86: s01_p15_3 | B86: (1,15): ¿Eliminan residuos por recolector público? | C86: FALSE | D86: FALSE | E86: 1 | F86: 1 | G86: 0 | H86: 1~2~ | I86: SI~NO~ | J86: 1.General~ | K86: 69~ | L86: 14~ | M86: 1~
A87: s01_p15_4 | B87: (1,15): ¿Eliminan residuos por incineración? | C87: FALSE | D87: FALSE | E87: 1 | F87: 1 | G87: 0 | H87: 1~2~ | I87: SI~NO~ | J87: 1.General~ | K87: 70~ | L87: 14~ | M87: 1~
A88: s01_p15_5 | B88: (1,15): ¿Eliminan residuos enterrándolos? | C88: FALSE | D88: FALSE | E88: 1 | F88: 1 | G88: 0 | H88: 1~2~ | I88: SI~NO~ | J88: 1.General~ | K88: 71~ | L88: 14~ | M88: 1~
A89: s01_p15_6 | B89: (1,15): ¿Eliminan residuos por (otra)? | C89: FALSE | D89: FALSE | E89: 1 | F89: 1 | G89: 0 | H89: 1~2~ | I89: SI~NO~ | J89: 1.General~ | K89: 72~ | L89: 14~ | M89: 1~ | N89: 001~ | O89: s01_p15_6~ | P89: ~ | Q89: 2~ | R89: 2~ | S89: s01_p16~
A90: s01_p15_otra | B90: (1,15): Otra | C90: FALSE | D90: FALSE | E90: 2 | F90: 50 | G90: 0 | J90: 1.General~ | K90: 72~ | L90: 8~ | M90: 1~
A91: s01_p16 | B91: (1,16): Frecuencia con que reutilizan agujas | C91: FALSE | D91: FALSE | E91: 1 | F91: 1 | G91: 0 | H91: 1~2~3~4~ | I91: NUNCA~RARA VEZ~ALGUNAS VECES~FRECUENTEMENTE~ | J91: 1.General~ | K91: 75~ | L91: 14~ | M91: 1~
A92: s01_p17 | B92: (1,17): ¿Visita de supervisión últimos 6 meses? | C92: FALSE | D92: FALSE | E92: 1 | F92: 1 | G92: 0 | H92: 1~2~ | I92: SI~NO~ | J92: 1.General~ | K92: 46~ | L92: 32~ | M92: 1~ | N92: 001~ | O92: s01_p17~ | P92: ~ | Q92: 2~ | R92: 2~ | S92: s01_p22~
A93: s01_p18 | B93: (1,18): ¿Cuántas visitas recibió? | C93: FALSE | D93: FALSE | E93: 0 | F93: 2 | G93: 0 | H93: 0~ | I93: 99~ | J93: 1.General~ | K93: 49~ | L93: 32~ | M93: 1~
A94: s01_p19 | B94: (1,19): ¿Fue visitado por la (red de salud)? | C94: FALSE | D94: FALSE | E94: 1 | F94: 1 | G94: 0 | H94: 1~2~ | I94: SI~NO~ | J94: 1.General~ | K94: 51~ | L94: 32~ | M94: 1~
A95: s01_p20 | B95: (1,20): ¿Fue visitado por el (nivel central)? | C95: FALSE | D95: FALSE | E95: 1 | F95: 1 | G95: 0 | H95: 1~2~ | I95: SI~NO~ | J95: 1.General~ | K95: 54~ | L95: 32~ | M95: 1~
A96: s01_p21 | B96: (1,12): ¿Hubo atención de menores de 5 en visita? | C96: FALSE | D96: FALSE | E96: 1 | F96: 1 | G96: 0 | H96: 1~2~ | I96: SI~NO~ | J96: 1.General~ | K96: 57~ | L96: 32~ | M96: 1~
A97: s01_p22 | B97: (1,22): ¿Existe Gestor de Calidad como personal? | C97: FALSE | D97: FALSE | E97: 1 | F97: 1 | G97: 0 | H97: 1~2~ | I97: SI~NO~ | J97: 1.General~ | K97: 62~ | L97: 32~ | M97: 1~
A98: s01_p23 | B98: (1,23): ¿Hubo auditoría interna en útlima gestión? | C98: FALSE | D98: FALSE | E98: 1 | F98: 1 | G98: 0 | H98: 1~2~ | I98: SI~NO~ | J98: 1.General~ | K98: 65~ | L98: 32~ | M98: 1~
A99: s01_p24 | B99: (1,24): ¿Han habido quejas el último mes? | C99: FALSE | D99: FALSE | E99: 1 | F99: 1 | G99: 0 | H99: 1~2~ | I99: SI~NO~ | J99: 1.General~ | K99: 69~ | L99: 32~ | M99: 1~
A100: s01_p25 | B100: (1,25): ¿Cuentan con plan de gestión de riesgos? | C100: FALSE | D100: FALSE | E100: 1 | F100: 1 | G100: 0 | H100: 1~2~ | I100: SI~NO~ | J100: 1.General~ | K100: 73~ | L100: 32~ | M100: 1~
A101: s01_p26 | B101: (1,26): ¿Quién realiza mantención de equipos médicos? | C101: FALSE | D101: FALSE | E101: 1 | F101: 1 | G101: 0 | H101: 1~2~3~4~ | I101: SERVICIO PRIVADO~SERVICIO PÚBLICO~PERSONAL DEL ESTABLECIMIENTO DE SALUD~OTRO (ESPECIFIQUE)~ | J101: 1.General~ | K101: 77~ | L101: 32~ | M101: 1~ | N101: 001~ | O101: s01_p26~ | P101: ~ | Q101: 1~ | R101: 3~ | S101: s01_p27~
A102: s01_p26_otra | B102: (1,26): Otra | C102: FALSE | D102: FALSE | E102: 2 | F102: 50 | G102: 0 | J102: 1.General~ | K102: 80~ | L102: 27~ | M102: 1~
A103: s01_p27 | B103: (1,27): ¿Derivan pacientes a otros establecimientos? | C103: FALSE | D103: FALSE | E103: 1 | F103: 1 | G103: 0 | H103: 1~2~ | I103: SI~NO~ | J103: 1.General~ | K103: 86~ | L103: 14~ | M103: 1~ | N103: 001~ | O103: s01_p27~ | P103: ~ | Q103: 2~ | R103: 2~ | S103: s01_p30_1~
A104: s01_p28 | B104: (1,28): ¿Dónde se derivan los pacientes? | C104: FALSE | D104: FALSE | E104: 1 | F104: 1 | G104: 0 | H104: 1~2~3~4~5~ | I104: A UN HOSPITAL~A UNA CLÍNICA PRIVADA~A UN CENTRO DE SALUD~A UN PUESTO DE SALUD~OTRO (ESPECIFIQUE)~ | J104: 1.General~ | K104: 90~ | L104: 14~ | M104: 1~ | N104: 001~ | O104: s01_p28~ | P104: ~ | Q104: 1~ | R104: 4~ | S104: s01_p29~
A105: s01_p28_otra | B105: (1,28): Otra | C105: FALSE | D105: FALSE | E105: 2 | F105: 50 | G105: 0 | J105: 1.General~ | K105: 94~ | L105: 9~ | M105: 1~
A106: s01_p29 | B106: (1,29): Distancia al centro de derivación | C106: FALSE | D106: FALSE | E106: 0 | F106: 2 | G106: 0 | H106: 0~ | I106: 99~ | J106: 1.General~ | K106: 98~ | L106: 14~ | M106: 1~
A107: s01_p30_1 | B107: (1,30): ¿Recibió ingresos del ministerio de salud? | C107: FALSE | D107: FALSE | E107: 1 | F107: 1 | G107: 0 | H107: 1~2~ | I107: SI~NO~ | J107: 1.General~ | K107: 94~ | L107: 26~ | M107: 1~ | N107: 001~ | O107: s01_p30_1~ | P107: ~ | Q107: 2~ | R107: 2~ | S107: s01_p30_2~
A108: s01_p31_1 | B108: (1,31): ¿Cuánto recibio del ministerio de salud? | C108: FALSE | D108: FALSE | E108: 0 | F108: 5 | G108: 0 | H108: 1~ | I108: 99999~ | J108: 1.General~ | K108: 94~ | L108: 30~ | M108: 1~
A109: s01_p30_2 | B109: (1,30): ¿Recibió ingresos de cargos a usuarios? | C109: FALSE | D109: FALSE | E109: 1 | F109: 1 | G109: 0 | H109: 1~2~ | I109: SI~NO~ | J109: 1.General~ | K109: 95~ | L109: 26~ | M109: 1~ | N109: 001~ | O109: s01_p30_2~ | P109: ~ | Q109: 2~ | R109: 2~ | S109: s01_p30_3~
A110: s01_p31_2 | B110: (1,31): ¿Cuánto recibio por cargos a usuarios? | C110: FALSE | D110: FALSE | E110: 0 | F110: 5 | G110: 0 | H110: 0~ | I110: 99999~ | J110: 1.General~ | K110: 95~ | L110: 30~ | M110: 1~
A111: s01_p30_3 | B111: (1,30): ¿Recibió ingresos de venta de medicamentos? | C111: FALSE | D111: FALSE | E111: 1 | F111: 1 | G111: 0 | H111: 1~2~ | I111: SI~NO~ | J111: 1.General~ | K111: 96~ | L111: 26~ | M111: 1~ | N111: 001~ | O111: s01_p30_3~ | P111: ~ | Q111: 2~ | R111: 2~ | S111: s01_p30_4~
A112: s01_p31_3 | B112: (1,31): ¿Cuánto recibio por venta de medicamentos? | C112: FALSE | D112: FALSE | E112: 0 | F112: 5 | G112: 0 | H112: 0~ | I112: 99999~ | J112: 1.General~ | K112: 96~ | L112: 30~ | M112: 1~
A113: s01_p30_4 | B113: (1,30): ¿Recibió ingresos de entidad privada? | C113: FALSE | D113: FALSE | E113: 1 | F113: 1 | G113: 0 | H113: 1~2~ | I113: SI~NO~ | J113: 1.General~ | K113: 97~ | L113: 26~ | M113: 1~ | N113: 001~ | O113: s01_p30_4~ | P113: ~ | Q113: 2~ | R113: 2~ | S113: s01_p30_5~
A114: s01_p31_4 | B114: (1,31): ¿Cuánto recibio por entidad privada? | C114: FALSE | D114: FALSE | E114: 0 | F114: 5 | G114: 0 | H114: 0~ | I114: 99999~ | J114: 1.General~ | K114: 97~ | L114: 30~ | M114: 1~
A115: s01_p30_5 | B115: (1,30): ¿Recibió ingresos de ONG? | C115: FALSE | D115: FALSE | E115: 1 | F115: 1 | G115: 0 | H115: 1~2~ | I115: SI~NO~ | J115: 1.General~ | K115: 98~ | L115: 26~ | M115: 1~ | N115: 001~ | O115: s01_p30_5~ | P115: ~ | Q115: 2~ | R115: 2~ | S115: s01_p30_6~
A116: s01_p31_5 | B116: (1,31): ¿Cuánto recibio por ONG? | C116: FALSE | D116: FALSE | E116: 0 | F116: 5 | G116: 0 | H116: 0~ | I116: 99999~ | J116: 1.General~ | K116: 98~ | L116: 30~ | M116: 1~
A117: s01_p30_6 | B117: (1,30): ¿Recibió ingresos de organización religiosa? | C117: FALSE | D117: FALSE | E117: 1 | F117: 1 | G117: 0 | H117: 1~2~ | I117: SI~NO~ | J117: 1.General~ | K117: 99~ | L117: 26~ | M117: 1~ | N117: 001~ | O117: s01_p30_6~ | P117: ~ | Q117: 2~ | R117: 2~ | S117: s01_p30_7~
A118: s01_p31_6 | B118: (1,31): ¿Cuánto recibio por organización religiosa? | C118: FALSE | D118: FALSE | E118: 0 | F118: 5 | G118: 0 | H118: 0~ | I118: 99999~ | J118: 1.General~ | K118: 99~ | L118: 30~ | M118: 1~
A119: s01_p30_7 | B119: (1,30): ¿Recibió ingresos de (otra fuente 1)? | C119: FALSE | D119: FALSE | E119: 1 | F119: 1 | G119: 0 | H119: 1~2~ | I119: SI~NO~ | J119: 1.General~ | K119: 100~ | L119: 26~ | M119: 1~ | N119: 001~ | O119: s01_p30_7~ | P119: ~ | Q119: 2~ | R119: 2~ | S119: s01_p30_8~
A120: s01_p31_7 | B120: (1,31): ¿Cuánto recibio por (otra fuente 1)? | C120: FALSE | D120: FALSE | E120: 0 | F120: 5 | G120: 0 | H120: 0~ | I120: 99999~ | J120: 1.General~ | K120: 100~ | L120: 30~ | M120: 1~
A121: s01_p30_8 | B121: (1,30): ¿Recibió ingresos de (otra fuente 2)? | C121: FALSE | D121: FALSE | E121: 1 | F121: 1 | G121: 0 | H121: 1~2~ | I121: SI~NO~ | J121: 1.General~ | K121: 101~ | L121: 26~ | M121: 1~ | N121: 001~ | O121: s01_p30_8~ | P121: ~ | Q121: 2~ | R121: 2~ | S121: s01_p31_9~
A122: s01_p31_8 | B122: (1,31): ¿Cuánto recibio por (otra fuente 2)? | C122: FALSE | D122: FALSE | E122: 0 | F122: 5 | G122: 0 | H122: 0~ | I122: 99999~ | J122: 1.General~ | K122: 101~ | L122: 30~ | M122: 1~
A123: s01_p31_9 | B123: (1,31): ¿Cuánto recibio en total? | C123: FALSE | D123: FALSE | E123: 0 | F123: 6 | G123: 0 | H123: 0~ | I123: 999999~ | J123: 1.General~ | K123: 102~ | L123: 30~ | M123: 1~
A124: s01_p32 | B124: (1,32): Fuente de información de (1,31) | C124: FALSE | D124: FALSE | E124: 1 | F124: 1 | G124: 0 | H124: 1~2~ | I124: REGISTROS OFICIALES DEL ESTABLECIMIENTO~INFORME VERBAL~ | J124: 1.General~ | K124: 106~ | L124: 32~ | M124: 1~
A125: s02_p01_1 | B125: (2,01): Horas servicio de consulta externa (Lu) | C125: FALSE | D125: FALSE | E125: 0 | F125: 2 | G125: 0 | H125: 0~ | I125: 24~ | J125: 2.Prestaciones~ | K125: 11~ | L125: 5~ | M125: 1~
A126: s02_p01_2 | B126: (2,01): Horas servicio de consulta externa (Ma) | C126: FALSE | D126: FALSE | E126: 0 | F126: 2 | G126: 0 | H126: 0~ | I126: 24~ | J126: 2.Prestaciones~ | K126: 12~ | L126: 5~ | M126: 1~
A127: s02_p01_3 | B127: (2,01): Horas servicio de consulta externa (Mi) | C127: FALSE | D127: FALSE | E127: 0 | F127: 2 | G127: 0 | H127: 0~ | I127: 24~ | J127: 2.Prestaciones~ | K127: 13~ | L127: 5~ | M127: 1~
A128: s02_p01_4 | B128: (2,01): Horas servicio de consulta externa (Jue) | C128: FALSE | D128: FALSE | E128: 0 | F128: 2 | G128: 0 | H128: 0~ | I128: 24~ | J128: 2.Prestaciones~ | K128: 14~ | L128: 5~ | M128: 1~
A129: s02_p01_5 | B129: (2,01): Horas servicio de consulta externa (Vie) | C129: FALSE | D129: FALSE | E129: 0 | F129: 2 | G129: 0 | H129: 0~ | I129: 24~ | J129: 2.Prestaciones~ | K129: 15~ | L129: 5~ | M129: 1~
A130: s02_p01_6 | B130: (2,01): Horas servicio de consulta externa (Sab) | C130: FALSE | D130: FALSE | E130: 0 | F130: 2 | G130: 0 | H130: 0~ | I130: 24~ | J130: 2.Prestaciones~ | K130: 16~ | L130: 5~ | M130: 1~
A131: s02_p01_7 | B131: (2,01): Horas servicio de consulta externa (Dom) | C131: FALSE | D131: FALSE | E131: 0 | F131: 2 | G131: 0 | H131: 0~ | I131: 24~ | J131: 2.Prestaciones~ | K131: 17~ | L131: 5~ | M131: 1~
A132: s02_p02_1 | B132: (2,02): Horas servicio de urgencias (Lu) | C132: FALSE | D132: FALSE | E132: 0 | F132: 2 | G132: 0 | H132: 0~ | I132: 24~ | J132: 2.Prestaciones~ | K132: 11~ | L132: 11~ | M132: 1~
A133: s02_p02_2 | B133: (2,02): Horas servicio de urgencias (Ma) | C133: FALSE | D133: FALSE | E133: 0 | F133: 2 | G133: 0 | H133: 0~ | I133: 24~ | J133: 2.Prestaciones~ | K133: 12~ | L133: 11~ | M133: 1~
A134: s02_p02_03 | B134: (2,02): Horas servicio de urgencias (Mi) | C134: FALSE | D134: FALSE | E134: 0 | F134: 2 | G134: 0 | H134: 0~ | I134: 24~ | J134: 2.Prestaciones~ | K134: 13~ | L134: 11~ | M134: 1~
A135: s02_p02_4 | B135: (2,02): Horas servicio de urgencias (Jue) | C135: FALSE | D135: FALSE | E135: 0 | F135: 2 | G135: 0 | H135: 0~ | I135: 24~ | J135: 2.Prestaciones~ | K135: 14~ | L135: 11~ | M135: 1~
A136: s02_p02_5 | B136: (2,02): Horas servicio de urgencias (Vie) | C136: FALSE | D136: FALSE | E136: 0 | F136: 2 | G136: 0 | H136: 0~ | I136: 24~ | J136: 2.Prestaciones~ | K136: 15~ | L136: 11~ | M136: 1~
A137: s02_p02_6 | B137: (2,02): Horas servicio de urgencias (Sab) | C137: FALSE | D137: FALSE | E137: 0 | F137: 2 | G137: 0 | H137: 0~ | I137: 24~ | J137: 2.Prestaciones~ | K137: 16~ | L137: 11~ | M137: 1~
A138: s02_p02_7 | B138: (2,02): Horas servicio de urgencias (Dom) | C138: FALSE | D138: FALSE | E138: 0 | F138: 2 | G138: 0 | H138: 0~ | I138: 24~ | J138: 2.Prestaciones~ | K138: 17~ | L138: 11~ | M138: 1~
A139: s02_p06 | B139: (2,06): ¿Hay personal médico las 24 horas? | C139: FALSE | D139: FALSE | E139: 1 | F139: 1 | G139: 0 | H139: 1~2~ | I139: SI~NO~ | J139: 2.Prestaciones~ | K139: 20~ | L139: 14~ | M139: 1~
A140: s02_p07 | B140: (2,07): ¿Atienden partos de bajo riesgo? | C140: FALSE | D140: FALSE | E140: 1 | F140: 1 | G140: 0 | H140: 1~2~ | I140: SI~NO~ | J140: 2.Prestaciones~ | K140: 23~ | L140: 14~ | M140: 1~
A141: s02_p08 | B141: (2,08): ¿Atienden partos de alto riesgo? | C141: FALSE | D141: FALSE | E141: 1 | F141: 1 | G141: 0 | H141: 1~2~ | I141: SI~NO~ | J141: 2.Prestaciones~ | K141: 26~ | L141: 14~ | M141: 1~
A142: s02_p09 | B142: (2,09): ¿Existe atención de alta complejidad para niños? | C142: FALSE | D142: FALSE | E142: 1 | F142: 1 | G142: 0 | H142: 1~2~ | I142: SI~NO~ | J142: 2.Prestaciones~ | K142: 30~ | L142: 14~ | M142: 1~
A143: s02_p10 | B143: (2,10): ¿Se ofrece análisis clínico? | C143: FALSE | D143: FALSE | E143: 1 | F143: 1 | G143: 0 | H143: 1~2~ | I143: SI~NO~ | J143: 2.Prestaciones~ | K143: 33~ | L143: 14~ | M143: 1~
A144: s02_p11 | B144: (2,11): ¿Dónde procesan las muestras? | C144: FALSE | D144: FALSE | E144: 1 | F144: 1 | G144: 0 | H144: 1~2~ | I144: EN UN LABORATORIO DE ESTE ESTABLECIMIENTO~EN UN LABORATORIO FUERA~ | J144: 2.Prestaciones~ | K144: 36~ | L144: 14~ | M144: 1~
A145: s02_p12 | B145: (2,12): ¿Ofrecen servicio de imágenes? | C145: FALSE | D145: FALSE | E145: 1 | F145: 1 | G145: 0 | H145: 1~2~ | I145: SI~NO~ | J145: 2.Prestaciones~ | K145: 39~ | L145: 14~ | M145: 1~
A146: s03_p01_1 | B146: (3,01): ¿Hay médicos en el establecimiento? | C146: FALSE | D146: FALSE | E146: 1 | F146: 1 | G146: 0 | H146: 1~2~ | I146: SI~NO~ | J146: 3.Personal~ | K146: 11~ | L146: 6~ | M146: 1~
A147: s03_p01_2 | B147: (3,01): ¿Hay otros profesionales en el establecimiento? | C147: FALSE | D147: FALSE | E147: 1 | F147: 1 | G147: 0 | H147: 1~2~ | I147: SI~NO~ | J147: 3.Personal~ | K147: 17~ | L147: 6~ | M147: 1~
A148: s03_p01_3 | B148: (3,01): ¿Hay enfermería en el establecimiento? | C148: FALSE | D148: FALSE | E148: 1 | F148: 1 | G148: 0 | H148: 1~2~ | I148: SI~NO~ | J148: 3.Personal~ | K148: 25~ | L148: 6~ | M148: 1~
A149: s03_p01_4 | B149: (3,01): ¿Hay otros en el establecimiento? | C149: FALSE | D149: FALSE | E149: 1 | F149: 1 | G149: 0 | H149: 1~2~ | I149: SI~NO~ | J149: 3.Personal~ | K149: 29~ | L149: 6~ | M149: 1~
A150: s07_p01 | B150: (7,01): ¿Está el piso limpio? | C150: FALSE | D150: FALSE | E150: 1 | F150: 1 | G150: 0 | H150: 1~2~3~4~5~ | I150: MUY LIMPIO~LIMPIO~REGULAR~SUCIO~MUY SUCIO~ | J150: 7.Observ~ | K150: 6~ | L150: 15~ | M150: 1~
A151: s07_p02 | B151: (7,02): ¿Están las paredes limpias? | C151: FALSE | D151: FALSE | E151: 1 | F151: 1 | G151: 0 | H151: 1~2~3~4~5~ | I151: MUY LIMPIO~LIMPIO~REGULAR~SUCIO~MUY SUCIO~ | J151: 7.Observ~ | K151: 14~ | L151: 15~ | M151: 1~
A152: s07_p03 | B152: (7,03): ¿Hay privacidad para exámen de pacientes? | C152: FALSE | D152: FALSE | E152: 1 | F152: 1 | G152: 0 | H152: 1~2~ | I152: SI~NO~ | J152: 7.Observ~ | K152: 22~ | L152: 15~ | M152: 1~
A153: s07_p04 | B153: (7,04): ¿Están limpias las cortinas? | C153: FALSE | D153: FALSE | E153: 1 | F153: 1 | G153: 0 | H153: 1~2~3~4~5~6~ | I153: MUY LIMPIAS~LIMPIAS~REGULAR~SUCIAS~MUY SUCIAS~NO EXISTEN CORTINAS~ | J153: 7.Observ~ | K153: 26~ | L153: 15~ | M153: 1~
A154: s07_p05 | B154: (7,05): Implementos para aseo de manos | C154: FALSE | D154: FALSE | E154: 1 | F154: 1 | G154: 0 | H154: 1~2~3~4~ | I154: PILETA O FREGADERO O LAVABO CON AGUA ENTUBADA~PILETA O FREGADERO O LAVABO CON RECIPIENTE PARA AGUA~NO CUENTA CON NINGÚN ELEMENTO~OTRO~ | J154: 7.Observ~ | K154: 34~ | L154: 16~ | M154: 1~
A155: s07_p06 | B155: (7,06): ¿Existen tachos para basura? | C155: FALSE | D155: FALSE | E155: 1 | F155: 1 | G155: 0 | H155: 1~2~ | I155: SI~NO~ | J155: 7.Observ~ | K155: 41~ | L155: 16~ | M155: 1~
A156: s07_p07 | B156: (7,07): ¿Sala tiene mesa de exploración? | C156: FALSE | D156: FALSE | E156: 1 | F156: 1 | G156: 0 | H156: 1~2~ | I156: SI~NO~ | J156: 7.Observ~ | K156: 6~ | L156: 34~ | M156: 1~
A157: s07_p08 | B157: (7,08): ¿Sala tiene mesa de exploración ginecológica? | C157: FALSE | D157: FALSE | E157: 1 | F157: 1 | G157: 0 | H157: 1~2~ | I157: SI~NO~ | J157: 7.Observ~ | K157: 11~ | L157: 34~ | M157: 1~
A158: s07_p09 | B158: (7,09): ¿Dónde almacenan vacunas? | C158: FALSE | D158: FALSE | E158: 1 | F158: 1 | G158: 0 | H158: 1~2~3~4~5~ | I158: HELADERA O REFRIGERADOR EXCLUSIVO PARA VACUNAS~HELADERA O REFRIGERADOR DE USOS MÚLTIPLES~HIELERA NO ELÉCTRICA~NO APLICABLE~OTRO~ | J158: 7.Observ~ | K158: 16~ | L158: 34~ | M158: 1~
A159: s07_p10 | B159: (7,10): ¿Refrigerador cuenta con medidor? | C159: FALSE | D159: FALSE | E159: 1 | F159: 1 | G159: 0 | H159: 1~2~ | I159: SI~NO~ | J159: 7.Observ~ | K159: 24~ | L159: 34~ | M159: 1~
A160: s07_p11 | B160: (7,11): ¿Se observa descartador de agujas? | C160: FALSE | D160: FALSE | E160: 1 | F160: 1 | G160: 0 | H160: 1~2~3~ | I160: SI~NO~NO HAY DESCARTADOR~ | J160: 7.Observ~ | K160: 30~ | L160: 34~ | M160: 1~
A161: s07_p12 | B161: (7,12): ¿Bolsa roja cubre recipiente de basura? | C161: FALSE | D161: FALSE | E161: 1 | F161: 1 | G161: 0 | H161: 1~2~3~ | I161: SI~NO~NO HAY RECIPIENTE~ | J161: 7.Observ~ | K161: 35~ | L161: 34~ | M161: 1~
A162: 2 | B162: 002: Servicio | C162: 4 | D162: 1 | E162: 20
A163: id_servicio | B163: Número de Servicio | C163: FALSE | D163: TRUE | E163: 1 | F163: 2 | G163: 0 | H163: 01~02~03~04~05~06~07~08~09~10~11~12~13~14~15~16~17~18~19~20~ | I163: Consulta externa para niños~Consulta externa para adultos~Consulta dental~Consulta de especialidad~Hospitalización~Cirugía menor~Urgencias (sutura)~Atención de parto normal~Control neonatal~Vacunación / Inmunizaciones~Transfusión sanguínea~Consulta pre-natal~Ecografías~Rayos X~Hormonales orales~Hormonales inyectables~Inserción de DIU~Retiro de DIU~Preservativos (condones)~Otros:~ | J163: 2.Prestaciones~ | K163: 15~ | L163: 18~ | M163: 20~
A164: s02_p03 | B164: (2,03): ¿Ofrecen ... en este establecimiento? | C164: FALSE | D164: FALSE | E164: 1 | F164: 1 | G164: 0 | H164: 1~2~ | I164: SI~NO~ | J164: 2.Prestaciones~ | K164: 15~ | L164: 24~ | M164: 20~ | N164: 002~ | O164: s02_p03~ | P164: Me~ | Q164: 2~ | R164: 2~ | S164: End of RT~
A165: s02_p04 | B165: (2,04): Días a la semana que ofrecen ... | C165: FALSE | D165: FALSE | E165: 0 | F165: 1 | G165: 0 | H165: 1~ | I165: 7~ | J165: 2.Prestaciones~ | K165: 15~ | L165: 27~ | M165: 20~
A166: s02_p05 | B166: (2,05): Precio cobrado por ... | C166: FALSE | D166: FALSE | E166: 0 | F166: 5 | G166: 0 | H166: 0~ | I166: 100~ | J166: 2.Prestaciones~ | K166: 15~ | L166: 29~ | M166: 20~
A167: 3 | B167: 003: Función | C167: 4 | D167: 1 | E167: 29
A168: id_funcion | B168: Código Función | C168: FALSE | D168: TRUE | E168: 1 | F168: 3 | G168: 0 | H168: 101~102~103~104~105~106~201~202~203~204~205~206~207~208~301~302~303~304~401~402~403~404~405~406~407~408~409~410~411~ | I168: Clínica Médica~Medicina General~Ginecología~Pediatría~Obstetricia~OTRA OPCIÓN MEDICOS~Nutricionista~Odontólogo~Oftalmólogo~Kinesiólogo~Psicólogo~Asistente social~Traumatólogo~OTRA OPCIÓN OTROS PROFESIONALES~Licenciadas~Enfermeras~Auxiliares de enfermería~OTRA OPCIÓN ENFERMERÍA~Técnico de Laboratorio~Técnico de Radiología / imágenes~Alimentación/nutrición~Agente sanitario~Mucama (personal de limpieza)~Responsable de archivo/fichero~Telefonistas~Administrativos~Personal de mantenimiento~Otros (agregar):~OTRA OPCIÓN OTROS~ | J168: 3.Personal~ | K168: 11~ | L168: 12~ | M168: 29~
A169: s03_p02 | B169: (3,02): N° de ... trabajando en el lugar | C169: FALSE | D169: FALSE | E169: 0 | F169: 3 | G169: 0 | H169: 0~ | I169: 10~ | J169: 3.Personal~ | K169: 11~ | L169: 17~ | M169: 29~ | N169: 003~ | O169: s03_p02~ | P169: Me~ | Q169: 0~ | R169: 0~ | S169: End of RT~
A170: s03_p03 | B170: (3,03): Salario de bolsillo de un ... | C170: FALSE | D170: FALSE | E170: 0 | F170: 5 | G170: 0 | H170: 50~ | I170: 1000~ | J170: 3.Personal~ | K170: 11~ | L170: 22~ | M170: 29~
A171: s03_p04 | B171: (3,04): Horas semanales que trabaja un... | C171: FALSE | D171: FALSE | E171: 0 | F171: 2 | G171: 0 | H171: 0~ | I171: 60~ | J171: 3.Personal~ | K171: 11~ | L171: 26~ | M171: 29~
A172: 4 | B172: 004: Equipamiento | C172: 5 | D172: 1 | E172: 40
A173: id_equipo | B173: Código de Equipo | C173: FALSE | D173: TRUE | E173: 1 | F173: 2 | G173: 0 | H173: 01~02~03~04~05~06~07~08~09~10~11~12~13~14~15~16~17~18~19~20~21~22~23~24~25~26~27~28~29~30~31~32~33~34~35~36~37~38~39~40~ | I173: Estetoscopio auricular~Balanza infantil~Balanza de adultos~Cinta métrica~Cinta métrica para medir altura uterina~Tensiómetro~Termómetro~Termo o hielera~Instrumental para prueba de desarrollo~Balanza con estadímetro~Estetoscopio de Pinard~Colposcopio~Lámpara de hendidura~Oftalmoscopio~Otoscopio~Mesa de curación~Equipo de cirugía menor~Mesa de mayo~Autoclave o esterilizador~Juego de instrumental y campos para parto vaginal~Mesa o cama para parto~Juego de ropa de cama~Camilla~Heladera o Refrigerador~Incubadora~Ambú/ Balón de resucitación autoinflable~Aspirador para secreciones~Cilindro de oxigeno~Teléfono o radio~Ambulancia de traslado~Ambulancia de terapia intensiva~Computadora~Biblioteca~Silla/sillón~Escritorio~Vitrinas~Otro Equipo 1~Otro Equipo 2~Otro Equipo 3~Otro Equipo 4~ | J173: 4.Equip~ | K173: 15~ | L173: 2~ | M173: 40~
A174: s04_p01_n | B174: (4,01): ¿Personal tuvo acceso a equipo? (NO) | C174: TRUE | D174: FALSE | E174: 1 | F174: 1 | G174: 0 | H174: x~X~ | I174: NO~NO~ | J174: 4.Equip~ | K174: 15~ | L174: 17~ | M174: 40~ | N174: 004~004~ | O174: s04_p01_n~s04_p01_n~ | P174: Me~Me~ | Q174: x~X~ | R174: x~X~ | S174: End of RT~End of RT~
A175: s04_p01_s | B175: (4,01): ¿Personal tuvo acceso a equipo? (SI) | C175: TRUE | D175: FALSE | E175: 1 | F175: 1 | G175: 0 | H175: x~X~ | I175: SI~SI~ | J175: 4.Equip~ | K175: 15~ | L175: 18~ | M175: 40~
A176: s04_p02 | B176: (4,02): N° de días sin ... último mes | C176: FALSE | D176: FALSE | E176: 0 | F176: 2 | G176: 0 | H176: 0~ | I176: 30~ | J176: 4.Equip~ | K176: 15~ | L176: 19~ | M176: 40~
A177: s04_p03 | B177: (4,03): N° de ... en funcionamiento | C177: FALSE | D177: FALSE | E177: 0 | F177: 3 | G177: 0 | H177: 0~ | I177: 50~ | J177: 4.Equip~ | K177: 15~ | L177: 25~ | M177: 40~
A178: 5 | B178: 005: Insumo 1 | C178: 4 | D178: 1 | E178: 16
A179: id_insumo_1 | B179: Número Insumo 1 | C179: FALSE | D179: TRUE | E179: 1 | F179: 2 | G179: 0 | H179: 01~02~03~04~05~06~07~08~09~10~11~12~13~14~15~16~ | I179: Tallímetro/infantómetro de madera apropiado (3 cuerpos, madera sólida, cinta métrica en buen estado sobre todo en las uniones de los cuerpos, con tope fijo, con tope móvil ‘sin juego’)~Balanza pediátrica de bandeja (escala mínima de 10 g) o balanza madre-bebé en buen estado~Balanza de pie, escala mínima 100 gs, en buen estado~Aerocámara espaciadora para salbutamol (puede ser elaborada artesanalmente con un vaso o un envase de suero)~Agua destilada para inyecciones~Alcohol~Algodón~Balón de oxígeno con manómetro listo para el uso y accesible~Cateter nasofaríngeo para niños/as~Carnet de Salud Infantil con hitos del desarrollo~Formularios de registro niños/as de 2 meses a menor de 5 años~Formularios de registro niños/as de 7 días a menores de 2 meses~Formularios de registro niños/as menores de 7 días~Jeringas de 1 cc y 5 cc, con agujas~Refrigerador funcionando exclusivo para vacunas~Sonda Nasogástrica para niños/as~ | J179: 5.Insumos~ | K179: 16~ | L179: 1~ | M179: 16~
A180: s05_p01 | B180: (5,01): ¿Cuentan con ... el día de hoy? | C180: FALSE | D180: FALSE | E180: 1 | F180: 1 | G180: 0 | H180: 1~2~ | I180: SI~NO~ | J180: 5.Insumos~ | K180: 16~ | L180: 20~ | M180: 16~ | N180: 005~005~005~ | O180: s05_p01~id_insumo_1~id_insumo_1~ | P180: Me~Me~Me~ | Q180: 2~5~9~ | R180: 2~7~14~ | S180: End of RT~s05_p03~s05_p03~
A181: s05_p02 | B181: (5,02): Cantidad de ... el día de hoy | C181: FALSE | D181: FALSE | E181: 0 | F181: 4 | G181: 0 | H181: 1~ | I181: 100~ | J181: 5.Insumos~ | K181: 16~ | L181: 25~ | M181: 16~
A182: s05_p03 | B182: (5,03): ¿Cuántos días estuvieron sin ...? | C182: FALSE | D182: FALSE | E182: 0 | F182: 2 | G182: 0 | H182: 0~ | I182: 30~ | J182: 5.Insumos~ | K182: 16~ | L182: 29~ | M182: 16~
A183: 6 | B183: 006: Insumo 2 | C183: 4 | D183: 1 | E183: 14
A184: id_insumo_2 | B184: Número Insumo 2 | C184: FALSE | D184: TRUE | E184: 1 | F184: 2 | G184: 0 | H184: 17~18~19~20~21~22~23~24~25~26~27~28~29~30~ | I184: Formulario Historia Clínica Perinatal~Carnet Perinatal~Partograma~Tensiómetro en buen estado~Estetoscopio en buen estado~Cinta métrica~Antimarílica~Antipolio~BCG~Antirotavirus~Pentavalente~SRP~TT (Toxoide Tetánico)~dT (difteria y Tétanos)~ | J184: 5.Insumos~5.Insumos~ | K184: 46~53~ | L184: 1~1~ | M184: 6~8~
A185: s05_p04 | B185: (5,04): ¿Cuentan con ... el día de hoy? | C185: FALSE | D185: FALSE | E185: 1 | F185: 1 | G185: 0 | H185: 1~2~ | I185: SI~NO~ | J185: 5.Insumos~5.Insumos~ | K185: 46~53~ | L185: 20~20~ | M185: 6~8~ | N185: 006~006~ | O185: s05_p04~id_insumo_2~ | P185: Me~Me~ | Q185: 2~17~ | R185: 2~18~ | S185: End of RT~s05_p06~
A186: s05_p05 | B186: (5,05): ¿Qué cantidad hay aproximadamente? | C186: FALSE | D186: FALSE | E186: 0 | F186: 4 | G186: 0 | H186: 1~ | I186: 100~ | J186: 5.Insumos~5.Insumos~ | K186: 46~53~ | L186: 25~25~ | M186: 6~8~
A187: s05_p06 | B187: (5,06): ¿Es suficiente esa cantidad? | C187: FALSE | D187: FALSE | E187: 1 | F187: 1 | G187: 0 | H187: 1~2~ | I187: SI~NO~ | J187: 5.Insumos~5.Insumos~ | K187: 46~53~ | L187: 29~29~ | M187: 6~8~
A188: 7 | B188: 007: Medicamento 1 | C188: 4 | D188: 1 | E188: 24
A189: id_medicamento_1 | B189: Número Medicamento 1 | C189: FALSE | D189: TRUE | E189: 1 | F189: 2 | G189: 0 | H189: 01~02~03~04~05~06~07~08~09~10~11~12~13~14~15~16~17~18~19~20~21~22~23~24~ | I189: Alimento Terapéutico Nutricional Listo para el Uso (ATLU), Plumpy Nut o BP100~Ceftriaxona fcos/amp. 500 mg o 1 g~Chispitas Nutricionales (Sobres)~Ciprofloxacina comp.250 mg~Cloranfenicol amp.1 g~Cotrimoxazol jarabe pediátrico (200/40/5mL)~Cotrimoxazol, tab de 100/20 mg~Dextrosa 5% 500 o 1000 mL~Gentamicina, amp.20, 40 mg o 80 mg~Hierro Gts 25 mg/mL de hierro elemental o 125 mg de sulfato ferroso (Ferrasol)~Mebendazol,tab 500 mg o tab.de 100 mg~Nistatina suspensión (1mL=100,000 UI)~Paracetamol jarabe 120 mg(5mL)~Paracetamol tab. de 100 mg~Pen.procaínica, 1.000,000 ó 800,000 ó 400,000 UI~Ringer lactato, 500 o 1000 mL~Salbutamol en aerosol 100 mcg/dosis~Suero de la Vida o SRO de baja osmolaridad (245 mOsm/L)~Suero de la Vida o SRO estándar (311 mOsm/L)~Suero fisiológico 0.9% 500 ó 1.000 mL~Vitamina A 100.000 UI~Vitamina A 200.000 UI~Zinc , tabletas ‘dispersables’ de 20mg~Zinc , jarabe de 20 mg/5mL~ | J189: 6.Medicamentos~ | K189: 14~ | L189: 1~ | M189: 24~
A190: s06_p01 | B190: (6,01): ¿Cuentan con ... el día de hoy? | C190: FALSE | D190: FALSE | E190: 1 | F190: 1 | G190: 0 | H190: 1~2~ | I190: SI~NO~ | J190: 6.Medicamentos~ | K190: 14~ | L190: 18~ | M190: 24~ | N190: 007~ | O190: s06_p01~ | P190: Me~ | Q190: 2~ | R190: 2~ | S190: End of RT~
A191: s06_p02 | B191: (6,02): Cantidad de ... el día de hoy | C191: FALSE | D191: FALSE | E191: 0 | F191: 5 | G191: 0 | H191: 1~ | I191: 200~ | J191: 6.Medicamentos~ | K191: 14~ | L191: 25~ | M191: 24~
A192: s06_p03 | B192: (6,03): ¿Cuántos días estuvieron sin ...? | C192: FALSE | D192: FALSE | E192: 0 | F192: 2 | G192: 0 | H192: 0~ | I192: 30~ | J192: 6.Medicamentos~ | K192: 14~ | L192: 30~ | M192: 24~
A193: 8 | B193: 008: Medicamento 2 | C193: 4 | D193: 1 | E193: 19
A194: id_medicamento_2 | B194: Número Medicamento 2 | C194: FALSE | D194: TRUE | E194: 1 | F194: 2 | G194: 0 | H194: 25~26~27~28~29~30~31~32~33~34~35~36~37~38~39~40~41~42~43~ | I194: Alfametildopa tab. 500 mg~Amoxicilina comp. 500 mg o 1g~Ampicilina amp. 1g~Ciprofloxacina comp. 500 mg~Doxiciclina tab. 100 mg~Eritromicina comp. 500 mg~Metronidazol tab.500 mg~Nifedipino tab. 10 mg~Paracetamol tab. 500 mg~Peniicilina benzatínica amp. 1,200.000 UI o 2,400.000 UI~Sulfato ferroso tab, 60 mg~Artesunato comp.50mg~Clindamicina susp.75mg/5mL~Cloroquina, tab.150 mg~Diclorhidrato de quinina, amp 300 mg/2mL~Mefloquina tab 250 mg~Primaquina, tab.5 mg~Quinina, amp.600 mg~Quinina sulfato, tab.300 mg~ | J194: 6.Medicamentos~6.Medicamentos~ | K194: 53~65~ | L194: 1~1~ | M194: 11~8~
A195: s06_p04 | B195: (6,04): ¿Cuentan con ...? | C195: FALSE | D195: FALSE | E195: 1 | F195: 1 | G195: 0 | H195: 1~2~ | I195: SI~NO~ | J195: 6.Medicamentos~6.Medicamentos~ | K195: 53~65~ | L195: 18~18~ | M195: 11~8~
A196: s06_p05 | B196: (6,05): Cantidad de ... | C196: FALSE | D196: FALSE | E196: 0 | F196: 5 | G196: 0 | H196: 1~ | I196: 200~ | J196: 6.Medicamentos~6.Medicamentos~ | K196: 53~65~ | L196: 25~25~ | M196: 11~8~
A197: s06_p06 | B197: (6,06): ¿Es suficiente esa cantidad? | C197: FALSE | D197: FALSE | E197: 1 | F197: 1 | G197: 0 | H197: 1~2~ | I197: SI~NO~ | J197: 6.Medicamentos~6.Medicamentos~ | K197: 53~65~ | L197: 30~30~ | M197: 11~8~

Sheet Messages
C1: No hay mensajes

Sheet Dictionary_AUX (hidden)
C1: 8 | F1: c:\PeI_PED\Salud\Datos\ | G1: 1 | H1: "S" & id_est
A2: 1 | B2: 001: Establecimiento Salud | C2: 153 | D2: 0 | E2: 1
A3: id_est | B3: Identificador Establecimiento | C3: FALSE | D3: FALSE | E3: 0 | F3: 4 | G3: 0 | H3: 1~ | I3: 200~ | J3: Portada~ | K3: 5~ | L3: 29~ | M3: 1~
A4: s00_p01 | B4: Nombre del establecimiento | C4: FALSE | D4: FALSE | E4: 2 | F4: 50 | G4: 0 | J4: Portada~ | K4: 5~ | L4: 11~ | M4: 1~
A5: s00_p02 | B5: Región/Estado | C5: FALSE | D5: FALSE | E5: 0 | F5: 3 | G5: 0 | H5: 0~ | I5: 999~ | J5: Portada~ | K5: 9~ | L5: 16~ | M5: 1~
A6: s00_p03 | B6: Provincia | C6: FALSE | D6: FALSE | E6: 0 | F6: 3 | G6: 0 | H6: 0~ | I6: 999~ | J6: Portada~ | K6: 11~ | L6: 16~ | M6: 1~
A7: s00_p04 | B7: Municipio | C7: FALSE | D7: FALSE | E7: 0 | F7: 3 | G7: 0 | H7: 0~ | I7: 999~ | J7: Portada~ | K7: 13~ | L7: 16~ | M7: 1~
A8: s00_p05 | B8: Localidad | C8: FALSE | D8: FALSE | E8: 0 | F8: 3 | G8: 0 | H8: 0~ | I8: 999~ | J8: Portada~ | K8: 15~ | L8: 16~ | M8: 1~
A9: s00_p06 | B9: Zona/Barrio | C9: FALSE | D9: FALSE | E9: 2 | F9: 50 | G9: 0 | J9: Portada~ | K9: 17~ | L9: 7~ | M9: 1~
A10: s00_p07 | B10: Calle | C10: FALSE | D10: FALSE | E10: 2 | F10: 50 | G10: 0 | J10: Portada~ | K10: 19~ | L10: 7~ | M10: 1~
A11: s00_p08 | B11: Número | C11: FALSE | D11: FALSE | E11: 2 | F11: 50 | G11: 0 | J11: Portada~ | K11: 21~ | L11: 7~ | M11: 1~
A12: s00_p09 | B12: Otras referencias | C12: FALSE | D12: FALSE | E12: 2 | F12: 50 | G12: 0 | J12: Portada~ | K12: 23~ | L12: 8~ | M12: 1~
A13: s00_p12 | B13: Tipo | C13: FALSE | D13: FALSE | E13: 1 | F13: 1 | G13: 0 | H13: 1~2~3~4~5~6~ | I13: HOSPITAL BÁSICO~CLINICA PRIVADA~CENTRO DE SALUD~PUESTO DE SALUD~OPCIÓN 5~OPCIÓN 6~ | J13: Portada~ | K13: 9~ | L13: 26~ | M13: 1~
A14: s00_p13 | B14: Nombre del director | C14: FALSE | D14: FALSE | E14: 2 | F14: 50 | G14: 0 | J14: Portada~ | K14: 19~ | L14: 22~ | M14: 1~
A15: s00_p14_1 | B15: Teléfono 1 | C15: FALSE | D15: FALSE | E15: 0 | F15: 9 | G15: 0 | H15: 0~ | I15: 999999999~ | J15: Portada~ | K15: 23~ | L15: 25~ | M15: 1~
A16: s00_p14_2 | B16: Teléfono 2 | C16: FALSE | D16: FALSE | E16: 0 | F16: 9 | G16: 0 | H16: 0~ | I16: 999999999~ | J16: Portada~ | K16: 25~ | L16: 25~ | M16: 1~
A17: s00_p14_3 | B17: Teléfono 3 | C17: FALSE | D17: FALSE | E17: 0 | F17: 9 | G17: 0 | H17: 0~ | I17: 999999999~ | J17: Portada~ | K17: 28~ | L17: 25~ | M17: 1~
A18: s00_p15 | B18: Encuestador/a | C18: FALSE | D18: FALSE | E18: 0 | F18: 3 | G18: 0 | H18: 1~ | I18: 40~ | J18: Portada~ | K18: 34~ | L18: 12~ | M18: 1~
A19: s00_p16 | B19: Supervisor/a | C19: FALSE | D19: FALSE | E19: 0 | F19: 3 | G19: 0 | H19: 1~ | I19: 20~ | J19: Portada~ | K19: 36~ | L19: 12~ | M19: 1~
A20: s00_p17 | B20: Otro Personal 1 | C20: FALSE | D20: FALSE | E20: 0 | F20: 3 | G20: 0 | H20: 1~ | I20: 10~ | J20: Portada~ | K20: 38~ | L20: 12~ | M20: 1~
A21: s00_p18 | B21: Otro Personal 2 | C21: FALSE | D21: FALSE | E21: 0 | F21: 3 | G21: 0 | H21: 1~ | I21: 10~ | J21: Portada~ | K21: 40~ | L21: 12~ | M21: 1~
A22: s00_p19 | B22: Otro Personal 3 | C22: FALSE | D22: FALSE | E22: 0 | F22: 3 | G22: 0 | H22: 1~ | I22: 10~ | J22: Portada~ | K22: 42~ | L22: 12~ | M22: 1~
A23: s00_p20_1_d | B23: Fecha Visita (día) | C23: FALSE | D23: FALSE | E23: 0 | F23: 2 | G23: 0 | H23: 1~ | I23: 31~ | J23: Portada~ | K23: 38~ | L23: 18~ | M23: 1~
A24: s00_p20_1_m | B24: Fecha visita 1 (mes) | C24: FALSE | D24: FALSE | E24: 0 | F24: 2 | G24: 0 | H24: 1~ | I24: 12~ | J24: Portada~ | K24: 38~ | L24: 19~ | M24: 1~
A25: s00_p20_1_a | B25: Fecha visita 1 (año) | C25: FALSE | D25: FALSE | E25: 0 | F25: 4 | G25: 0 | H25: 2012~ | I25: 2020~ | J25: Portada~ | K25: 38~ | L25: 20~ | M25: 1~
A26: s00_p20_1_r | B26: Resultado visita 1 | C26: FALSE | D26: FALSE | E26: 1 | F26: 1 | G26: 0 | H26: 1~2~3~4~5~6~ | I26: COMPLETA~PARCIAL~RECHAZO~NO CONTACTÓ~NO LO ENCONTRÓ~OTRO~ | J26: Portada~ | K26: 38~ | L26: 22~ | M26: 1~
A27: s00_p20_1_i_h | B27: Hora inicio visita 1 (horas) | C27: FALSE | D27: FALSE | E27: 0 | F27: 2 | G27: 0 | H27: 0~ | I27: 23~ | J27: Portada~ | K27: 38~ | L27: 23~ | M27: 1~
A28: s00_p20_1_i_m | B28: Hora inicio visita 1 (minutos) | C28: FALSE | D28: FALSE | E28: 0 | F28: 2 | G28: 0 | H28: 0~ | I28: 59~ | J28: Portada~ | K28: 38~ | L28: 24~ | M28: 1~
A29: s00_p20_1_f_h | B29: Hora fin visita 1 (horas) | C29: FALSE | D29: FALSE | E29: 0 | F29: 2 | G29: 0 | H29: 0~ | I29: 23~ | J29: Portada~ | K29: 38~ | L29: 25~ | M29: 1~
A30: s00_p20_1_f_m | B30: Hora fin visita 1 (minutos) | C30: FALSE | D30: FALSE | E30: 0 | F30: 2 | G30: 0 | H30: 0~ | I30: 59~ | J30: Portada~ | K30: 38~ | L30: 26~ | M30: 1~
A31: s00_p20_2_d | B31: Fecha Visita 2 (día) | C31: TRUE | D31: FALSE | E31: 0 | F31: 2 | G31: 0 | H31: 1~ | I31: 31~ | J31: Portada~ | K31: 39~ | L31: 18~ | M31: 1~
A32: s00_p20_2_m | B32: Fecha visita 2 (mes) | C32: TRUE | D32: FALSE | E32: 0 | F32: 2 | G32: 0 | H32: 1~ | I32: 12~ | J32: Portada~ | K32: 39~ | L32: 19~ | M32: 1~
A33: s00_p20_2_a | B33: Fecha visita 2 (año) | C33: TRUE | D33: FALSE | E33: 0 | F33: 4 | G33: 0 | H33: 2012~ | I33: 2020~ | J33: Portada~ | K33: 39~ | L33: 20~ | M33: 1~
A34: s00_p20_2_r | B34: Resultado visita 2 | C34: TRUE | D34: FALSE | E34: 1 | F34: 1 | G34: 0 | H34: 1~2~3~4~5~6~ | I34: COMPLETA~PARCIAL~RECHAZO~NO CONTACTÓ~NO LO ENCONTRÓ~OTRO~ | J34: Portada~ | K34: 39~ | L34: 22~ | M34: 1~
A35: s00_p20_2_i_h | B35: Hora inicio visita 2 (horas) | C35: TRUE | D35: FALSE | E35: 0 | F35: 2 | G35: 0 | H35: 0~ | I35: 23~ | J35: Portada~ | K35: 39~ | L35: 23~ | M35: 1~
A36: s00_p20_2_i_m | B36: Hora inicio visita 2 (minutos) | C36: TRUE | D36: FALSE | E36: 0 | F36: 2 | G36: 0 | H36: 0~ | I36: 59~ | J36: Portada~ | K36: 39~ | L36: 24~ | M36: 1~
A37: s00_p20_2_f_h | B37: Hora fin visita 2 (horas) | C37: TRUE | D37: FALSE | E37: 0 | F37: 2 | G37: 0 | H37: 0~ | I37: 23~ | J37: Portada~ | K37: 39~ | L37: 25~ | M37: 1~
A38: s00_p20_2_f_m | B38: Hora fin visita 2 (minutos) | C38: TRUE | D38: FALSE | E38: 0 | F38: 2 | G38: 0 | H38: 0~ | I38: 59~ | J38: Portada~ | K38: 39~ | L38: 26~ | M38: 1~
A39: s00_p20_3_d | B39: Fecha Visita 3 (día) | C39: TRUE | D39: FALSE | E39: 0 | F39: 2 | G39: 0 | H39: 1~ | I39: 31~ | J39: Portada~ | K39: 40~ | L39: 18~ | M39: 1~
A40: s00_p20_3_m | B40: Fecha visita 3 (mes) | C40: TRUE | D40: FALSE | E40: 0 | F40: 2 | G40: 0 | H40: 1~ | I40: 12~ | J40: Portada~ | K40: 40~ | L40: 19~ | M40: 1~
A41: s00_p20_3_a | B41: Fecha visita 3 (año) | C41: TRUE | D41: FALSE | E41: 0 | F41: 4 | G41: 0 | H41: 2012~ | I41: 2020~ | J41: Portada~ | K41: 40~ | L41: 20~ | M41: 1~
A42: s00_p20_3_r | B42: Resultado visita 3 | C42: TRUE | D42: FALSE | E42: 1 | F42: 1 | G42: 0 | H42: 1~2~3~4~5~6~ | I42: COMPLETA~PARCIAL~RECHAZO~NO CONTACTÓ~NO LO ENCONTRÓ~OTRO~ | J42: Portada~ | K42: 40~ | L42: 22~ | M42: 1~
A43: s00_p20_3_i_h | B43: Hora inicio visita 3 (horas) | C43: TRUE | D43: FALSE | E43: 0 | F43: 2 | G43: 0 | H43: 0~ | I43: 23~ | J43: Portada~ | K43: 40~ | L43: 23~ | M43: 1~
A44: s00_p20_3_i_m | B44: Hora inicio visita 3 (minutos) | C44: TRUE | D44: FALSE | E44: 0 | F44: 2 | G44: 0 | H44: 0~ | I44: 59~ | J44: Portada~ | K44: 40~ | L44: 24~ | M44: 1~
A45: s00_p20_3_f_h | B45: Hora fin visita 3 (horas) | C45: TRUE | D45: FALSE | E45: 0 | F45: 2 | G45: 0 | H45: 0~ | I45: 23~ | J45: Portada~ | K45: 40~ | L45: 25~ | M45: 1~
A46: s00_p20_3_f_m | B46: Hora fin visita 3 (minutos) | C46: TRUE | D46: FALSE | E46: 0 | F46: 2 | G46: 0 | H46: 0~ | I46: 59~ | J46: Portada~ | K46: 40~ | L46: 26~ | M46: 1~
A47: s00_p20_4_d | B47: Fecha Visita 4 (día) | C47: TRUE | D47: FALSE | E47: 0 | F47: 2 | G47: 0 | H47: 1~ | I47: 31~ | J47: Portada~ | K47: 41~ | L47: 18~ | M47: 1~
A48: s00_p20_4_m | B48: Fecha visita 4 (mes) | C48: TRUE | D48: FALSE | E48: 0 | F48: 2 | G48: 0 | H48: 1~ | I48: 12~ | J48: Portada~ | K48: 41~ | L48: 19~ | M48: 1~
A49: s00_p20_4_a | B49: Fecha visita 4 (año) | C49: TRUE | D49: FALSE | E49: 0 | F49: 4 | G49: 0 | H49: 2012~ | I49: 2020~ | J49: Portada~ | K49: 41~ | L49: 20~ | M49: 1~
A50: s00_p20_4_r | B50: Resultado visita 4 | C50: TRUE | D50: FALSE | E50: 1 | F50: 1 | G50: 0 | H50: 1~2~3~4~5~6~ | I50: COMPLETA~PARCIAL~RECHAZO~NO CONTACTÓ~NO LO ENCONTRÓ~OTRO~ | J50: Portada~ | K50: 41~ | L50: 22~ | M50: 1~
A51: s00_p20_4_i_h | B51: Hora inicio visita 4 (horas) | C51: TRUE | D51: FALSE | E51: 0 | F51: 2 | G51: 0 | H51: 0~ | I51: 23~ | J51: Portada~ | K51: 41~ | L51: 23~ | M51: 1~
A52: s00_p20_4_i_m | B52: Hora inicio visita 4 (minutos) | C52: TRUE | D52: FALSE | E52: 0 | F52: 2 | G52: 0 | H52: 0~ | I52: 59~ | J52: Portada~ | K52: 41~ | L52: 24~ | M52: 1~
A53: s00_p20_4_f_h | B53: Hora fin visita 4 (horas) | C53: TRUE | D53: FALSE | E53: 0 | F53: 2 | G53: 0 | H53: 0~ | I53: 23~ | J53: Portada~ | K53: 41~ | L53: 25~ | M53: 1~
A54: s00_p20_4_f_m | B54: Hora fin visita 4 (minutos) | C54: TRUE | D54: FALSE | E54: 0 | F54: 2 | G54: 0 | H54: 0~ | I54: 59~ | J54: Portada~ | K54: 41~ | L54: 26~ | M54: 1~
A55: s00_p22 | B55: Idioma de la entrevista | C55: FALSE | D55: FALSE | E55: 1 | F55: 1 | G55: 0 | H55: 1~2~3~4~5~6~ | I55: CASTELLANO~OPCIÓN 2~OPCIÓN 3~OPCIÓN 4~OPCIÓN 5~OPCIÓN 6~ | J55: Portada~ | K55: 34~ | L55: 34~ | M55: 1~
A56: s01_p01_a | B56: (1,01): Nombre del entrevistado | C56: FALSE | D56: FALSE | E56: 2 | F56: 50 | G56: 0 | J56: 1.General~ | K56: 5~ | L56: 6~ | M56: 1~
A57: s01_p01_b | B57: (1,01): Teléfono del entrevistado | C57: FALSE | D57: FALSE | E57: 2 | F57: 50 | G57: 0 | J57: 1.General~ | K57: 7~ | L57: 6~ | M57: 1~
A58: s01_p02 | B58: (1,02): Cargo en el establecimiento | C58: FALSE | D58: FALSE | E58: 1 | F58: 1 | G58: 0 | H58: 1~2~3~ | I58: DIRECTOR/A~SUB-DIRECTOR/A~OTRO (ESPECIFIQUE)~ | J58: 1.General~ | K58: 10~ | L58: 14~ | M58: 1~ | N58: 001~ | O58: s01_p02~ | P58: ~ | Q58: 1~ | R58: 2~ | S58: s01_p03~
A59: s01_p02_otra | B59: (1,02): Otra | C59: FALSE | D59: FALSE | E59: 2 | F59: 50 | G59: 0 | J59: 1.General~ | K59: 12~ | L59: 8~ | M59: 1~
A60: s01_p03 | B60: (1,03): ¿De quién depende el establecimiento? | C60: FALSE | D60: FALSE | E60: 1 | F60: 1 | G60: 0 | H60: 1~2~3~4~5~6~ | I60: MINISTERIO DE SALUD~ENTIDAD PRIVADA~ORGANIZACIÓN NO-GUBERNAMENTAL (ONG)~MISIÓN/ORGANIZACIÓN RELIGIOSA~MILITAR~OTRA (ESPECIFIQUE)~ | J60: 1.General~ | K60: 15~ | L60: 14~ | M60: 1~ | N60: 001~ | O60: s01_p03~ | P60: ~ | Q60: 1~ | R60: 5~ | S60: s01_p04~
A61: s01_p03_otra | B61: (1,03): Otra | C61: FALSE | D61: FALSE | E61: 2 | F61: 50 | G61: 0 | J61: 1.General~ | K61: 20~ | L61: 8~ | M61: 1~
A62: s01_p04 | B62: (1,04): Año de inicio de actividades | C62: FALSE | D62: FALSE | E62: 0 | F62: 4 | G62: 0 | H62: 1950~ | I62: 2012~ | J62: 1.General~ | K62: 23~ | L62: 14~ | M62: 1~
A63: s01_p05 | B63: (1,05): Población en zona de influencia | C63: FALSE | D63: FALSE | E63: 0 | F63: 4 | G63: 0 | H63: 1~ | I63: 9999~ | J63: 1.General~ | K63: 28~ | L63: 14~ | M63: 1~
A64: s01_p06 | B64: (1,06): % de población con cobertura de salud | C64: FALSE | D64: FALSE | E64: 0 | F64: 3 | G64: 0 | H64: 0~ | I64: 100~ | J64: 1.General~ | K64: 32~ | L64: 14~ | M64: 1~
A65: s01_p07 | B65: (1,07): Principal fuente de electricidad | C65: FALSE | D65: FALSE | E65: 1 | F65: 1 | G65: 0 | H65: 1~2~ | I65: SI~NO TIENEN ELECTRICIDAD~ | J65: 1.General~ | K65: 7~ | L65: 32~ | M65: 1~ | N65: 001~ | O65: s01_p07~ | P65: ~ | Q65: 2~ | R65: 2~ | S65: s01_p13~
A66: s01_p08 | B66: (1,08): Frecuencia de interrupción de electricidad | C66: FALSE | D66: FALSE | E66: 1 | F66: 1 | G66: 0 | H66: 1~2~3~4~5~ | I66: Casi a diario~Algunas veces por semana~Algunas veces al mes~Algunas veces al año~Nunca o casi nunca~ | J66: 1.General~ | K66: 10~ | L66: 32~ | M66: 1~
A67: s01_p09 | B67: (1,09): Fuente de abastecimiento de agua | C67: FALSE | D67: FALSE | E67: 1 | F67: 1 | G67: 0 | H67: 1~2~3~4~5~6~ | I67: RED PÚBLICA (AGUA CORRIENTE)~DE PERFORACIÓN CON BOMBA MOTOR~DE PERFORACIÓN CON BOMBA MANUAL~DE POZO CON BOMBA~DE POZO SIN BOMBA~OPCIÓN 6~ | J67: 1.General~ | K67: 19~ | L67: 32~ | M67: 1~
A68: s01_p10 | B68: (1,10): ¿La fuente está adentro? | C68: FALSE | D68: FALSE | E68: 1 | F68: 1 | G68: 0 | H68: 1~2~ | I68: SI~NO~ | J68: 1.General~ | K68: 27~ | L68: 32~ | M68: 1~ | N68: 001~ | O68: s01_p10~ | P68: ~ | Q68: 1~ | R68: 1~ | S68: s01_p12~
A69: s01_p11_d | B69: (1,11): Distancia a la fuente de agua | C69: FALSE | D69: FALSE | E69: 0 | F69: 2 | G69: 0 | H69: 0~ | I69: 99~ | J69: 1.General~ | K69: 32~ | L69: 24~ | M69: 1~
A70: s01_p11_ud | B70: (1,11): Unidad de distancia | C70: FALSE | D70: FALSE | E70: 1 | F70: 1 | G70: 0 | H70: 1~2~ | I70: KILÓMETROS~METROS~ | J70: 1.General~ | K70: 32~ | L70: 32~ | M70: 1~
A71: s01_p12 | B71: (1,12): Servicio sanitario disponible | C71: FALSE | D71: FALSE | E71: 1 | F71: 1 | G71: 0 | H71: 1~2~3~4~ | I71: INODORO CONECTADO AL SISTEMA DE DRENAJE~INODORO CONECTADO A FOSA SÉPTICA~LETRINA~OPCIÓN 4~ | J71: 1.General~ | K71: 36~ | L71: 32~ | M71: 1~
A72: s01_p13 | B72: (1,13): Forma de comunicación principal | C72: FALSE | D72: FALSE | E72: 1 | F72: 1 | G72: 0 | H72: 1~2~3~4~5~6~7~8~ | I72: TELEFONÍA FIJA~TELEFONÍA CELULAR~RADIO/HANDY~INTERNET~TELÉFONO SEMIPÚBLICO~LÍNEA CENTREX~NO POSEE~OPCIÓN 8~ | J72: 1.General~ | K72: 45~ | L72: 14~ | M72: 1~
A73: s01_p14_1 | B73: (1,14): ¿Desechan agujas en descartador? | C73: FALSE | D73: FALSE | E73: 1 | F73: 1 | G73: 0 | H73: 1~2~ | I73: SI~NO~ | J73: 1.General~ | K73: 59~ | L73: 14~ | M73: 1~
A74: s01_p14_2 | B74: (1,14): ¿Desechan agujas en bolsas rojas? | C74: FALSE | D74: FALSE | E74: 1 | F74: 1 | G74: 0 | H74: 1~2~ | I74: SI~NO~ | J74: 1.General~ | K74: 60~ | L74: 14~ | M74: 1~
A75: s01_p14_3 | B75: (1,14): ¿Desechan agujas junto con la basura? | C75: FALSE | D75: FALSE | E75: 1 | F75: 1 | G75: 0 | H75: 1~2~ | I75: SI~NO~ | J75: 1.General~ | K75: 61~ | L75: 14~ | M75: 1~
A76: s01_p14_4 | B76: (1,14): ¿Desechan agujas (otra)? | C76: FALSE | D76: FALSE | E76: 1 | F76: 1 | G76: 0 | H76: 1~2~ | I76: SI~NO~ | J76: 1.General~ | K76: 62~ | L76: 14~ | M76: 1~ | N76: 001~ | O76: s01_p14_4~ | P76: ~ | Q76: 2~ | R76: 2~ | S76: s01_p15_1~
A77: s01_p14_otra | B77: (1,14): Otra | C77: FALSE | D77: FALSE | E77: 2 | F77: 50 | G77: 0 | J77: 1.General~ | K77: 62~ | L77: 8~ | M77: 1~
A78: s01_p15_1 | B78: (1,15): ¿Eliminan residuos por recolector especial? | C78: FALSE | D78: FALSE | E78: 1 | F78: 1 | G78: 0 | H78: 1~2~ | I78: SI~NO~ | J78: 1.General~ | K78: 67~ | L78: 14~ | M78: 1~
A79: s01_p15_2 | B79: (1,15): ¿Eliminan residuos por traslado a centro? | C79: FALSE | D79: FALSE | E79: 1 | F79: 1 | G79: 0 | H79: 1~2~ | I79: SI~NO~ | J79: 1.General~ | K79: 68~ | L79: 14~ | M79: 1~
A80: s01_p15_3 | B80: (1,15): ¿Eliminan residuos por recolector público? | C80: FALSE | D80: FALSE | E80: 1 | F80: 1 | G80: 0 | H80: 1~2~ | I80: SI~NO~ | J80: 1.General~ | K80: 69~ | L80: 14~ | M80: 1~
A81: s01_p15_4 | B81: (1,15): ¿Eliminan residuos por incineración? | C81: FALSE | D81: FALSE | E81: 1 | F81: 1 | G81: 0 | H81: 1~2~ | I81: SI~NO~ | J81: 1.General~ | K81: 70~ | L81: 14~ | M81: 1~
A82: s01_p15_5 | B82: (1,15): ¿Eliminan residuos enterrándolos? | C82: FALSE | D82: FALSE | E82: 1 | F82: 1 | G82: 0 | H82: 1~2~ | I82: SI~NO~ | J82: 1.General~ | K82: 71~ | L82: 14~ | M82: 1~
A83: s01_p15_6 | B83: (1,15): ¿Eliminan residuos por (otra)? | C83: FALSE | D83: FALSE | E83: 1 | F83: 1 | G83: 0 | H83: 1~2~ | I83: SI~NO~ | J83: 1.General~ | K83: 72~ | L83: 14~ | M83: 1~ | N83: 001~ | O83: s01_p15_6~ | P83: ~ | Q83: 2~ | R83: 2~ | S83: s01_p16~
A84: s01_p15_otra | B84: (1,15): Otra | C84: FALSE | D84: FALSE | E84: 2 | F84: 50 | G84: 0 | J84: 1.General~ | K84: 72~ | L84: 8~ | M84: 1~
A85: s01_p16 | B85: (1,16): Frecuencia con que reutilizan agujas | C85: FALSE | D85: FALSE | E85: 1 | F85: 1 | G85: 0 | H85: 1~2~3~4~ | I85: NUNCA~RARA VEZ~ALGUNAS VECES~FRECUENTEMENTE~ | J85: 1.General~ | K85: 75~ | L85: 14~ | M85: 1~
A86: s01_p17 | B86: (1,17): ¿Visita de supervisión últimos 6 meses? | C86: FALSE | D86: FALSE | E86: 1 | F86: 1 | G86: 0 | H86: 1~2~ | I86: SI~NO~ | J86: 1.General~ | K86: 46~ | L86: 32~ | M86: 1~ | N86: 001~ | O86: s01_p17~ | P86: ~ | Q86: 2~ | R86: 2~ | S86: s01_p22~
A87: s01_p18 | B87: (1,18): ¿Cuántas visitas recibió? | C87: FALSE | D87: FALSE | E87: 0 | F87: 2 | G87: 0 | H87: 0~ | I87: 99~ | J87: 1.General~ | K87: 49~ | L87: 32~ | M87: 1~
A88: s01_p19 | B88: (1,19): ¿Fue visitado por la (red de salud)? | C88: FALSE | D88: FALSE | E88: 1 | F88: 1 | G88: 0 | H88: 1~2~ | I88: SI~NO~ | J88: 1.General~ | K88: 51~ | L88: 32~ | M88: 1~
A89: s01_p20 | B89: (1,20): ¿Fue visitado por el (nivel central)? | C89: FALSE | D89: FALSE | E89: 1 | F89: 1 | G89: 0 | H89: 1~2~ | I89: SI~NO~ | J89: 1.General~ | K89: 54~ | L89: 32~ | M89: 1~
A90: s01_p21 | B90: (1,12): ¿Hubo atención de menores de 5 en visita? | C90: FALSE | D90: FALSE | E90: 1 | F90: 1 | G90: 0 | H90: 1~2~ | I90: SI~NO~ | J90: 1.General~ | K90: 57~ | L90: 32~ | M90: 1~
A91: s01_p22 | B91: (1,22): ¿Existe Gestor de Calidad como personal? | C91: FALSE | D91: FALSE | E91: 1 | F91: 1 | G91: 0 | H91: 1~2~ | I91: SI~NO~ | J91: 1.General~ | K91: 62~ | L91: 32~ | M91: 1~
A92: s01_p23 | B92: (1,23): ¿Hubo auditoría interna en útlima gestión? | C92: FALSE | D92: FALSE | E92: 1 | F92: 1 | G92: 0 | H92: 1~2~ | I92: SI~NO~ | J92: 1.General~ | K92: 65~ | L92: 32~ | M92: 1~
A93: s01_p24 | B93: (1,24): ¿Han habido quejas el último mes? | C93: FALSE | D93: FALSE | E93: 1 | F93: 1 | G93: 0 | H93: 1~2~ | I93: SI~NO~ | J93: 1.General~ | K93: 69~ | L93: 32~ | M93: 1~
A94: s01_p25 | B94: (1,25): ¿Cuentan con plan de gestión de riesgos? | C94: FALSE | D94: FALSE | E94: 1 | F94: 1 | G94: 0 | H94: 1~2~ | I94: SI~NO~ | J94: 1.General~ | K94: 73~ | L94: 32~ | M94: 1~
A95: s01_p26 | B95: (1,26): ¿Quién realiza mantención de equipos médicos? | C95: FALSE | D95: FALSE | E95: 1 | F95: 1 | G95: 0 | H95: 1~2~3~4~ | I95: SERVICIO PRIVADO~SERVICIO PÚBLICO~PERSONAL DEL ESTABLECIMIENTO DE SALUD~OTRO (ESPECIFIQUE)~ | J95: 1.General~ | K95: 77~ | L95: 32~ | M95: 1~ | N95: 001~ | O95: s01_p26~ | P95: ~ | Q95: 1~ | R95: 3~ | S95: s01_p27~
A96: s01_p26_otra | B96: (1,26): Otra | C96: FALSE | D96: FALSE | E96: 2 | F96: 50 | G96: 0 | J96: 1.General~ | K96: 80~ | L96: 27~ | M96: 1~
A97: s01_p27 | B97: (1,27): ¿Derivan pacientes a otros establecimientos? | C97: FALSE | D97: FALSE | E97: 1 | F97: 1 | G97: 0 | H97: 1~2~ | I97: SI~NO~ | J97: 1.General~ | K97: 86~ | L97: 14~ | M97: 1~ | N97: 001~ | O97: s01_p27~ | P97: ~ | Q97: 2~ | R97: 2~ | S97: s01_p30_1~
A98: s01_p28 | B98: (1,28): ¿Dónde se derivan los pacientes? | C98: FALSE | D98: FALSE | E98: 1 | F98: 1 | G98: 0 | H98: 1~2~3~4~5~ | I98: A UN HOSPITAL~A UNA CLÍNICA PRIVADA~A UN CENTRO DE SALUD~A UN PUESTO DE SALUD~OTRO (ESPECIFIQUE)~ | J98: 1.General~ | K98: 90~ | L98: 14~ | M98: 1~ | N98: 001~ | O98: s01_p28~ | P98: ~ | Q98: 1~ | R98: 4~ | S98: s01_p29~
A99: s01_p28_otra | B99: (1,28): Otra | C99: FALSE | D99: FALSE | E99: 2 | F99: 50 | G99: 0 | J99: 1.General~ | K99: 94~ | L99: 9~ | M99: 1~
A100: s01_p29 | B100: (1,29): Distancia al centro de derivación | C100: FALSE | D100: FALSE | E100: 0 | F100: 2 | G100: 0 | H100: 0~ | I100: 99~ | J100: 1.General~ | K100: 98~ | L100: 14~ | M100: 1~
A101: s01_p30_1 | B101: (1,30): ¿Recibió ingresos del ministerio de salud? | C101: FALSE | D101: FALSE | E101: 1 | F101: 1 | G101: 0 | H101: 1~2~ | I101: SI~NO~ | J101: 1.General~ | K101: 94~ | L101: 26~ | M101: 1~ | N101: 001~ | O101: s01_p30_1~ | P101: ~ | Q101: 2~ | R101: 2~ | S101: s01_p30_2~
A102: s01_p31_1 | B102: (1,31): ¿Cuánto recibio del ministerio de salud? | C102: FALSE | D102: FALSE | E102: 0 | F102: 5 | G102: 0 | H102: 1~ | I102: 99999~ | J102: 1.General~ | K102: 94~ | L102: 30~ | M102: 1~
A103: s01_p30_2 | B103: (1,30): ¿Recibió ingresos de cargos a usuarios? | C103: FALSE | D103: FALSE | E103: 1 | F103: 1 | G103: 0 | H103: 1~2~ | I103: SI~NO~ | J103: 1.General~ | K103: 95~ | L103: 26~ | M103: 1~ | N103: 001~ | O103: s01_p30_2~ | P103: ~ | Q103: 2~ | R103: 2~ | S103: s01_p30_3~
A104: s01_p31_2 | B104: (1,31): ¿Cuánto recibio por cargos a usuarios? | C104: FALSE | D104: FALSE | E104: 0 | F104: 5 | G104: 0 | H104: 0~ | I104: 99999~ | J104: 1.General~ | K104: 95~ | L104: 30~ | M104: 1~
A105: s01_p30_3 | B105: (1,30): ¿Recibió ingresos de venta de medicamentos? | C105: FALSE | D105: FALSE | E105: 1 | F105: 1 | G105: 0 | H105: 1~2~ | I105: SI~NO~ | J105: 1.General~ | K105: 96~ | L105: 26~ | M105: 1~ | N105: 001~ | O105: s01_p30_3~ | P105: ~ | Q105: 2~ | R105: 2~ | S105: s01_p30_4~
A106: s01_p31_3 | B106: (1,31): ¿Cuánto recibio por venta de medicamentos? | C106: FALSE | D106: FALSE | E106: 0 | F106: 5 | G106: 0 | H106: 0~ | I106: 99999~ | J106: 1.General~ | K106: 96~ | L106: 30~ | M106: 1~
A107: s01_p30_4 | B107: (1,30): ¿Recibió ingresos de entidad privada? | C107: FALSE | D107: FALSE | E107: 1 | F107: 1 | G107: 0 | H107: 1~2~ | I107: SI~NO~ | J107: 1.General~ | K107: 97~ | L107: 26~ | M107: 1~ | N107: 001~ | O107: s01_p30_4~ | P107: ~ | Q107: 2~ | R107: 2~ | S107: s01_p30_5~
A108: s01_p31_4 | B108: (1,31): ¿Cuánto recibio por entidad privada? | C108: FALSE | D108: FALSE | E108: 0 | F108: 5 | G108: 0 | H108: 0~ | I108: 99999~ | J108: 1.General~ | K108: 97~ | L108: 30~ | M108: 1~
A109: s01_p30_5 | B109: (1,30): ¿Recibió ingresos de ONG? | C109: FALSE | D109: FALSE | E109: 1 | F109: 1 | G109: 0 | H109: 1~2~ | I109: SI~NO~ | J109: 1.General~ | K109: 98~ | L109: 26~ | M109: 1~ | N109: 001~ | O109: s01_p30_5~ | P109: ~ | Q109: 2~ | R109: 2~ | S109: s01_p30_6~
A110: s01_p31_5 | B110: (1,31): ¿Cuánto recibio por ONG? | C110: FALSE | D110: FALSE | E110: 0 | F110: 5 | G110: 0 | H110: 0~ | I110: 99999~ | J110: 1.General~ | K110: 98~ | L110: 30~ | M110: 1~
A111: s01_p30_6 | B111: (1,30): ¿Recibió ingresos de organización religiosa? | C111: FALSE | D111: FALSE | E111: 1 | F111: 1 | G111: 0 | H111: 1~2~ | I111: SI~NO~ | J111: 1.General~ | K111: 99~ | L111: 26~ | M111: 1~ | N111: 001~ | O111: s01_p30_6~ | P111: ~ | Q111: 2~ | R111: 2~ | S111: s01_p30_7~
A112: s01_p31_6 | B112: (1,31): ¿Cuánto recibio por organización religiosa? | C112: FALSE | D112: FALSE | E112: 0 | F112: 5 | G112: 0 | H112: 0~ | I112: 99999~ | J112: 1.General~ | K112: 99~ | L112: 30~ | M112: 1~
A113: s01_p30_7 | B113: (1,30): ¿Recibió ingresos de (otra fuente 1)? | C113: FALSE | D113: FALSE | E113: 1 | F113: 1 | G113: 0 | H113: 1~2~ | I113: SI~NO~ | J113: 1.General~ | K113: 100~ | L113: 26~ | M113: 1~ | N113: 001~ | O113: s01_p30_7~ | P113: ~ | Q113: 2~ | R113: 2~ | S113: s01_p30_8~
A114: s01_p31_7 | B114: (1,31): ¿Cuánto recibio por (otra fuente 1)? | C114: FALSE | D114: FALSE | E114: 0 | F114: 5 | G114: 0 | H114: 0~ | I114: 99999~ | J114: 1.General~ | K114: 100~ | L114: 30~ | M114: 1~
A115: s01_p30_8 | B115: (1,30): ¿Recibió ingresos de (otra fuente 2)? | C115: FALSE | D115: FALSE | E115: 1 | F115: 1 | G115: 0 | H115: 1~2~ | I115: SI~NO~ | J115: 1.General~ | K115: 101~ | L115: 26~ | M115: 1~ | N115: 001~ | O115: s01_p30_8~ | P115: ~ | Q115: 2~ | R115: 2~ | S115: s01_p31_9~
A116: s01_p31_8 | B116: (1,31): ¿Cuánto recibio por (otra fuente 2)? | C116: FALSE | D116: FALSE | E116: 0 | F116: 5 | G116: 0 | H116: 0~ | I116: 99999~ | J116: 1.General~ | K116: 101~ | L116: 30~ | M116: 1~
A117: s01_p31_9 | B117: (1,31): ¿Cuánto recibio en total? | C117: FALSE | D117: FALSE | E117: 0 | F117: 6 | G117: 0 | H117: 0~ | I117: 999999~ | J117: 1.General~ | K117: 102~ | L117: 30~ | M117: 1~
A118: s01_p32 | B118: (1,32): Fuente de información de (1,31) | C118: FALSE | D118: FALSE | E118: 1 | F118: 1 | G118: 0 | H118: 1~2~ | I118: REGISTROS OFICIALES DEL ESTABLECIMIENTO~INFORME VERBAL~ | J118: 1.General~ | K118: 106~ | L118: 32~ | M118: 1~
A119: s02_p01_1 | B119: (2,01): Horas servicio de consulta externa (Lu) | C119: FALSE | D119: FALSE | E119: 0 | F119: 2 | G119: 0 | H119: 0~ | I119: 24~ | J119: 2.Prestaciones~ | K119: 11~ | L119: 5~ | M119: 1~
A120: s02_p01_2 | B120: (2,01): Horas servicio de consulta externa (Ma) | C120: FALSE | D120: FALSE | E120: 0 | F120: 2 | G120: 0 | H120: 0~ | I120: 24~ | J120: 2.Prestaciones~ | K120: 12~ | L120: 5~ | M120: 1~
A121: s02_p01_3 | B121: (2,01): Horas servicio de consulta externa (Mi) | C121: FALSE | D121: FALSE | E121: 0 | F121: 2 | G121: 0 | H121: 0~ | I121: 24~ | J121: 2.Prestaciones~ | K121: 13~ | L121: 5~ | M121: 1~
A122: s02_p01_4 | B122: (2,01): Horas servicio de consulta externa (Jue) | C122: FALSE | D122: FALSE | E122: 0 | F122: 2 | G122: 0 | H122: 0~ | I122: 24~ | J122: 2.Prestaciones~ | K122: 14~ | L122: 5~ | M122: 1~
A123: s02_p01_5 | B123: (2,01): Horas servicio de consulta externa (Vie) | C123: FALSE | D123: FALSE | E123: 0 | F123: 2 | G123: 0 | H123: 0~ | I123: 24~ | J123: 2.Prestaciones~ | K123: 15~ | L123: 5~ | M123: 1~
A124: s02_p01_6 | B124: (2,01): Horas servicio de consulta externa (Sab) | C124: FALSE | D124: FALSE | E124: 0 | F124: 2 | G124: 0 | H124: 0~ | I124: 24~ | J124: 2.Prestaciones~ | K124: 16~ | L124: 5~ | M124: 1~
A125: s02_p01_7 | B125: (2,01): Horas servicio de consulta externa (Dom) | C125: FALSE | D125: FALSE | E125: 0 | F125: 2 | G125: 0 | H125: 0~ | I125: 24~ | J125: 2.Prestaciones~ | K125: 17~ | L125: 5~ | M125: 1~
A126: s02_p02_1 | B126: (2,02): Horas servicio de urgencias (Lu) | C126: FALSE | D126: FALSE | E126: 0 | F126: 2 | G126: 0 | H126: 0~ | I126: 24~ | J126: 2.Prestaciones~ | K126: 11~ | L126: 11~ | M126: 1~
A127: s02_p02_2 | B127: (2,02): Horas servicio de urgencias (Ma) | C127: FALSE | D127: FALSE | E127: 0 | F127: 2 | G127: 0 | H127: 0~ | I127: 24~ | J127: 2.Prestaciones~ | K127: 12~ | L127: 11~ | M127: 1~
A128: s02_p02_03 | B128: (2,02): Horas servicio de urgencias (Mi) | C128: FALSE | D128: FALSE | E128: 0 | F128: 2 | G128: 0 | H128: 0~ | I128: 24~ | J128: 2.Prestaciones~ | K128: 13~ | L128: 11~ | M128: 1~
A129: s02_p02_4 | B129: (2,02): Horas servicio de urgencias (Jue) | C129: FALSE | D129: FALSE | E129: 0 | F129: 2 | G129: 0 | H129: 0~ | I129: 24~ | J129: 2.Prestaciones~ | K129: 14~ | L129: 11~ | M129: 1~
A130: s02_p02_5 | B130: (2,02): Horas servicio de urgencias (Vie) | C130: FALSE | D130: FALSE | E130: 0 | F130: 2 | G130: 0 | H130: 0~ | I130: 24~ | J130: 2.Prestaciones~ | K130: 15~ | L130: 11~ | M130: 1~
A131: s02_p02_6 | B131: (2,02): Horas servicio de urgencias (Sab) | C131: FALSE | D131: FALSE | E131: 0 | F131: 2 | G131: 0 | H131: 0~ | I131: 24~ | J131: 2.Prestaciones~ | K131: 16~ | L131: 11~ | M131: 1~
A132: s02_p02_7 | B132: (2,02): Horas servicio de urgencias (Dom) | C132: FALSE | D132: FALSE | E132: 0 | F132: 2 | G132: 0 | H132: 0~ | I132: 24~ | J132: 2.Prestaciones~ | K132: 17~ | L132: 11~ | M132: 1~
A133: s02_p06 | B133: (2,06): ¿Hay personal médico las 24 horas? | C133: FALSE | D133: FALSE | E133: 1 | F133: 1 | G133: 0 | H133: 1~2~ | I133: SI~NO~ | J133: 2.Prestaciones~ | K133: 20~ | L133: 14~ | M133: 1~
A134: s02_p07 | B134: (2,07): ¿Atienden partos de bajo riesgo? | C134: FALSE | D134: FALSE | E134: 1 | F134: 1 | G134: 0 | H134: 1~2~ | I134: SI~NO~ | J134: 2.Prestaciones~ | K134: 23~ | L134: 14~ | M134: 1~
A135: s02_p08 | B135: (2,08): ¿Atienden partos de alto riesgo? | C135: FALSE | D135: FALSE | E135: 1 | F135: 1 | G135: 0 | H135: 1~2~ | I135: SI~NO~ | J135: 2.Prestaciones~ | K135: 26~ | L135: 14~ | M135: 1~
A136: s02_p09 | B136: (2,09): ¿Existe atención de alta complejidad para niños? | C136: FALSE | D136: FALSE | E136: 1 | F136: 1 | G136: 0 | H136: 1~2~ | I136: SI~NO~ | J136: 2.Prestaciones~ | K136: 30~ | L136: 14~ | M136: 1~
A137: s02_p10 | B137: (2,10): ¿Se ofrece análisis clínico? | C137: FALSE | D137: FALSE | E137: 1 | F137: 1 | G137: 0 | H137: 1~2~ | I137: SI~NO~ | J137: 2.Prestaciones~ | K137: 33~ | L137: 14~ | M137: 1~
A138: s02_p11 | B138: (2,11): ¿Dónde procesan las muestras? | C138: FALSE | D138: FALSE | E138: 1 | F138: 1 | G138: 0 | H138: 1~2~ | I138: EN UN LABORATORIO DE ESTE ESTABLECIMIENTO~EN UN LABORATORIO FUERA~ | J138: 2.Prestaciones~ | K138: 36~ | L138: 14~ | M138: 1~
A139: s02_p12 | B139: (2,12): ¿Ofrecen servicio de imágenes? | C139: FALSE | D139: FALSE | E139: 1 | F139: 1 | G139: 0 | H139: 1~2~ | I139: SI~NO~ | J139: 2.Prestaciones~ | K139: 39~ | L139: 14~ | M139: 1~
A140: s03_p01_1 | B140: (3,01): ¿Hay médicos en el establecimiento? | C140: FALSE | D140: FALSE | E140: 1 | F140: 1 | G140: 0 | H140: 1~2~ | I140: SI~NO~ | J140: 3.Personal~ | K140: 11~ | L140: 6~ | M140: 1~
A141: s03_p01_2 | B141: (3,01): ¿Hay otros profesionales en el establecimiento? | C141: FALSE | D141: FALSE | E141: 1 | F141: 1 | G141: 0 | H141: 1~2~ | I141: SI~NO~ | J141: 3.Personal~ | K141: 17~ | L141: 6~ | M141: 1~
A142: s03_p01_3 | B142: (3,01): ¿Hay enfermería en el establecimiento? | C142: FALSE | D142: FALSE | E142: 1 | F142: 1 | G142: 0 | H142: 1~2~ | I142: SI~NO~ | J142: 3.Personal~ | K142: 25~ | L142: 6~ | M142: 1~
A143: s03_p01_4 | B143: (3,01): ¿Hay otros en el establecimiento? | C143: FALSE | D143: FALSE | E143: 1 | F143: 1 | G143: 0 | H143: 1~2~ | I143: SI~NO~ | J143: 3.Personal~ | K143: 29~ | L143: 6~ | M143: 1~
A144: s07_p01 | B144: (7,01): ¿Está el piso limpio? | C144: FALSE | D144: FALSE | E144: 1 | F144: 1 | G144: 0 | H144: 1~2~3~4~5~ | I144: MUY LIMPIO~LIMPIO~REGULAR~SUCIO~MUY SUCIO~ | J144: 7.Observ~ | K144: 6~ | L144: 15~ | M144: 1~
A145: s07_p02 | B145: (7,02): ¿Están las paredes limpias? | C145: FALSE | D145: FALSE | E145: 1 | F145: 1 | G145: 0 | H145: 1~2~3~4~5~ | I145: MUY LIMPIO~LIMPIO~REGULAR~SUCIO~MUY SUCIO~ | J145: 7.Observ~ | K145: 14~ | L145: 15~ | M145: 1~
A146: s07_p03 | B146: (7,03): ¿Hay privacidad para exámen de pacientes? | C146: FALSE | D146: FALSE | E146: 1 | F146: 1 | G146: 0 | H146: 1~2~ | I146: SI~NO~ | J146: 7.Observ~ | K146: 22~ | L146: 15~ | M146: 1~
A147: s07_p04 | B147: (7,04): ¿Están limpias las cortinas? | C147: FALSE | D147: FALSE | E147: 1 | F147: 1 | G147: 0 | H147: 1~2~3~4~5~6~ | I147: MUY LIMPIAS~LIMPIAS~REGULAR~SUCIAS~MUY SUCIAS~NO EXISTEN CORTINAS~ | J147: 7.Observ~ | K147: 26~ | L147: 15~ | M147: 1~
A148: s07_p05 | B148: (7,05): Implementos para aseo de manos | C148: FALSE | D148: FALSE | E148: 1 | F148: 1 | G148: 0 | H148: 1~2~3~4~ | I148: PILETA O FREGADERO O LAVABO CON AGUA ENTUBADA~PILETA O FREGADERO O LAVABO CON RECIPIENTE PARA AGUA~NO CUENTA CON NINGÚN ELEMENTO~OTRO~ | J148: 7.Observ~ | K148: 34~ | L148: 16~ | M148: 1~
A149: s07_p06 | B149: (7,06): ¿Existen tachos para basura? | C149: FALSE | D149: FALSE | E149: 1 | F149: 1 | G149: 0 | H149: 1~2~ | I149: SI~NO~ | J149: 7.Observ~ | K149: 41~ | L149: 16~ | M149: 1~
A150: s07_p07 | B150: (7,07): ¿Sala tiene mesa de exploración? | C150: FALSE | D150: FALSE | E150: 1 | F150: 1 | G150: 0 | H150: 1~2~ | I150: SI~NO~ | J150: 7.Observ~ | K150: 6~ | L150: 34~ | M150: 1~
A151: s07_p08 | B151: (7,08): ¿Sala tiene mesa de exploración ginecológica? | C151: FALSE | D151: FALSE | E151: 1 | F151: 1 | G151: 0 | H151: 1~2~ | I151: SI~NO~ | J151: 7.Observ~ | K151: 11~ | L151: 34~ | M151: 1~
A152: s07_p09 | B152: (7,09): ¿Dónde almacenan vacunas? | C152: FALSE | D152: FALSE | E152: 1 | F152: 1 | G152: 0 | H152: 1~2~3~4~5~ | I152: HELADERA O REFRIGERADOR EXCLUSIVO PARA VACUNAS~HELADERA O REFRIGERADOR DE USOS MÚLTIPLES~HIELERA NO ELÉCTRICA~NO APLICABLE~OTRO~ | J152: 7.Observ~ | K152: 16~ | L152: 34~ | M152: 1~
A153: s07_p10 | B153: (7,10): ¿Refrigerador cuenta con medidor? | C153: FALSE | D153: FALSE | E153: 1 | F153: 1 | G153: 0 | H153: 1~2~ | I153: SI~NO~ | J153: 7.Observ~ | K153: 24~ | L153: 34~ | M153: 1~
A154: s07_p11 | B154: (7,11): ¿Se observa descartador de agujas? | C154: FALSE | D154: FALSE | E154: 1 | F154: 1 | G154: 0 | H154: 1~2~3~ | I154: SI~NO~NO HAY DESCARTADOR~ | J154: 7.Observ~ | K154: 30~ | L154: 34~ | M154: 1~
A155: s07_p12 | B155: (7,12): ¿Bolsa roja cubre recipiente de basura? | C155: FALSE | D155: FALSE | E155: 1 | F155: 1 | G155: 0 | H155: 1~2~3~ | I155: SI~NO~NO HAY RECIPIENTE~ | J155: 7.Observ~ | K155: 35~ | L155: 34~ | M155: 1~
A156: 2 | B156: 002: Servicio | C156: 4 | D156: 1 | E156: 20
A157: id_servicio | B157: Número de Servicio | C157: FALSE | D157: TRUE | E157: 1 | F157: 2 | G157: 0 | H157: 01~02~03~04~05~06~07~08~09~10~11~12~13~14~15~16~17~18~19~20~ | I157: Consulta externa para niños~Consulta externa para adultos~Consulta dental~Consulta de especialidad~Hospitalización~Cirugía menor~Urgencias (sutura)~Atención de parto normal~Control neonatal~Vacunación / Inmunizaciones~Transfusión sanguínea~Consulta pre-natal~Ecografías~Rayos X~Hormonales orales~Hormonales inyectables~Inserción de DIU~Retiro de DIU~Preservativos (condones)~Otros:~ | J157: 2.Prestaciones~ | K157: 15~ | L157: 18~ | M157: 20~
A158: s02_p03 | B158: (2,03): ¿Ofrecen ... en este establecimiento? | C158: FALSE | D158: FALSE | E158: 1 | F158: 1 | G158: 0 | H158: 1~2~ | I158: SI~NO~ | J158: 2.Prestaciones~ | K158: 15~ | L158: 24~ | M158: 20~ | N158: 002~ | O158: s02_p03~ | P158: Me~ | Q158: 2~ | R158: 2~ | S158: End of RT~
A159: s02_p04 | B159: (2,04): Días a la semana que ofrecen ... | C159: FALSE | D159: FALSE | E159: 0 | F159: 1 | G159: 0 | H159: 1~ | I159: 7~ | J159: 2.Prestaciones~ | K159: 15~ | L159: 27~ | M159: 20~
A160: s02_p05 | B160: (2,05): Precio cobrado por ... | C160: FALSE | D160: FALSE | E160: 0 | F160: 5 | G160: 0 | H160: 0~ | I160: 100~ | J160: 2.Prestaciones~ | K160: 15~ | L160: 29~ | M160: 20~
A161: 3 | B161: 003: Función | C161: 4 | D161: 1 | E161: 29
A162: id_funcion | B162: Código Función | C162: FALSE | D162: TRUE | E162: 1 | F162: 3 | G162: 0 | H162: 101~102~103~104~105~106~201~202~203~204~205~206~207~208~301~302~303~304~401~402~403~404~405~406~407~408~409~410~411~ | I162: Clínica Médica~Medicina General~Ginecología~Pediatría~Obstetricia~OTRA OPCIÓN MEDICOS~Nutricionista~Odontólogo~Oftalmólogo~Kinesiólogo~Psicólogo~Asistente social~Traumatólogo~OTRA OPCIÓN OTROS PROFESIONALES~Licenciadas~Enfermeras~Auxiliares de enfermería~OTRA OPCIÓN ENFERMERÍA~Técnico de Laboratorio~Técnico de Radiología / imágenes~Alimentación/nutrición~Agente sanitario~Mucama (personal de limpieza)~Responsable de archivo/fichero~Telefonistas~Administrativos~Personal de mantenimiento~Otros (agregar):~OTRA OPCIÓN OTROS~ | J162: 3.Personal~ | K162: 11~ | L162: 12~ | M162: 29~
A163: s03_p02 | B163: (3,02): N° de ... trabajando en el lugar | C163: FALSE | D163: FALSE | E163: 0 | F163: 3 | G163: 0 | H163: 0~ | I163: 10~ | J163: 3.Personal~ | K163: 11~ | L163: 17~ | M163: 29~ | N163: 003~ | O163: s03_p02~ | P163: Me~ | Q163: 0~ | R163: 0~ | S163: End of RT~
A164: s03_p03 | B164: (3,03): Salario de bolsillo de un ... | C164: FALSE | D164: FALSE | E164: 0 | F164: 5 | G164: 0 | H164: 50~ | I164: 1000~ | J164: 3.Personal~ | K164: 11~ | L164: 22~ | M164: 29~
A165: s03_p04 | B165: (3,04): Horas semanales que trabaja un... | C165: FALSE | D165: FALSE | E165: 0 | F165: 2 | G165: 0 | H165: 0~ | I165: 60~ | J165: 3.Personal~ | K165: 11~ | L165: 26~ | M165: 29~
A166: 4 | B166: 004: Equipamiento | C166: 5 | D166: 1 | E166: 40
A167: id_equipo | B167: Código de Equipo | C167: FALSE | D167: TRUE | E167: 1 | F167: 2 | G167: 0 | H167: 01~02~03~04~05~06~07~08~09~10~11~12~13~14~15~16~17~18~19~20~21~22~23~24~25~26~27~28~29~30~31~32~33~34~35~36~37~38~39~40~ | I167: Estetoscopio auricular~Balanza infantil~Balanza de adultos~Cinta métrica~Cinta métrica para medir altura uterina~Tensiómetro~Termómetro~Termo o hielera~Instrumental para prueba de desarrollo~Balanza con estadímetro~Estetoscopio de Pinard~Colposcopio~Lámpara de hendidura~Oftalmoscopio~Otoscopio~Mesa de curación~Equipo de cirugía menor~Mesa de mayo~Autoclave o esterilizador~Juego de instrumental y campos para parto vaginal~Mesa o cama para parto~Juego de ropa de cama~Camilla~Heladera o Refrigerador~Incubadora~Ambú/ Balón de resucitación autoinflable~Aspirador para secreciones~Cilindro de oxigeno~Teléfono o radio~Ambulancia de traslado~Ambulancia de terapia intensiva~Computadora~Biblioteca~Silla/sillón~Escritorio~Vitrinas~Otro Equipo 1~Otro Equipo 2~Otro Equipo 3~Otro Equipo 4~ | J167: 4.Equip~ | K167: 15~ | L167: 2~ | M167: 40~
A168: s04_p01_n | B168: (4,01): ¿Personal tuvo acceso a equipo? (NO) | C168: TRUE | D168: FALSE | E168: 1 | F168: 1 | G168: 0 | H168: x~X~ | I168: NO~NO~ | J168: 4.Equip~ | K168: 15~ | L168: 17~ | M168: 40~ | N168: 004~004~ | O168: s04_p01_n~s04_p01_n~ | P168: Me~Me~ | Q168: x~X~ | R168: x~X~ | S168: End of RT~End of RT~
A169: s04_p01_s | B169: (4,01): ¿Personal tuvo acceso a equipo? (SI) | C169: TRUE | D169: FALSE | E169: 1 | F169: 1 | G169: 0 | H169: x~X~ | I169: SI~SI~ | J169: 4.Equip~ | K169: 15~ | L169: 18~ | M169: 40~
A170: s04_p02 | B170: (4,02): N° de días sin ... último mes | C170: FALSE | D170: FALSE | E170: 0 | F170: 2 | G170: 0 | H170: 0~ | I170: 30~ | J170: 4.Equip~ | K170: 15~ | L170: 19~ | M170: 40~
A171: s04_p03 | B171: (4,03): N° de ... en funcionamiento | C171: FALSE | D171: FALSE | E171: 0 | F171: 3 | G171: 0 | H171: 0~ | I171: 50~ | J171: 4.Equip~ | K171: 15~ | L171: 25~ | M171: 40~
A172: 5 | B172: 005: Insumo 1 | C172: 4 | D172: 1 | E172: 16
A173: id_insumo_1 | B173: Número Insumo 1 | C173: FALSE | D173: TRUE | E173: 1 | F173: 2 | G173: 0 | H173: 01~02~03~04~05~06~07~08~09~10~11~12~13~14~15~16~ | I173: Tallímetro/infantómetro de madera apropiado (3 cuerpos, madera sólida, cinta métrica en buen estado sobre todo en las uniones de los cuerpos, con tope fijo, con tope móvil ‘sin juego’)~Balanza pediátrica de bandeja (escala mínima de 10 g) o balanza madre-bebé en buen estado~Balanza de pie, escala mínima 100 gs, en buen estado~Aerocámara espaciadora para salbutamol (puede ser elaborada artesanalmente con un vaso o un envase de suero)~Agua destilada para inyecciones~Alcohol~Algodón~Balón de oxígeno con manómetro listo para el uso y accesible~Cateter nasofaríngeo para niños/as~Carnet de Salud Infantil con hitos del desarrollo~Formularios de registro niños/as de 2 meses a menor de 5 años~Formularios de registro niños/as de 7 días a menores de 2 meses~Formularios de registro niños/as menores de 7 días~Jeringas de 1 cc y 5 cc, con agujas~Refrigerador funcionando exclusivo para vacunas~Sonda Nasogástrica para niños/as~ | J173: 5.Insumos~ | K173: 16~ | L173: 1~ | M173: 16~
A174: s05_p01 | B174: (5,01): ¿Cuentan con ... el día de hoy? | C174: FALSE | D174: FALSE | E174: 1 | F174: 1 | G174: 0 | H174: 1~2~ | I174: SI~NO~ | J174: 5.Insumos~ | K174: 16~ | L174: 20~ | M174: 16~ | N174: 005~005~005~ | O174: s05_p01~id_insumo_1~id_insumo_1~ | P174: Me~Me~Me~ | Q174: 2~5~9~ | R174: 2~7~14~ | S174: End of RT~s05_p03~s05_p03~
A175: s05_p02 | B175: (5,02): Cantidad de ... el día de hoy | C175: FALSE | D175: FALSE | E175: 0 | F175: 4 | G175: 0 | H175: 1~ | I175: 100~ | J175: 5.Insumos~ | K175: 16~ | L175: 25~ | M175: 16~
A176: s05_p03 | B176: (5,03): ¿Cuántos días estuvieron sin ...? | C176: FALSE | D176: FALSE | E176: 0 | F176: 2 | G176: 0 | H176: 0~ | I176: 30~ | J176: 5.Insumos~ | K176: 16~ | L176: 29~ | M176: 16~
A177: 6 | B177: 006: Insumo 2 | C177: 4 | D177: 1 | E177: 14
A178: id_insumo_2 | B178: Número Insumo 2 | C178: FALSE | D178: TRUE | E178: 1 | F178: 2 | G178: 0 | H178: 17~18~19~20~21~22~23~24~25~26~27~28~29~30~ | I178: Formulario Historia Clínica Perinatal~Carnet Perinatal~Partograma~Tensiómetro en buen estado~Estetoscopio en buen estado~Cinta métrica~Antimarílica~Antipolio~BCG~Antirotavirus~Pentavalente~SRP~TT (Toxoide Tetánico)~dT (difteria y Tétanos)~ | J178: 5.Insumos~5.Insumos~ | K178: 46~53~ | L178: 1~1~ | M178: 6~8~
A179: s05_p04 | B179: (5,04): ¿Cuentan con ... el día de hoy? | C179: FALSE | D179: FALSE | E179: 1 | F179: 1 | G179: 0 | H179: 1~2~ | I179: SI~NO~ | J179: 5.Insumos~5.Insumos~ | K179: 46~53~ | L179: 20~20~ | M179: 6~8~ | N179: 006~006~ | O179: s05_p04~id_insumo_2~ | P179: Me~Me~ | Q179: 2~17~ | R179: 2~18~ | S179: End of RT~s05_p06~
A180: s05_p05 | B180: (5,05): ¿Qué cantidad hay aproximadamente? | C180: FALSE | D180: FALSE | E180: 0 | F180: 4 | G180: 0 | H180: 1~ | I180: 100~ | J180: 5.Insumos~5.Insumos~ | K180: 46~53~ | L180: 25~25~ | M180: 6~8~
A181: s05_p06 | B181: (5,06): ¿Es suficiente esa cantidad? | C181: FALSE | D181: FALSE | E181: 1 | F181: 1 | G181: 0 | H181: 1~2~ | I181: SI~NO~ | J181: 5.Insumos~5.Insumos~ | K181: 46~53~ | L181: 29~29~ | M181: 6~8~
A182: 7 | B182: 007: Medicamento 1 | C182: 4 | D182: 1 | E182: 24
A183: id_medicamento_1 | B183: Número Medicamento 1 | C183: FALSE | D183: TRUE | E183: 1 | F183: 2 | G183: 0 | H183: 01~02~03~04~05~06~07~08~09~10~11~12~13~14~15~16~17~18~19~20~21~22~23~24~ | I183: Alimento Terapéutico Nutricional Listo para el Uso (ATLU), Plumpy Nut o BP100~Ceftriaxona fcos/amp. 500 mg o 1 g~Chispitas Nutricionales (Sobres)~Ciprofloxacina comp.250 mg~Cloranfenicol amp.1 g~Cotrimoxazol jarabe pediátrico (200/40/5mL)~Cotrimoxazol, tab de 100/20 mg~Dextrosa 5% 500 o 1000 mL~Gentamicina, amp.20, 40 mg o 80 mg~Hierro Gts 25 mg/mL de hierro elemental o 125 mg de sulfato ferroso (Ferrasol)~Mebendazol,tab 500 mg o tab.de 100 mg~Nistatina suspensión (1mL=100,000 UI)~Paracetamol jarabe 120 mg(5mL)~Paracetamol tab. de 100 mg~Pen.procaínica, 1.000,000 ó 800,000 ó 400,000 UI~Ringer lactato, 500 o 1000 mL~Salbutamol en aerosol 100 mcg/dosis~Suero de la Vida o SRO de baja osmolaridad (245 mOsm/L)~Suero de la Vida o SRO estándar (311 mOsm/L)~Suero fisiológico 0.9% 500 ó 1.000 mL~Vitamina A 100.000 UI~Vitamina A 200.000 UI~Zinc , tabletas ‘dispersables’ de 20mg~Zinc , jarabe de 20 mg/5mL~ | J183: 6.Medicamentos~ | K183: 14~ | L183: 1~ | M183: 24~
A184: s06_p01 | B184: (6,01): ¿Cuentan con ... el día de hoy? | C184: FALSE | D184: FALSE | E184: 1 | F184: 1 | G184: 0 | H184: 1~2~ | I184: SI~NO~ | J184: 6.Medicamentos~ | K184: 14~ | L184: 18~ | M184: 24~ | N184: 007~ | O184: s06_p01~ | P184: Me~ | Q184: 2~ | R184: 2~ | S184: End of RT~
A185: s06_p02 | B185: (6,02): Cantidad de ... el día de hoy | C185: FALSE | D185: FALSE | E185: 0 | F185: 5 | G185: 0 | H185: 1~ | I185: 200~ | J185: 6.Medicamentos~ | K185: 14~ | L185: 25~ | M185: 24~
A186: s06_p03 | B186: (6,03): ¿Cuántos días estuvieron sin ...? | C186: FALSE | D186: FALSE | E186: 0 | F186: 2 | G186: 0 | H186: 0~ | I186: 30~ | J186: 6.Medicamentos~ | K186: 14~ | L186: 30~ | M186: 24~
A187: 8 | B187: 008: Medicamento 2 | C187: 4 | D187: 1 | E187: 19
A188: id_medicamento_2 | B188: Número Medicamento 2 | C188: FALSE | D188: TRUE | E188: 1 | F188: 2 | G188: 0 | H188: 25~26~27~28~29~30~31~32~33~34~35~36~37~38~39~40~41~42~43~ | I188: Alfametildopa tab. 500 mg~Amoxicilina comp. 500 mg o 1g~Ampicilina amp. 1g~Ciprofloxacina comp. 500 mg~Doxiciclina tab. 100 mg~Eritromicina comp. 500 mg~Metronidazol tab.500 mg~Nifedipino tab. 10 mg~Paracetamol tab. 500 mg~Peniicilina benzatínica amp. 1,200.000 UI o 2,400.000 UI~Sulfato ferroso tab, 60 mg~Artesunato comp.50mg~Clindamicina susp.75mg/5mL~Cloroquina, tab.150 mg~Diclorhidrato de quinina, amp 300 mg/2mL~Mefloquina tab 250 mg~Primaquina, tab.5 mg~Quinina, amp.600 mg~Quinina sulfato, tab.300 mg~ | J188: 6.Medicamentos~6.Medicamentos~ | K188: 53~65~ | L188: 1~1~ | M188: 11~8~
A189: s06_p04 | B189: (6,04): ¿Cuentan con ...? | C189: FALSE | D189: FALSE | E189: 1 | F189: 1 | G189: 0 | H189: 1~2~ | I189: SI~NO~ | J189: 6.Medicamentos~6.Medicamentos~ | K189: 53~65~ | L189: 18~18~ | M189: 11~8~
A190: s06_p05 | B190: (6,05): Cantidad de ... | C190: FALSE | D190: FALSE | E190: 0 | F190: 5 | G190: 0 | H190: 1~ | I190: 200~ | J190: 6.Medicamentos~6.Medicamentos~ | K190: 53~65~ | L190: 25~25~ | M190: 11~8~
A191: s06_p06 | B191: (6,06): ¿Es suficiente esa cantidad? | C191: FALSE | D191: FALSE | E191: 1 | F191: 1 | G191: 0 | H191: 1~2~ | I191: SI~NO~ | J191: 6.Medicamentos~6.Medicamentos~ | K191: 53~65~ | L191: 30~30~ | M191: 11~8~

Sheet TAXI (hidden)
A1: SESSION | B1: START | C1: 13-04-2011 17:35:41 | D1: -1
A2: 1 | B2: 26/04/2011 11:54:17
